Workbook

Sheet اجمالي (hidden)
A1: م | B1: الاسم | C1: المرتب | D1: بدل اغتراب | E1: اضافية | F1: اجتماعية | G1: بدل نظارة | H1: 0.1 | I1: 0.15 | J1: 0.15 | K1: 0.1 | L1: 0.1 | M1: بدل معلم | N1: بدل اعتماد | O1: حافز 25% | P1: حافز أداء | Q1: حافز 91.6 | R1: حافز جهود | S1: قيادة | T1: حافز تطوير | U1: أعباء وظيفية | V1: حد أدنى | W1: المنحة | X1: جملة المستحق | Y1: 0.1 | Z1: 0.1 | AA1: 0.08 | AB1: 1/2% | AC1: نقابة معلمين | AD1: نادي | AE1: رعاية | AF1: نقابة عاملين | AG1: زمالة | AH1: خدمة | AI1: م رياضية | AJ1: اعتبارية | AK1: اعارة | AL1: كسب عمل | AM1: قسط ضريبة | AN1: عادية | AO1: جملة المستقطع | AP1: صـافي المبـلغ | AQ1: اســــــــــم الموظف
A2: 1 | B2: يحيى عبدالعزيز حسن | C2: =+كشف1!#REF! ->  | D2: =+كشف1!#REF! ->  | E2: =+كشف1!#REF! ->  | F2: =+كشف1!#REF! ->  | G2: =+كشف1!#REF! ->  | H2: =+كشف1!#REF! ->  | I2: =+كشف1!#REF! ->  | J2: =+كشف1!#REF! ->  | K2: =+كشف1!#REF! ->  | L2: =+كشف1!#REF! ->  | M2: =+كشف1!#REF! ->  | N2: =+كشف1!#REF! ->  | O2: =+كشف1!#REF! ->  | P2: =+كشف1!#REF! ->  | Q2: =+كشف1!#REF! ->  | R2: =+كشف1!#REF! ->  | S2: =+كشف1!#REF! ->  | T2: =+كشف1!#REF! ->  | U2: =+كشف1!#REF! ->  | V2: =+كشف1!#REF! ->  | W2: =+كشف1!#REF! ->  | X2: =+كشف1!#REF! ->  | Y2: =+كشف1!#REF! ->  | Z2: =+كشف1!#REF! ->  | AA2: =+كشف1!#REF! ->  | AB2: =+كشف1!#REF! ->  | AC2: =+كشف1!#REF! ->  | AD2: =+كشف1!#REF! ->  | AE2: =+كشف1!#REF! ->  | AF2: =+كشف1!#REF! ->  | AG2: =+كشف1!#REF! ->  | AH2: =+كشف1!#REF! ->  | AI2: =+كشف1!#REF! ->  | AJ2: =+كشف1!#REF! ->  | AK2: =+كشف1!#REF! ->  | AL2: =+كشف1!#REF! ->  | AM2: =+كشف1!#REF! ->  | AN2: =+كشف1!#REF! ->  | AO2: =+كشف1!#REF! ->  | AP2: =+كشف1!#REF! ->  | AQ2: =+كشف1!#REF! -> 
A3: 2 | B3: اسماعيل عبدالمنعم عبدالباري | C3: =+كشف1!#REF! ->  | D3: =+كشف1!#REF! ->  | E3: =+كشف1!#REF! ->  | F3: =+كشف1!#REF! ->  | G3: =+كشف1!#REF! ->  | H3: =+كشف1!#REF! ->  | I3: =+كشف1!#REF! ->  | J3: =+كشف1!#REF! ->  | K3: =+كشف1!#REF! ->  | L3: =+كشف1!#REF! ->  | M3: =+كشف1!#REF! ->  | N3: =+كشف1!#REF! ->  | O3: =+كشف1!#REF! ->  | P3: =+كشف1!#REF! ->  | Q3: =+كشف1!#REF! ->  | R3: =+كشف1!#REF! ->  | S3: =+كشف1!#REF! ->  | T3: =+كشف1!#REF! ->  | U3: =+كشف1!#REF! ->  | V3: =+كشف1!#REF! ->  | W3: =+كشف1!#REF! ->  | X3: =+كشف1!#REF! ->  | Y3: =+كشف1!#REF! ->  | Z3: =+كشف1!#REF! ->  | AA3: =+كشف1!#REF! ->  | AB3: =+كشف1!#REF! ->  | AC3: =+كشف1!#REF! ->  | AD3: =+كشف1!#REF! ->  | AE3: =+كشف1!#REF! ->  | AF3: =+كشف1!#REF! ->  | AG3: =+كشف1!#REF! ->  | AH3: =+كشف1!#REF! ->  | AI3: =+كشف1!#REF! ->  | AJ3: =+كشف1!#REF! ->  | AK3: =+كشف1!#REF! ->  | AL3: =+كشف1!#REF! ->  | AM3: =+كشف1!#REF! ->  | AN3: =+كشف1!#REF! ->  | AO3: =+كشف1!#REF! ->  | AP3: =+كشف1!#REF! ->  | AQ3: =+كشف1!#REF! -> 
A4: 3 | B4: مصطفى احمد مهنى | C4: =+كشف1!C8 -> 736 | D4: =+كشف1!D8 -> 4 | E4: =+كشف1!E8 -> 2 | F4: =+كشف1!F8 -> 4.8 | G4: =+كشف1!G8 -> 10 | H4: =+كشف1!H8 -> 24.12 | I4: =+كشف1!I8 -> 24.6 | J4: =+كشف1!J8 -> 61 | K4: =+كشف1!L8 -> 184 | L4: =+كشف1!#REF! ->  | M4: =+كشف1!M8 -> 123 | N4: =+كشف1!N8 -> 246 | O4: =+كشف1!O8 -> 425 | P4: =+كشف1!P8 -> 0 | Q4: =+كشف1!Q8 -> 0 | R4: =+كشف1!R8 -> 0 | S4: =+كشف1!#REF! ->  | T4: =+كشف1!#REF! ->  | U4: =+كشف1!S8 -> 0 | V4: =+كشف1!T8 -> 0 | W4: =+كشف1!U8 -> 0 | X4: =+كشف1!V8 -> 1884.52 | Y4: =+كشف1!W8 -> 73.6 | Z4: =+كشف1!X8 -> 113.85 | AA4: =+كشف1!Y8 -> 58.9 | AB4: =+كشف1!Z8 -> 7.4 | AC4: =+كشف1!AB8 -> 4.5 | AD4: =+كشف1!AC8 -> 2 | AE4: =+كشف1!AD8 -> 51.55 | AF4: =+كشف1!AE8 -> 0 | AG4: =+كشف1!AF8 -> 0 | AH4: =+كشف1!AG8 -> 0 | AI4: =+كشف1!AH8 -> 0 | AJ4: =+كشف1!#REF! ->  | AK4: =+كشف1!AJ8 -> 1 | AL4: =+كشف1!AK8 -> 0 | AM4: =+كشف1!AL8 -> 3 | AN4: =+كشف1!AM8 -> 0 | AO4: =+كشف1!AP8 -> 336.2 | AP4: =+كشف1!AQ8 -> 1548.32 | AQ4: =+كشف1!AR8 -> امانى محمد محسن احمد
A5: 4 | B5: ناصر عيدالجواد عبدالحميد | C5: =+كشف1!C9 -> 840.8 | D5: =+كشف1!D9 -> 4 | E5: =+كشف1!E9 -> 2 | F5: =+كشف1!F9 -> 7 | G5: =+كشف1!G9 -> 10 | H5: =+كشف1!H9 -> 26.52 | I5: =+كشف1!I9 -> 27.4 | J5: =+كشف1!J9 -> 68 | K5: =+كشف1!L9 -> 137 | L5: =+كشف1!#REF! ->  | M5: =+كشف1!M9 -> 137 | N5: =+كشف1!N9 -> 342.5 | O5: =+كشف1!O9 -> 400 | P5: =+كشف1!P9 -> 0 | Q5: =+كشف1!Q9 -> 0 | R5: =+كشف1!R9 -> 0 | S5: =+كشف1!#REF! ->  | T5: =+كشف1!#REF! ->  | U5: =+كشف1!S9 -> 0 | V5: =+كشف1!T9 -> 0 | W5: =+كشف1!U9 -> 0 | X5: =+كشف1!V9 -> 2002.22 | Y5: =+كشف1!W9 -> 84.1 | Z5: =+كشف1!X9 -> 115.15 | AA5: =+كشف1!Y9 -> 67.3 | AB5: =+كشف1!Z9 -> 8.45 | AC5: =+كشف1!AB9 -> 4.5 | AD5: =+كشف1!AC9 -> 2 | AE5: =+كشف1!AD9 -> 58.9 | AF5: =+كشف1!AE9 -> 0 | AG5: =+كشف1!AF9 -> 0 | AH5: =+كشف1!AG9 -> 0 | AI5: =+كشف1!AH9 -> 0 | AJ5: =+كشف1!AI9 -> 0 | AK5: =+كشف1!AJ9 -> 1 | AL5: =+كشف1!AK9 -> 0 | AM5: =+كشف1!AL9 -> 5 | AN5: =+كشف1!AM9 -> 0 | AO5: =+كشف1!AP9 -> 368.95 | AP5: =+كشف1!AQ9 -> 1633.27 | AQ5: =+كشف1!AR9 -> امل زغلول ياسين
A6: 5 | B6: عبدالعزيز يوسف سيد | C6: =+كشف1!C10 -> 762.32 | D6: =+كشف1!D10 -> 4 | E6: =+كشف1!E10 -> 2 | F6: =+كشف1!F10 -> 4.8 | G6: =+كشف1!G10 -> 10 | H6: =+كشف1!H10 -> 24.12 | I6: =+كشف1!I10 -> 25 | J6: =+كشف1!J10 -> 62 | K6: =+كشف1!L10 -> 187 | L6: =+كشف1!#REF! ->  | M6: =+كشف1!M10 -> 125 | N6: =+كشف1!N10 -> 250 | O6: =+كشف1!O10 -> 400 | P6: =+كشف1!P10 -> 0 | Q6: =+كشف1!Q10 -> 0 | R6: =+كشف1!R10 -> 0 | S6: =+كشف1!#REF! ->  | T6: =+كشف1!#REF! ->  | U6: =+كشف1!S10 -> 0 | V6: =+كشف1!T10 -> 0 | W6: =+كشف1!U10 -> 0 | X6: =+كشف1!V10 -> 1856.24 | Y6: =+كشف1!W10 -> 76.25 | Z6: =+كشف1!X10 -> 108.4 | AA6: =+كشف1!Y10 -> 61 | AB6: =+كشف1!Z10 -> 7.65 | AC6: =+كشف1!AB10 -> 4.5 | AD6: =+كشف1!AC10 -> 2 | AE6: =+كشف1!AD10 -> 53.4 | AF6: =+كشف1!AE10 -> 0 | AG6: =+كشف1!AF10 -> 0 | AH6: =+كشف1!AG10 -> 0 | AI6: =+كشف1!AH10 -> 0 | AJ6: =+كشف1!AI10 -> 0 | AK6: =+كشف1!AJ10 -> 1 | AL6: =+كشف1!AK10 -> 0 | AM6: =+كشف1!AL10 -> 3 | AN6: =+كشف1!AM10 -> 50 | AO6: =+كشف1!AP10 -> 387.05 | AP6: =+كشف1!AQ10 -> 1469.19 | AQ6: =+كشف1!AR10 -> ايناس صدقى عزمى
A7: 6 | B7: صباح عبدالصبور محمد | C7: =+كشف1!C13 -> 736 | D7: =+كشف1!D13 -> 4 | E7: =+كشف1!E13 -> 6 | F7: =+كشف1!F13 -> 4.8 | G7: =+كشف1!G13 -> 10 | H7: =+كشف1!H13 -> 24.12 | I7: =+كشف1!I13 -> 24.6 | J7: =+كشف1!J13 -> 61 | K7: =+كشف1!L13 -> 184 | L7: =+كشف1!#REF! ->  | M7: =+كشف1!M13 -> 123 | N7: =+كشف1!N13 -> 246 | O7: =+كشف1!O13 -> 400 | P7: =+كشف1!P13 -> 0 | Q7: =+كشف1!Q13 -> 0 | R7: =+كشف1!R13 -> 0 | S7: =+كشف1!#REF! ->  | T7: =+كشف1!#REF! ->  | U7: =+كشف1!S13 -> 0 | V7: =+كشف1!T13 -> 0 | W7: =+كشف1!U13 -> 0 | X7: =+كشف1!V13 -> 1823.52 | Y7: =+كشف1!W13 -> 73.6 | Z7: =+كشف1!X13 -> 107.75 | AA7: =+كشف1!Y13 -> 58.9 | AB7: =+كشف1!Z13 -> 7.4 | AC7: =+كشف1!AB13 -> 4.5 | AD7: =+كشف1!AC13 -> 2 | AE7: =+كشف1!AD13 -> 51.55 | AF7: =+كشف1!AE13 -> 0 | AG7: =+كشف1!AF13 -> 0 | AH7: =+كشف1!AG13 -> 0 | AI7: =+كشف1!AH13 -> 0 | AJ7: =+كشف1!AI13 -> 0 | AK7: =+كشف1!AJ13 -> 1 | AL7: =+كشف1!AK13 -> 0 | AM7: =+كشف1!AL13 -> 3 | AN7: =+كشف1!AM13 -> 50 | AO7: =+كشف1!AP13 -> 379.5 | AP7: =+كشف1!AQ13 -> 1444.02 | AQ7: =+كشف1!AR13 -> رضا محمد مرسي
A8: 7 | B8: احلام احمد عبدالباقى | C8: =+كشف1!C11 -> 1216.92 | D8: =+كشف1!D11 -> 4 | E8: =+كشف1!E11 -> 6 | F8: =+كشف1!F11 -> 9.5 | G8: =+كشف1!G11 -> 10 | H8: =+كشف1!H11 -> 49.05 | I8: =+كشف1!I11 -> 52.74 | J8: =+كشف1!J11 -> 130 | K8: =+كشف1!L11 -> 130 | L8: =+كشف1!#REF! ->  | M8: =+كشف1!M11 -> 261.23 | N8: =+كشف1!N11 -> 783.69 | O8: =+كشف1!O11 -> 375 | P8: =+كشف1!P11 -> 0 | Q8: =+كشف1!Q11 -> 0 | R8: =+كشف1!R11 -> 0 | S8: =+كشف1!#REF! ->  | T8: =+كشف1!#REF! ->  | U8: =+كشف1!S11 -> 0 | V8: =+كشف1!T11 -> 0 | W8: =+كشف1!U11 -> 0 | X8: =+كشف1!V11 -> 3068.13 | Y8: =+كشف1!W11 -> 121.7 | Z8: =+كشف1!X11 -> 184.15 | AA8: =+كشف1!Y11 -> 97.35 | AB8: =+كشف1!Z11 -> 12.2 | AC8: =+كشف1!AB11 -> 4.5 | AD8: =+كشف1!AC11 -> 2 | AE8: =+كشف1!AD11 -> 85.2 | AF8: =+كشف1!AE11 -> 0 | AG8: =+كشف1!AF11 -> 0 | AH8: =+كشف1!AG11 -> 0 | AI8: =+كشف1!AH11 -> 0 | AJ8: =+كشف1!AI11 -> 0 | AK8: =+كشف1!AJ11 -> 1 | AL8: =+كشف1!AK11 -> 0 | AM8: =+كشف1!AL11 -> 15 | AN8: =+كشف1!AM11 -> 0 | AO8: =+كشف1!AP11 -> 555.55 | AP8: =+كشف1!AQ11 -> 2512.58 | AQ8: =+كشف1!AR11 -> جبر حسن عبدالمنطلب
A9: 8 | B9: يسرى عزت عبدالحميد | C9: =+كشف1!C12 -> 1380.22 | D9: =+كشف1!D12 -> 4 | E9: =+كشف1!E12 -> 6 | F9: =+كشف1!F12 -> 9.5 | G9: =+كشف1!G12 -> 10 | H9: =+كشف1!H12 -> 57.73 | I9: =+كشف1!I12 -> 61.41 | J9: =+كشف1!J12 -> 153 | K9: =+كشف1!L12 -> 153 | L9: =+كشف1!#REF! ->  | M9: =+كشف1!M12 -> 307.05 | N9: =+كشف1!N12 -> 921.15 | O9: =+كشف1!O12 -> 375 | P9: =+كشف1!P12 -> 0 | Q9: =+كشف1!Q12 -> 0 | R9: =+كشف1!R12 -> 0 | S9: =+كشف1!#REF! ->  | T9: =+كشف1!#REF! ->  | U9: =+كشف1!S12 -> 0 | V9: =+كشف1!T12 -> 0 | W9: =+كشف1!U12 -> 0 | X9: =+كشف1!V12 -> 3438.06 | Y9: =+كشف1!W12 -> 138.05 | Z9: =+كشف1!X12 -> 204.8 | AA9: =+كشف1!Y12 -> 110.45 | AB9: =+كشف1!Z12 -> 13.85 | AC9: =+كشف1!AB12 -> 4.5 | AD9: =+كشف1!AC12 -> 2 | AE9: =+كشف1!AD12 -> 96.65 | AF9: =+كشف1!AE12 -> 0 | AG9: =+كشف1!AF12 -> 0 | AH9: =+كشف1!AG12 -> 0 | AI9: =+كشف1!AH12 -> 0 | AJ9: =+كشف1!AI12 -> 0 | AK9: =+كشف1!AJ12 -> 1 | AL9: =+كشف1!AK12 -> 0 | AM9: =+كشف1!AL12 -> 25 | AN9: =+كشف1!AM12 -> 0 | AO9: =+كشف1!AP12 -> 632.8 | AP9: =+كشف1!AQ12 -> 2805.26 | AQ9: =+كشف1!AR12 -> حمدى درويش فهمى
A10: 9 | B10: عبده موسى عبدالعظيم | C10: =+كشف1!C14 -> 1172.88 | D10: =+كشف1!D14 -> 4 | E10: =+كشف1!E14 -> 2 | F10: =+كشف1!F14 -> 9.5 | G10: =+كشف1!G14 -> 10 | H10: =+كشف1!H14 -> 47.01 | I10: =+كشف1!I14 -> 50.04 | J10: =+كشف1!J14 -> 125 | K10: =+كشف1!L14 -> 125 | L10: =+كشف1!#REF! ->  | M10: =+كشف1!M14 -> 250.23 | N10: =+كشف1!N14 -> 750.68 | O10: =+كشف1!O14 -> 375 | P10: =+كشف1!P14 -> 0 | Q10: =+كشف1!Q14 -> 0 | R10: =+كشف1!R14 -> 0 | S10: =+كشف1!#REF! ->  | T10: =+كشف1!#REF! ->  | U10: =+كشف1!S14 -> 0 | V10: =+كشف1!T14 -> 0 | W10: =+كشف1!U14 -> 0 | X10: =+كشف1!V14 -> 2921.34 | Y10: =+كشف1!W14 -> 117.3 | Z10: =+كشف1!X14 -> 173.85 | AA10: =+كشف1!Y14 -> 93.85 | AB10: =+كشف1!Z14 -> 11.75 | AC10: =+كشف1!AB14 -> 4.5 | AD10: =+كشف1!AC14 -> 2 | AE10: =+كشف1!AD14 -> 82.1 | AF10: =+كشف1!AE14 -> 0 | AG10: =+كشف1!AF14 -> 0 | AH10: =+كشف1!AG14 -> 0 | AI10: =+كشف1!AH14 -> 0 | AJ10: =+كشف1!AI14 -> 0 | AK10: =+كشف1!AJ14 -> 1 | AL10: =+كشف1!AK14 -> 0 | AM10: =+كشف1!AL14 -> 15 | AN10: =+كشف1!AM14 -> 0 | AO10: =+كشف1!AP14 -> 532.75 | AP10: =+كشف1!AQ14 -> 2388.59 | AQ10: =+كشف1!AR14 -> صباح عبدالصبور محمد
A11: 10 | B11: نبيله محمد حسن | C11: =+كشف2!C5 -> 828.3 | D11: =+كشف2!D5 -> 4 | E11: =+كشف2!E5 -> 2 | F11: =+كشف2!F5 -> 7 | G11: =+كشف2!G5 -> 10 | H11: =+كشف2!H5 -> 25.52 | I11: =+كشف2!I5 -> 26.8 | J11: =+كشف2!J5 -> 67 | K11: =+كشف2!L5 -> 134 | L11: =+كشف2!#REF! ->  | M11: =+كشف2!M5 -> 134 | N11: =+كشف2!N5 -> 335 | O11: =+كشف2!O5 -> 400 | P11: =+كشف2!P5 -> 0 | Q11: =+كشف2!Q5 -> 0 | R11: =+كشف2!R5 -> 0 | S11: =+كشف2!S5 -> 0 | T11: =+كشف2!#REF! ->  | U11: =+كشف2!#REF! ->  | V11: =+كشف2!#REF! ->  | W11: =+كشف2!V5 -> 1973.62 | X11: =+كشف2!W5 -> 82.85 | Y11: =+كشف2!X5 -> 113.55 | Z11: =+كشف2!Y5 -> 66.3 | AA11: =+كشف2!Z5 -> 8.3 | AB11: =+كشف2!AA5 -> 11.4 | AC11: =+كشف2!AB5 -> 4.5 | AD11: =+كشف2!AC5 -> 2 | AE11: =+كشف2!AD5 -> 58 | AF11: =+كشف2!AE5 -> 0 | AG11: =+كشف2!AF5 -> 0 | AH11: =+كشف2!AG5 -> 0 | AI11: =+كشف2!AI5 -> 0 | AJ11: =+كشف2!AK5 -> 0 | AK11: =+كشف2!AL5 -> 5 | AL11: =+كشف2!#REF! ->  | AM11: =+كشف2!#REF! ->  | AN11: =+كشف2!AN5 -> 10 | AO11: =+كشف2!AP5 -> 362.9 | AP11: =+كشف2!AQ5 -> 1610.72 | AQ11: =+كشف2!AR5 -> ابتسام حسن محمد
A12: 11 | B12: ربيع ابراهيم محمود | C12: =+كشف2!#REF! ->  | D12: =+كشف2!#REF! ->  | E12: =+كشف2!#REF! ->  | F12: =+كشف2!#REF! ->  | G12: =+كشف2!#REF! ->  | H12: =+كشف2!#REF! ->  | I12: =+كشف2!#REF! ->  | J12: =+كشف2!#REF! ->  | K12: =+كشف2!#REF! ->  | L12: =+كشف2!#REF! ->  | M12: =+كشف2!#REF! ->  | N12: =+كشف2!#REF! ->  | O12: =+كشف2!#REF! ->  | P12: =+كشف2!#REF! ->  | Q12: =+كشف2!#REF! ->  | R12: =+كشف2!#REF! ->  | S12: =+كشف2!#REF! ->  | T12: =+كشف2!#REF! ->  | U12: =+كشف2!#REF! ->  | V12: =+كشف2!#REF! ->  | W12: =+كشف2!#REF! ->  | X12: =+كشف2!#REF! ->  | Y12: =+كشف2!#REF! ->  | Z12: =+كشف2!#REF! ->  | AA12: =+كشف2!#REF! ->  | AB12: =+كشف2!#REF! ->  | AC12: =+كشف2!#REF! ->  | AD12: =+كشف2!#REF! ->  | AE12: =+كشف2!#REF! ->  | AF12: =+كشف2!#REF! ->  | AG12: =+كشف2!#REF! ->  | AH12: =+كشف2!#REF! ->  | AI12: =+كشف2!#REF! ->  | AJ12: =+كشف2!#REF! ->  | AK12: =+كشف2!#REF! ->  | AL12: =+كشف2!#REF! ->  | AM12: =+كشف2!#REF! ->  | AN12: =+كشف2!#REF! ->  | AO12: =+كشف2!#REF! ->  | AP12: =+كشف2!#REF! ->  | AQ12: =+كشف2!#REF! -> 
A13: 12 | B13: محمد عبدالسيد حسن | C13: =+كشف2!C13 -> 1212.86 | D13: =+كشف2!D13 -> 4 | E13: =+كشف2!E13 -> 6 | F13: =+كشف2!F13 -> 9.5 | G13: =+كشف2!G13 -> 10 | H13: =+كشف2!H13 -> 49.19 | I13: =+كشف2!I13 -> 52.39 | J13: =+كشف2!J13 -> 130 | K13: =+كشف2!L13 -> 130 | L13: =+كشف2!#REF! ->  | M13: =+كشف2!M13 -> 261.95 | N13: =+كشف2!N13 -> 785.85 | O13: =+كشف2!O13 -> 375 | P13: =+كشف2!P13 -> 0 | Q13: =+كشف2!Q13 -> 0 | R13: =+كشف2!R13 -> 0 | S13: =+كشف2!S13 -> 0 | T13: =+كشف2!#REF! ->  | U13: =+كشف2!#REF! ->  | V13: =+كشف2!#REF! ->  | W13: =+كشف2!V13 -> 3026.74 | X13: =+كشف2!W13 -> 121.3 | Y13: =+كشف2!X13 -> 180.4 | Z13: =+كشف2!Y13 -> 97.05 | AA13: =+كشف2!Z13 -> 12.15 | AB13: =+كشف2!AA13 -> 18.05 | AC13: =+كشف2!AB13 -> 4.5 | AD13: =+كشف2!AC13 -> 2 | AE13: =+كشف2!AD13 -> 84.9 | AF13: =+كشف2!AE13 -> 0 | AG13: =+كشف2!AF13 -> 0 | AH13: =+كشف2!AG13 -> 0 | AI13: =+كشف2!AI13 -> 0 | AJ13: =+كشف2!AK13 -> 0 | AK13: =+كشف2!AL13 -> 15 | AL13: =+كشف2!#REF! ->  | AM13: =+كشف2!#REF! ->  | AN13: =+كشف2!AN13 -> 14 | AO13: =+كشف2!AP13 -> 550.35 | AP13: =+كشف2!AQ13 -> 2476.39 | AQ13: =+كشف2!#REF! -> 
A14: 13 | B14: حسين جبر علي حسين | C14: =+كشف2!C14 -> 1154.1 | D14: =+كشف2!D14 -> 4 | E14: =+كشف2!E14 -> 6 | F14: =+كشف2!F14 -> 9.5 | G14: =+كشف2!G14 -> 10 | H14: =+كشف2!H14 -> 45.93 | I14: =+كشف2!I14 -> 48.89 | J14: =+كشف2!J14 -> 122 | K14: =+كشف2!L14 -> 122 | L14: =+كشف2!#REF! ->  | M14: =+كشف2!M14 -> 244.45 | N14: =+كشف2!N14 -> 733.35 | O14: =+كشف2!O14 -> 375 | P14: =+كشف2!P14 -> 0 | Q14: =+كشف2!Q14 -> 0 | R14: =+كشف2!R14 -> 0 | S14: =+كشف2!S14 -> 0 | T14: =+كشف2!#REF! ->  | U14: =+كشف2!#REF! ->  | V14: =+كشف2!#REF! ->  | W14: =+كشف2!V14 -> 2875.22 | X14: =+كشف2!W14 -> 115.45 | Y14: =+كشف2!X14 -> 171.15 | Z14: =+كشف2!Y14 -> 92.35 | AA14: =+كشف2!Z14 -> 11.55 | AB14: =+كشف2!AA14 -> 17.15 | AC14: =+كشف2!AB14 -> 4.5 | AD14: =+كشف2!AC14 -> 2 | AE14: =+كشف2!AD14 -> 80.8 | AF14: =+كشف2!AE14 -> 0 | AG14: =+كشف2!AF14 -> 0 | AH14: =+كشف2!AG14 -> 0 | AI14: =+كشف2!AI14 -> 0 | AJ14: =+كشف2!AK14 -> 0 | AK14: =+كشف2!AL14 -> 15 | AL14: =+كشف2!#REF! ->  | AM14: =+كشف2!#REF! ->  | AN14: =+كشف2!AN14 -> 14 | AO14: =+كشف2!AP14 -> 524.95 | AP14: =+كشف2!AQ14 -> 2350.27 | AQ14: =+كشف2!AR13 -> محمد على حسين
A15: 14 | B15: محمد عبدالرحيم صالح | C15: =+كشف2!C15 -> 0 | D15: =+كشف2!D15 -> 0 | E15: =+كشف2!E15 -> 0 | F15: =+كشف2!F15 -> 0 | G15: =+كشف2!G15 -> 0 | H15: =+كشف2!H15 -> 0 | I15: =+كشف2!I15 -> 0 | J15: =+كشف2!J15 -> 0 | K15: =+كشف2!L15 -> 0 | L15: =+كشف2!#REF! ->  | M15: =+كشف2!M15 -> 0 | N15: =+كشف2!N15 -> 0 | O15: =+كشف2!O15 -> 0 | P15: =+كشف2!P15 -> 2428.15 | Q15: =+كشف2!Q15 -> 406.84 | R15: =+كشف2!R15 -> 45.43 | S15: =+كشف2!S15 -> 0 | T15: =+كشف2!#REF! ->  | U15: =+كشف2!#REF! ->  | V15: =+كشف2!#REF! ->  | W15: =+كشف2!V15 -> 2880.42 | X15: =+كشف2!W15 -> 76 | Y15: =+كشف2!X15 -> 212.05 | Z15: =+كشف2!Y15 -> 60.8 | AA15: =+كشف2!Z15 -> 7.6 | AB15: =+كشف2!AA15 -> 21.25 | AC15: =+كشف2!AB15 -> 0 | AD15: =+كشف2!AC15 -> 0 | AE15: =+كشف2!AD15 -> 0 | AF15: =+كشف2!AE15 -> 2 | AG15: =+كشف2!AF15 -> 10 | AH15: =+كشف2!AG15 -> 26.9 | AI15: =+كشف2!AI15 -> 0 | AJ15: =+كشف2!AK15 -> 0 | AK15: =+كشف2!AL15 -> 28 | AL15: =+كشف2!#REF! ->  | AM15: =+كشف2!#REF! ->  | AN15: =+كشف2!AN15 -> 12 | AO15: =+كشف2!AP15 -> 456.6 | AP15: =+كشف2!AQ15 -> 2423.82 | AQ15: =+كشف2!AR14 -> محمد ناجى محمد
A16: 15 | B16: اكرام خليل امبارك | C16: =+كشف2!C16 -> 1183.31 | D16: =+كشف2!D16 -> 4 | E16: =+كشف2!E16 -> 6 | F16: =+كشف2!F16 -> 9.5 | G16: =+كشف2!G16 -> 10 | H16: =+كشف2!H16 -> 47.6 | I16: =+كشف2!I16 -> 50.7 | J16: =+كشف2!J16 -> 126 | K16: =+كشف2!L16 -> 126 | L16: =+كشف2!#REF! ->  | M16: =+كشف2!M16 -> 253.52 | N16: =+كشف2!N16 -> 760.56 | O16: =+كشف2!O16 -> 375 | P16: =+كشف2!P16 -> 0 | Q16: =+كشف2!Q16 -> 0 | R16: =+كشف2!R16 -> 0 | S16: =+كشف2!S16 -> 0 | T16: =+كشف2!#REF! ->  | U16: =+كشف2!#REF! ->  | V16: =+كشف2!#REF! ->  | W16: =+كشف2!V16 -> 2952.19 | X16: =+كشف2!W16 -> 118.35 | Y16: =+كشف2!X16 -> 175.9 | Z16: =+كشف2!Y16 -> 94.7 | AA16: =+كشف2!Z16 -> 11.85 | AB16: =+كشف2!AA16 -> 17.6 | AC16: =+كشف2!AB16 -> 4.5 | AD16: =+كشف2!AC16 -> 2 | AE16: =+كشف2!AD16 -> 82.85 | AF16: =+كشف2!AE16 -> 0 | AG16: =+كشف2!AF16 -> 0 | AH16: =+كشف2!AG16 -> 0 | AI16: =+كشف2!AI16 -> 0 | AJ16: =+كشف2!AK16 -> 0 | AK16: =+كشف2!AL16 -> 15 | AL16: =+كشف2!#REF! ->  | AM16: =+كشف2!#REF! ->  | AN16: =+كشف2!AN16 -> 14 | AO16: =+كشف2!AP16 -> 537.75 | AP16: =+كشف2!AQ16 -> 2414.44 | AQ16: =+كشف2!AR15 -> محمود محمد ابراهيم
A17: 16 | B17: جمال حسن علي حماد | C17: =+كشف1!#REF! ->  | D17: =+كشف1!#REF! ->  | E17: =+كشف1!#REF! ->  | F17: =+كشف1!#REF! ->  | G17: =+كشف1!#REF! ->  | H17: =+كشف1!#REF! ->  | I17: =+كشف1!#REF! ->  | J17: =+كشف1!#REF! ->  | K17: =+كشف1!#REF! ->  | L17: =+كشف1!#REF! ->  | M17: =+كشف1!#REF! ->  | N17: =+كشف1!#REF! ->  | O17: =+كشف1!#REF! ->  | P17: =+كشف1!#REF! ->  | Q17: =+كشف1!#REF! ->  | R17: =+كشف1!#REF! ->  | S17: =+كشف1!#REF! ->  | T17: =+كشف1!#REF! ->  | U17: =+كشف1!#REF! ->  | V17: =+كشف1!#REF! ->  | W17: =+كشف1!#REF! ->  | X17: =+كشف1!#REF! ->  | Y17: =+كشف1!#REF! ->  | Z17: =+كشف1!#REF! ->  | AA17: =+كشف1!#REF! ->  | AB17: =+كشف1!#REF! ->  | AC17: =+كشف1!#REF! ->  | AD17: =+كشف1!#REF! ->  | AE17: =+كشف1!#REF! ->  | AF17: =+كشف1!#REF! ->  | AG17: =+كشف1!#REF! ->  | AH17: =+كشف1!#REF! ->  | AI17: =+كشف1!#REF! ->  | AJ17: =+كشف1!#REF! ->  | AK17: =+كشف1!#REF! ->  | AL17: =+كشف1!#REF! ->  | AM17: =+كشف1!#REF! ->  | AN17: =+كشف1!#REF! ->  | AO17: =+كشف1!#REF! ->  | AP17: =+كشف1!#REF! ->  | AQ17: =+كشف1!#REF! -> 
A18: 17 | C18: =+كشف1!C15 -> 824.8 | D18: =+كشف1!D15 -> 4 | E18: =+كشف1!E15 -> 6 | F18: =+كشف1!F15 -> 7 | G18: =+كشف1!G15 -> 10 | H18: =+كشف1!H15 -> 24.92 | I18: =+كشف1!I15 -> 25.8 | J18: =+كشف1!J15 -> 64 | K18: =+كشف1!L15 -> 129 | L18: =+كشف1!#REF! ->  | M18: =+كشف1!M15 -> 129 | N18: =+كشف1!N15 -> 322.5 | O18: =+كشف1!O15 -> 400 | P18: =+كشف1!P15 -> 0 | Q18: =+كشف1!Q15 -> 0 | R18: =+كشف1!R15 -> 0 | S18: =+كشف1!#REF! ->  | T18: =+كشف1!#REF! ->  | U18: =+كشف1!S15 -> 0 | V18: =+كشف1!T15 -> 0 | W18: =+كشف1!U15 -> 0 | X18: =+كشف1!V15 -> 1947.02 | Y18: =+كشف1!W15 -> 82.5 | Z18: =+كشف1!X15 -> 111.25 | AA18: =+كشف1!Y15 -> 66 | AB18: =+كشف1!Z15 -> 8.25 | AC18: =+كشف1!AB15 -> 4.5 | AD18: =+كشف1!AC15 -> 2 | AE18: =+كشف1!AD15 -> 57.75 | AF18: =+كشف1!AE15 -> 0 | AG18: =+كشف1!AF15 -> 0 | AH18: =+كشف1!AG15 -> 0 | AI18: =+كشف1!AH15 -> 0 | AJ18: =+كشف1!AI15 -> 0 | AK18: =+كشف1!AJ15 -> 1 | AL18: =+كشف1!AK15 -> 0 | AM18: =+كشف1!AL15 -> 5 | AN18: =+كشف1!AM15 -> 0 | AO18: =+كشف1!AP15 -> 359.4 | AP18: =+كشف1!AQ15 -> 1587.62 | AQ18: =+كشف1!AR15 -> صلاح عمر موسي
A19: 18 | C19: =+كشف1!C16 -> 736 | D19: =+كشف1!D16 -> 4 | E19: =+كشف1!E16 -> 2 | F19: =+كشف1!F16 -> 4.8 | G19: =+كشف1!G16 -> 10 | H19: =+كشف1!H16 -> 24.12 | I19: =+كشف1!I16 -> 24.6 | J19: =+كشف1!J16 -> 61 | K19: =+كشف1!L16 -> 184 | L19: =+كشف1!#REF! ->  | M19: =+كشف1!M16 -> 123 | N19: =+كشف1!N16 -> 246 | O19: =+كشف1!O16 -> 400 | P19: =+كشف1!P16 -> 0 | Q19: =+كشف1!Q16 -> 0 | R19: =+كشف1!R16 -> 0 | S19: =+كشف1!#REF! ->  | T19: =+كشف1!#REF! ->  | U19: =+كشف1!S16 -> 0 | V19: =+كشف1!T16 -> 0 | W19: =+كشف1!U16 -> 0 | X19: =+كشف1!V16 -> 1819.52 | Y19: =+كشف1!W16 -> 73.6 | Z19: =+كشف1!X16 -> 107.35 | AA19: =+كشف1!Y16 -> 58.9 | AB19: =+كشف1!Z16 -> 7.4 | AC19: =+كشف1!AB16 -> 4.5 | AD19: =+كشف1!AC16 -> 2 | AE19: =+كشف1!AD16 -> 51.55 | AF19: =+كشف1!AE16 -> 0 | AG19: =+كشف1!AF16 -> 0 | AH19: =+كشف1!AG16 -> 0 | AI19: =+كشف1!AH16 -> 0 | AJ19: =+كشف1!AI16 -> 0 | AK19: =+كشف1!AJ16 -> 1 | AL19: =+كشف1!AK16 -> 0 | AM19: =+كشف1!AL16 -> 3 | AN19: =+كشف1!AM16 -> 50 | AO19: =+كشف1!AP16 -> 379.05 | AP19: =+كشف1!AQ16 -> 1440.47 | AQ19: =+كشف1!#REF! -> 
A20: 19 | C20: =+كشف1!C17 -> 0 | D20: =+كشف1!D17 -> 0 | E20: =+كشف1!E17 -> 0 | F20: =+كشف1!F17 -> 0 | G20: =+كشف1!G17 -> 0 | H20: =+كشف1!H17 -> 0 | I20: =+كشف1!I17 -> 0 | J20: =+كشف1!J17 -> 0 | K20: =+كشف1!L17 -> 0 | L20: =+كشف1!#REF! ->  | M20: =+كشف1!M17 -> 0 | N20: =+كشف1!N17 -> 0 | O20: =+كشف1!O17 -> 0 | P20: =+كشف1!Q17 -> 428.35 | Q20: =+كشف1!R17 -> 42.2 | R20: =+كشف1!U17 -> 0 | S20: =+كشف1!#REF! ->  | T20: =+كشف1!#REF! ->  | U20: =+كشف1!S17 -> 0 | V20: =+كشف1!T17 -> 0 | W20: =+كشف1!#REF! ->  | X20: =+كشف1!V17 -> 2991.08 | Y20: =+كشف1!W17 -> 80.1 | Z20: =+كشف1!X17 -> 219.05 | AA20: =+كشف1!Y17 -> 64.1 | AB20: =+كشف1!Z17 -> 8 | AC20: =+كشف1!AB17 -> 4.5 | AD20: =+كشف1!AC17 -> 2 | AE20: =+كشف1!AD17 -> 39.7 | AF20: =+كشف1!AE17 -> 0 | AG20: =+كشف1!AF17 -> 0 | AH20: =+كشف1!AG17 -> 0 | AI20: =+كشف1!AH17 -> 1.5 | AJ20: =+كشف1!AI17 -> 0 | AK20: =+كشف1!AJ17 -> 1 | AL20: =+كشف1!AK17 -> 0 | AM20: =+كشف1!AL17 -> 30 | AN20: =+كشف1!AM17 -> 0 | AO20: =+كشف1!AP17 -> 484.9 | AP20: =+كشف1!AQ17 -> 2506.18 | AQ20: =+كشف1!AR16 -> عبدالاول عمر موسي
A21: 20 | C21: =+كشف1!#REF! ->  | D21: =+كشف1!#REF! ->  | E21: =+كشف1!#REF! ->  | F21: =+كشف1!#REF! ->  | G21: =+كشف1!#REF! ->  | H21: =+كشف1!#REF! ->  | I21: =+كشف1!#REF! ->  | J21: =+كشف1!#REF! ->  | K21: =+كشف1!#REF! ->  | L21: =+كشف1!#REF! ->  | M21: =+كشف1!#REF! ->  | N21: =+كشف1!#REF! ->  | O21: =+كشف1!#REF! ->  | P21: =+كشف1!#REF! ->  | Q21: =+كشف1!#REF! ->  | R21: =+كشف1!#REF! ->  | S21: =+كشف1!#REF! ->  | T21: =+كشف1!#REF! ->  | U21: =+كشف1!#REF! ->  | V21: =+كشف1!#REF! ->  | W21: =+كشف1!#REF! ->  | X21: =+كشف1!#REF! ->  | Y21: =+كشف1!#REF! ->  | Z21: =+كشف1!#REF! ->  | AA21: =+كشف1!#REF! ->  | AB21: =+كشف1!#REF! ->  | AC21: =+كشف1!#REF! ->  | AD21: =+كشف1!#REF! ->  | AE21: =+كشف1!#REF! ->  | AF21: =+كشف1!#REF! ->  | AG21: =+كشف1!#REF! ->  | AH21: =+كشف1!#REF! ->  | AI21: =+كشف1!#REF! ->  | AJ21: =+كشف1!#REF! ->  | AK21: =+كشف1!#REF! ->  | AL21: =+كشف1!#REF! ->  | AM21: =+كشف1!#REF! ->  | AN21: =+كشف1!#REF! ->  | AO21: =+كشف1!#REF! ->  | AP21: =+كشف1!#REF! ->  | AQ21: =+كشف1!#REF! -> 
A22: 21 | C22: =+كشف1!#REF! ->  | D22: =+كشف1!#REF! ->  | E22: =+كشف1!#REF! ->  | F22: =+كشف1!#REF! ->  | G22: =+كشف1!#REF! ->  | H22: =+كشف1!#REF! ->  | I22: =+كشف1!#REF! ->  | J22: =+كشف1!#REF! ->  | K22: =+كشف1!#REF! ->  | L22: =+كشف1!#REF! ->  | M22: =+كشف1!#REF! ->  | N22: =+كشف1!#REF! ->  | O22: =+كشف1!#REF! ->  | P22: =+كشف1!#REF! ->  | Q22: =+كشف1!#REF! ->  | R22: =+كشف1!#REF! ->  | S22: =+كشف1!#REF! ->  | T22: =+كشف1!#REF! ->  | U22: =+كشف1!#REF! ->  | V22: =+كشف1!#REF! ->  | W22: =+كشف1!#REF! ->  | X22: =+كشف1!#REF! ->  | Y22: =+كشف1!#REF! ->  | Z22: =+كشف1!#REF! ->  | AA22: =+كشف1!#REF! ->  | AB22: =+كشف1!#REF! ->  | AC22: =+كشف1!#REF! ->  | AD22: =+كشف1!#REF! ->  | AE22: =+كشف1!#REF! ->  | AF22: =+كشف1!#REF! ->  | AG22: =+كشف1!#REF! ->  | AH22: =+كشف1!#REF! ->  | AI22: =+كشف1!#REF! ->  | AJ22: =+كشف1!#REF! ->  | AK22: =+كشف1!#REF! ->  | AL22: =+كشف1!#REF! ->  | AM22: =+كشف1!#REF! ->  | AN22: =+كشف1!#REF! ->  | AO22: =+كشف1!#REF! ->  | AP22: =+كشف1!#REF! ->  | AQ22: =+كشف1!#REF! -> 
A23: 22 | C23: =+كشف1!#REF! ->  | D23: =+كشف1!#REF! ->  | E23: =+كشف1!#REF! ->  | F23: =+كشف1!#REF! ->  | G23: =+كشف1!#REF! ->  | H23: =+كشف1!#REF! ->  | I23: =+كشف1!#REF! ->  | J23: =+كشف1!#REF! ->  | K23: =+كشف1!#REF! ->  | L23: =+كشف1!#REF! ->  | M23: =+كشف1!#REF! ->  | N23: =+كشف1!#REF! ->  | O23: =+كشف1!#REF! ->  | P23: =+كشف1!#REF! ->  | Q23: =+كشف1!#REF! ->  | R23: =+كشف1!#REF! ->  | S23: =+كشف1!#REF! ->  | T23: =+كشف1!#REF! ->  | U23: =+كشف1!#REF! ->  | V23: =+كشف1!#REF! ->  | W23: =+كشف1!#REF! ->  | X23: =+كشف1!#REF! ->  | Y23: =+كشف1!#REF! ->  | Z23: =+كشف1!#REF! ->  | AA23: =+كشف1!#REF! ->  | AB23: =+كشف1!#REF! ->  | AC23: =+كشف1!#REF! ->  | AD23: =+كشف1!#REF! ->  | AE23: =+كشف1!#REF! ->  | AF23: =+كشف1!#REF! ->  | AG23: =+كشف1!#REF! ->  | AH23: =+كشف1!#REF! ->  | AI23: =+كشف1!#REF! ->  | AJ23: =+كشف1!#REF! ->  | AK23: =+كشف1!#REF! ->  | AL23: =+كشف1!#REF! ->  | AM23: =+كشف1!#REF! ->  | AN23: =+كشف1!#REF! ->  | AO23: =+كشف1!#REF! ->  | AP23: =+كشف1!#REF! ->  | AQ23: =+كشف1!#REF! -> 
A24: 23 | C24: =+كشف1!#REF! ->  | D24: =+كشف1!#REF! ->  | E24: =+كشف1!#REF! ->  | F24: =+كشف1!#REF! ->  | G24: =+كشف1!#REF! ->  | H24: =+كشف1!#REF! ->  | I24: =+كشف1!#REF! ->  | J24: =+كشف1!#REF! ->  | K24: =+كشف1!#REF! ->  | L24: =+كشف1!#REF! ->  | M24: =+كشف1!#REF! ->  | N24: =+كشف1!#REF! ->  | O24: =+كشف1!#REF! ->  | P24: =+كشف1!#REF! ->  | Q24: =+كشف1!#REF! ->  | R24: =+كشف1!#REF! ->  | S24: =+كشف1!#REF! ->  | T24: =+كشف1!#REF! ->  | U24: =+كشف1!#REF! ->  | V24: =+كشف1!#REF! ->  | W24: =+كشف1!#REF! ->  | X24: =+كشف1!#REF! ->  | Y24: =+كشف1!#REF! ->  | Z24: =+كشف1!#REF! ->  | AA24: =+كشف1!#REF! ->  | AB24: =+كشف1!#REF! ->  | AC24: =+كشف1!#REF! ->  | AD24: =+كشف1!#REF! ->  | AE24: =+كشف1!#REF! ->  | AF24: =+كشف1!#REF! ->  | AG24: =+كشف1!#REF! ->  | AH24: =+كشف1!#REF! ->  | AI24: =+كشف1!#REF! ->  | AJ24: =+كشف1!#REF! ->  | AK24: =+كشف1!#REF! ->  | AL24: =+كشف1!#REF! ->  | AM24: =+كشف1!#REF! ->  | AN24: =+كشف1!#REF! ->  | AO24: =+كشف1!#REF! ->  | AP24: =+كشف1!#REF! ->  | AQ24: =+كشف1!#REF! -> 
A25: 24 | C25: =+كشف1!C20 -> 804.46 | D25: =+كشف1!D20 -> 4 | E25: =+كشف1!E20 -> 6 | F25: =+كشف1!F20 -> 7 | G25: =+كشف1!G20 -> 10 | H25: =+كشف1!H20 -> 24.92 | I25: =+كشف1!I20 -> 26.2 | J25: =+كشف1!J20 -> 65 | K25: =+كشف1!L20 -> 131 | L25: =+كشف1!#REF! ->  | M25: =+كشف1!M20 -> 131 | N25: =+كشف1!N20 -> 327.5 | O25: =+كشف1!O20 -> 400 | P25: =+كشف1!P20 -> 0 | Q25: =+كشف1!Q20 -> 0 | R25: =+كشف1!R20 -> 0 | S25: =+كشف1!#REF! ->  | T25: =+كشف1!#REF! ->  | U25: =+كشف1!S20 -> 0 | V25: =+كشف1!T20 -> 0 | W25: =+كشف1!U20 -> 0 | X25: =+كشف1!V20 -> 1937.08 | Y25: =+كشف1!W20 -> 80.45 | Z25: =+كشف1!X20 -> 112.3 | AA25: =+كشف1!Y20 -> 64.4 | AB25: =+كشف1!Z20 -> 8.05 | AC25: =+كشف1!AB20 -> 4.5 | AD25: =+كشف1!AC20 -> 2 | AE25: =+كشف1!AD20 -> 56.4 | AF25: =+كشف1!AE20 -> 0 | AG25: =+كشف1!AF20 -> 0 | AH25: =+كشف1!AG20 -> 0 | AI25: =+كشف1!AH20 -> 0 | AJ25: =+كشف1!AI20 -> 0 | AK25: =+كشف1!AJ20 -> 1 | AL25: =+كشف1!AK20 -> 0 | AM25: =+كشف1!AL20 -> 5 | AN25: =+كشف1!AM20 -> 0 | AO25: =+كشف1!AP20 -> 355.35 | AP25: =+كشف1!AQ20 -> 1581.73 | AQ25: =+كشف1!AR20 -> وليد محمد سيد
A26: 25 | C26: =+كشف1!#REF! ->  | D26: =+كشف1!#REF! ->  | E26: =+كشف1!#REF! ->  | F26: =+كشف1!#REF! ->  | G26: =+كشف1!#REF! ->  | H26: =+كشف1!#REF! ->  | I26: =+كشف1!#REF! ->  | J26: =+كشف1!#REF! ->  | K26: =+كشف1!#REF! ->  | L26: =+كشف1!#REF! ->  | M26: =+كشف1!#REF! ->  | N26: =+كشف1!#REF! ->  | O26: =+كشف1!#REF! ->  | P26: =+كشف1!#REF! ->  | Q26: =+كشف1!#REF! ->  | R26: =+كشف1!#REF! ->  | S26: =+كشف1!#REF! ->  | T26: =+كشف1!#REF! ->  | U26: =+كشف1!#REF! ->  | V26: =+كشف1!#REF! ->  | W26: =+كشف1!#REF! ->  | X26: =+كشف1!#REF! ->  | Y26: =+كشف1!#REF! ->  | Z26: =+كشف1!#REF! ->  | AA26: =+كشف1!#REF! ->  | AB26: =+كشف1!#REF! ->  | AC26: =+كشف1!#REF! ->  | AD26: =+كشف1!#REF! ->  | AE26: =+كشف1!#REF! ->  | AF26: =+كشف1!#REF! ->  | AG26: =+كشف1!#REF! ->  | AH26: =+كشف1!#REF! ->  | AI26: =+كشف1!#REF! ->  | AJ26: =+كشف1!#REF! ->  | AK26: =+كشف1!#REF! ->  | AL26: =+كشف1!#REF! ->  | AM26: =+كشف1!#REF! ->  | AN26: =+كشف1!#REF! ->  | AO26: =+كشف1!#REF! ->  | AP26: =+كشف1!#REF! ->  | AQ26: =+كشف1!#REF! -> 
A27: 26 | C27: =+كشف1!#REF! ->  | D27: =+كشف1!#REF! ->  | E27: =+كشف1!#REF! ->  | F27: =+كشف1!#REF! ->  | G27: =+كشف1!#REF! ->  | H27: =+كشف1!#REF! ->  | I27: =+كشف1!#REF! ->  | J27: =+كشف1!#REF! ->  | K27: =+كشف1!#REF! ->  | L27: =+كشف1!#REF! ->  | M27: =+كشف1!#REF! ->  | N27: =+كشف1!#REF! ->  | O27: =+كشف1!#REF! ->  | P27: =+كشف1!#REF! ->  | Q27: =+كشف1!#REF! ->  | R27: =+كشف1!#REF! ->  | S27: =+كشف1!#REF! ->  | T27: =+كشف1!#REF! ->  | U27: =+كشف1!#REF! ->  | V27: =+كشف1!#REF! ->  | W27: =+كشف1!#REF! ->  | X27: =+كشف1!#REF! ->  | Y27: =+كشف1!#REF! ->  | Z27: =+كشف1!#REF! ->  | AA27: =+كشف1!#REF! ->  | AB27: =+كشف1!#REF! ->  | AC27: =+كشف1!#REF! ->  | AD27: =+كشف1!#REF! ->  | AE27: =+كشف1!#REF! ->  | AF27: =+كشف1!#REF! ->  | AG27: =+كشف1!#REF! ->  | AH27: =+كشف1!#REF! ->  | AI27: =+كشف1!#REF! ->  | AJ27: =+كشف1!#REF! ->  | AK27: =+كشف1!#REF! ->  | AL27: =+كشف1!#REF! ->  | AM27: =+كشف1!#REF! ->  | AN27: =+كشف1!#REF! ->  | AO27: =+كشف1!#REF! ->  | AP27: =+كشف1!#REF! ->  | AQ27: =+كشف1!#REF! -> 
A28: 27 | C28: =+كشف1!#REF! ->  | D28: =+كشف1!#REF! ->  | E28: =+كشف1!#REF! ->  | F28: =+كشف1!#REF! ->  | G28: =+كشف1!#REF! ->  | H28: =+كشف1!#REF! ->  | I28: =+كشف1!#REF! ->  | J28: =+كشف1!#REF! ->  | K28: =+كشف1!#REF! ->  | L28: =+كشف1!#REF! ->  | M28: =+كشف1!#REF! ->  | N28: =+كشف1!#REF! ->  | O28: =+كشف1!#REF! ->  | P28: =+كشف1!#REF! ->  | Q28: =+كشف1!#REF! ->  | R28: =+كشف1!#REF! ->  | S28: =+كشف1!#REF! ->  | T28: =+كشف1!#REF! ->  | U28: =+كشف1!#REF! ->  | V28: =+كشف1!#REF! ->  | W28: =+كشف1!#REF! ->  | X28: =+كشف1!#REF! ->  | Y28: =+كشف1!#REF! ->  | Z28: =+كشف1!#REF! ->  | AA28: =+كشف1!#REF! ->  | AB28: =+كشف1!#REF! ->  | AC28: =+كشف1!#REF! ->  | AD28: =+كشف1!#REF! ->  | AE28: =+كشف1!#REF! ->  | AF28: =+كشف1!#REF! ->  | AG28: =+كشف1!#REF! ->  | AH28: =+كشف1!#REF! ->  | AI28: =+كشف1!#REF! ->  | AJ28: =+كشف1!#REF! ->  | AK28: =+كشف1!#REF! ->  | AL28: =+كشف1!#REF! ->  | AM28: =+كشف1!#REF! ->  | AN28: =+كشف1!#REF! ->  | AO28: =+كشف1!#REF! ->  | AP28: =+كشف1!#REF! ->  | AQ28: =+كشف1!#REF! -> 
A29: 28 | C29: =+كشف3!C28 -> 34736.89 | D29: =+كشف3!D28 -> 136 | E29: =+كشف3!E28 -> 152 | F29: =+كشف3!F28 -> 268.1 | G29: =+كشف3!G28 -> 340 | H29: =+كشف3!H28 -> 1293.91 | I29: =+كشف3!I28 -> 1364.98 | J29: =+كشف3!J28 -> 3394 | K29: =+كشف3!K28 -> 80 | L29: =+كشف3!L28 -> 4949 | M29: =+كشف3!M28 -> 6822.79 | N29: =+كشف3!N28 -> 19093.31 | O29: =+كشف3!O28 -> 13125 | P29: =+كشف3!P28 -> 32003.43 | Q29: =+كشف3!Q28 -> 5240.73 | R29: =+كشف3!R28 -> 521.25 | S29: =+كشف3!S28 -> 2 | T29: =+كشف3!V28 -> 123523.39 | U29: =+كشف3!W28 -> 4465 | V29: =+كشف3!X28 -> 7856.3 | W29: =+كشف3!Y28 -> 3572.2 | X29: =+كشف3!Z28 -> 447.6 | Y29: =+كشف3!AA28 -> 786.8 | Z29: =+كشف3!AB28 -> 162 | AA29: =+كشف3!AC28 -> 72 | AB29: =+كشف3!AD28 -> 2459 | AC29: =+كشف3!AE28 -> 22 | AD29: =+كشف3!AF28 -> 110 | AE29: =+كشف3!AG28 -> 243.6 | AF29: =+كشف3!AI28 -> 49.51 | AG29: =+كشف3!AK28 -> 4 | AH29: =+كشف3!AL28 -> 1627 | AI29: =+كشف3!AN28 -> 300 | AJ29: =+كشف3!AO28 -> 583 | AK29: =+كشف3!AP28 -> 22081.51 | AL29: =+كشف3!AQ28 -> 101441.88 | AM29: =+كشف3!AR28 -> الاجمالى | AN29: =+كشف3!#REF! ->  | AO29: =+كشف3!#REF! ->  | AP29: =+كشف3!#REF! ->  | AQ29: =+كشف3!#REF! -> 
A30: 29 | C30: =+كشف2!#REF! ->  | D30: =+كشف2!#REF! ->  | E30: =+كشف2!#REF! ->  | F30: =+كشف2!#REF! ->  | G30: =+كشف2!#REF! ->  | H30: =+كشف2!#REF! ->  | I30: =+كشف2!#REF! ->  | J30: =+كشف2!#REF! ->  | K30: =+كشف2!#REF! ->  | L30: =+كشف2!#REF! ->  | M30: =+كشف2!#REF! ->  | N30: =+كشف2!#REF! ->  | O30: =+كشف2!#REF! ->  | P30: =+كشف2!#REF! ->  | Q30: =+كشف2!#REF! ->  | R30: =+كشف2!#REF! ->  | S30: =+كشف2!#REF! ->  | T30: =+كشف2!#REF! ->  | U30: =+كشف2!#REF! ->  | V30: =+كشف2!#REF! ->  | W30: =+كشف2!#REF! ->  | X30: =+كشف2!#REF! ->  | Y30: =+كشف2!#REF! ->  | Z30: =+كشف2!#REF! ->  | AA30: =+كشف2!#REF! ->  | AB30: =+كشف2!#REF! ->  | AC30: =+كشف2!#REF! ->  | AD30: =+كشف2!#REF! ->  | AE30: =+كشف2!#REF! ->  | AF30: =+كشف2!#REF! ->  | AG30: =+كشف2!#REF! ->  | AH30: =+كشف2!#REF! ->  | AI30: =+كشف2!#REF! ->  | AJ30: =+كشف2!#REF! ->  | AK30: =+كشف2!#REF! ->  | AL30: =+كشف2!#REF! ->  | AM30: =+كشف2!#REF! ->  | AN30: =+كشف2!#REF! ->  | AO30: =+كشف2!#REF! ->  | AP30: =+كشف2!#REF! ->  | AQ30: =+كشف2!#REF! -> 
A31: 30 | C31: =+كشف2!#REF! ->  | D31: =+كشف2!#REF! ->  | E31: =+كشف2!#REF! ->  | F31: =+كشف2!#REF! ->  | G31: =+كشف2!#REF! ->  | H31: =+كشف2!#REF! ->  | I31: =+كشف2!#REF! ->  | J31: =+كشف2!#REF! ->  | K31: =+كشف2!#REF! ->  | L31: =+كشف2!#REF! ->  | M31: =+كشف2!#REF! ->  | N31: =+كشف2!#REF! ->  | O31: =+كشف2!#REF! ->  | P31: =+كشف2!#REF! ->  | Q31: =+كشف2!#REF! ->  | R31: =+كشف2!#REF! ->  | S31: =+كشف2!#REF! ->  | T31: =+كشف2!#REF! ->  | U31: =+كشف2!#REF! ->  | V31: =+كشف2!#REF! ->  | W31: =+كشف2!#REF! ->  | X31: =+كشف2!#REF! ->  | Y31: =+كشف2!#REF! ->  | Z31: =+كشف2!#REF! ->  | AA31: =+كشف2!#REF! ->  | AB31: =+كشف2!#REF! ->  | AC31: =+كشف2!#REF! ->  | AD31: =+كشف2!#REF! ->  | AE31: =+كشف2!#REF! ->  | AF31: =+كشف2!#REF! ->  | AG31: =+كشف2!#REF! ->  | AH31: =+كشف2!#REF! ->  | AI31: =+كشف2!#REF! ->  | AJ31: =+كشف2!#REF! ->  | AK31: =+كشف2!#REF! ->  | AL31: =+كشف2!#REF! ->  | AM31: =+كشف2!#REF! ->  | AN31: =+كشف2!#REF! ->  | AO31: =+كشف2!#REF! ->  | AP31: =+كشف2!#REF! ->  | AQ31: =+كشف2!#REF! -> 
A32: 31 | C32: =+كشف1!#REF! ->  | D32: =+كشف1!#REF! ->  | E32: =+كشف1!#REF! ->  | F32: =+كشف1!#REF! ->  | G32: =+كشف1!#REF! ->  | H32: =+كشف1!#REF! ->  | I32: =+كشف1!#REF! ->  | J32: =+كشف1!#REF! ->  | K32: =+كشف1!#REF! ->  | L32: =+كشف1!#REF! ->  | M32: =+كشف1!#REF! ->  | N32: =+كشف1!#REF! ->  | O32: =+كشف1!#REF! ->  | P32: =+كشف1!#REF! ->  | Q32: =+كشف1!#REF! ->  | R32: =+كشف1!#REF! ->  | S32: =+كشف1!#REF! ->  | T32: =+كشف1!#REF! ->  | U32: =+كشف1!#REF! ->  | V32: =+كشف1!#REF! ->  | W32: =+كشف1!#REF! ->  | X32: =+كشف1!#REF! ->  | Y32: =+كشف1!#REF! ->  | Z32: =+كشف1!#REF! ->  | AA32: =+كشف1!#REF! ->  | AB32: =+كشف1!#REF! ->  | AC32: =+كشف1!#REF! ->  | AD32: =+كشف1!#REF! ->  | AE32: =+كشف1!#REF! ->  | AF32: =+كشف1!#REF! ->  | AG32: =+كشف1!#REF! ->  | AH32: =+كشف1!#REF! ->  | AI32: =+كشف1!#REF! ->  | AJ32: =+كشف1!#REF! ->  | AK32: =+كشف1!#REF! ->  | AL32: =+كشف1!#REF! ->  | AM32: =+كشف1!#REF! ->  | AN32: =+كشف1!#REF! ->  | AO32: =+كشف1!#REF! ->  | AP32: =+كشف1!#REF! ->  | AQ32: =+كشف1!#REF! -> 
A33: 32 | C33: =+كشف1!#REF! ->  | D33: =+كشف1!#REF! ->  | E33: =+كشف1!#REF! ->  | F33: =+كشف1!#REF! ->  | G33: =+كشف1!#REF! ->  | H33: =+كشف1!#REF! ->  | I33: =+كشف1!#REF! ->  | J33: =+كشف1!#REF! ->  | K33: =+كشف1!#REF! ->  | L33: =+كشف1!#REF! ->  | M33: =+كشف1!#REF! ->  | N33: =+كشف1!#REF! ->  | O33: =+كشف1!#REF! ->  | P33: =+كشف1!#REF! ->  | Q33: =+كشف1!#REF! ->  | R33: =+كشف1!#REF! ->  | S33: =+كشف1!#REF! ->  | T33: =+كشف1!#REF! ->  | U33: =+كشف1!#REF! ->  | V33: =+كشف1!#REF! ->  | W33: =+كشف1!#REF! ->  | X33: =+كشف1!#REF! ->  | Y33: =+كشف1!#REF! ->  | Z33: =+كشف1!#REF! ->  | AA33: =+كشف1!#REF! ->  | AB33: =+كشف1!#REF! ->  | AC33: =+كشف1!#REF! ->  | AD33: =+كشف1!#REF! ->  | AE33: =+كشف1!#REF! ->  | AF33: =+كشف1!#REF! ->  | AG33: =+كشف1!#REF! ->  | AH33: =+كشف1!#REF! ->  | AI33: =+كشف1!#REF! ->  | AJ33: =+كشف1!#REF! ->  | AK33: =+كشف1!#REF! ->  | AL33: =+كشف1!#REF! ->  | AM33: =+كشف1!#REF! ->  | AN33: =+كشف1!#REF! ->  | AO33: =+كشف1!#REF! ->  | AP33: =+كشف1!#REF! ->  | AQ33: =+كشف1!#REF! -> 
A34: 33 | C34: =+كشف1!C18 -> 819.8 | D34: =+كشف1!D18 -> 4 | E34: =+كشف1!E18 -> 6 | F34: =+كشف1!F18 -> 7 | G34: =+كشف1!G18 -> 10 | H34: =+كشف1!H18 -> 26.12 | I34: =+كشف1!I18 -> 27 | J34: =+كشف1!J18 -> 67 | K34: =+كشف1!L18 -> 135 | L34: =+كشف1!#REF! ->  | M34: =+كشف1!M18 -> 135 | N34: =+كشف1!N18 -> 337.5 | O34: =+كشف1!O18 -> 400 | P34: =+كشف1!P18 -> 0 | Q34: =+كشف1!Q18 -> 0 | R34: =+كشف1!R18 -> 0 | S34: =+كشف1!#REF! ->  | T34: =+كشف1!#REF! ->  | U34: =+كشف1!S18 -> 0 | V34: =+كشف1!T18 -> 0 | W34: =+كشف1!U18 -> 0 | X34: =+كشف1!V18 -> 1974.42 | Y34: =+كشف1!W18 -> 82 | Z34: =+كشف1!X18 -> 114.5 | AA34: =+كشف1!Y18 -> 65.6 | AB34: =+كشف1!Z18 -> 8.2 | AC34: =+كشف1!AB18 -> 4.5 | AD34: =+كشف1!AC18 -> 2 | AE34: =+كشف1!AD18 -> 57.4 | AF34: =+كشف1!AE18 -> 0 | AG34: =+كشف1!AF18 -> 0 | AH34: =+كشف1!AG18 -> 0 | AI34: =+كشف1!AH18 -> 0 | AJ34: =+كشف1!AI18 -> 0 | AK34: =+كشف1!AJ18 -> 1 | AL34: =+كشف1!AK18 -> 0 | AM34: =+كشف1!AL18 -> 5 | AN34: =+كشف1!AM18 -> 0 | AO34: =+كشف1!AP18 -> 361.65 | AP34: =+كشف1!AQ18 -> 1612.77 | AQ34: =+كشف1!AR18 -> ربيع رمضان ابراهيم
A35: 34 | C35: =+كشف3!#REF! ->  | D35: =+كشف3!#REF! ->  | E35: =+كشف3!#REF! ->  | F35: =+كشف3!#REF! ->  | G35: =+كشف3!#REF! ->  | H35: =+كشف3!#REF! ->  | I35: =+كشف3!#REF! ->  | J35: =+كشف3!#REF! ->  | K35: =+كشف3!#REF! ->  | L35: =+كشف3!#REF! ->  | M35: =+كشف3!#REF! ->  | N35: =+كشف3!#REF! ->  | O35: =+كشف3!#REF! ->  | P35: =+كشف3!#REF! ->  | Q35: =+كشف3!#REF! ->  | R35: =+كشف3!#REF! ->  | S35: =+كشف3!#REF! ->  | T35: =+كشف3!#REF! ->  | U35: =+كشف3!#REF! ->  | V35: =+كشف3!#REF! ->  | W35: =+كشف3!#REF! ->  | X35: =+كشف3!#REF! ->  | Y35: =+كشف3!#REF! ->  | Z35: =+كشف3!#REF! ->  | AA35: =+كشف3!#REF! ->  | AB35: =+كشف3!#REF! ->  | AC35: =+كشف3!#REF! ->  | AD35: =+كشف3!#REF! ->  | AE35: =+كشف3!#REF! ->  | AF35: =+كشف3!#REF! ->  | AG35: =+كشف3!#REF! ->  | AH35: =+كشف3!#REF! ->  | AI35: =+كشف3!#REF! ->  | AJ35: =+كشف3!#REF! ->  | AK35: =+كشف3!#REF! ->  | AL35: =+كشف3!#REF! ->  | AM35: =+كشف3!#REF! ->  | AN35: =+كشف3!#REF! ->  | AO35: =+كشف3!#REF! ->  | AP35: =+كشف3!#REF! ->  | AQ35: =+كشف3!#REF! -> 
A36: 35 | C36: =+كشف2!C17 -> 820.8 | D36: =+كشف2!D17 -> 4 | E36: =+كشف2!E17 -> 2 | F36: =+كشف2!F17 -> 7 | G36: =+كشف2!G17 -> 10 | H36: =+كشف2!H17 -> 24.92 | I36: =+كشف2!I17 -> 25.8 | J36: =+كشف2!J17 -> 64 | K36: =+كشف2!L17 -> 129 | L36: =+كشف2!#REF! ->  | M36: =+كشف2!M17 -> 129 | N36: =+كشف2!N17 -> 322.5 | O36: =+كشف2!O17 -> 400 | P36: =+كشف2!P17 -> 0 | Q36: =+كشف2!Q17 -> 0 | R36: =+كشف2!R17 -> 0 | S36: =+كشف2!S17 -> 0 | T36: =+كشف2!#REF! ->  | U36: =+كشف2!#REF! ->  | V36: =+كشف2!#REF! ->  | W36: =+كشف2!V17 -> 1939.02 | X36: =+كشف2!W17 -> 82.1 | Y36: =+كشف2!X17 -> 110.85 | Z36: =+كشف2!Y17 -> 65.7 | AA36: =+كشف2!Z17 -> 8.25 | AB36: =+كشف2!AA17 -> 11.1 | AC36: =+كشف2!AB17 -> 4.5 | AD36: =+كشف2!AC17 -> 2 | AE36: =+كشف2!AD17 -> 57.5 | AF36: =+كشف2!AE17 -> 0 | AG36: =+كشف2!AF17 -> 0 | AH36: =+كشف2!AG17 -> 0 | AI36: =+كشف2!AI17 -> 0 | AJ36: =+كشف2!AK17 -> 0 | AK36: =+كشف2!AL17 -> 5 | AL36: =+كشف2!#REF! ->  | AM36: =+كشف2!#REF! ->  | AN36: =+كشف2!AN17 -> 10 | AO36: =+كشف2!AP17 -> 358 | AP36: =+كشف2!AQ17 -> 1581.02 | AQ36: =+كشف2!AR16 -> مصطفى محمد عبدالحليم
A37: 36 | C37: =+كشف2!#REF! ->  | D37: =+كشف2!#REF! ->  | E37: =+كشف2!#REF! ->  | F37: =+كشف2!#REF! ->  | G37: =+كشف2!#REF! ->  | H37: =+كشف2!#REF! ->  | I37: =+كشف2!#REF! ->  | J37: =+كشف2!#REF! ->  | K37: =+كشف2!#REF! ->  | L37: =+كشف2!#REF! ->  | M37: =+كشف2!#REF! ->  | N37: =+كشف2!#REF! ->  | O37: =+كشف2!#REF! ->  | P37: =+كشف2!#REF! ->  | Q37: =+كشف2!#REF! ->  | R37: =+كشف2!#REF! ->  | S37: =+كشف2!#REF! ->  | T37: =+كشف2!#REF! ->  | U37: =+كشف2!#REF! ->  | V37: =+كشف2!#REF! ->  | W37: =+كشف2!#REF! ->  | X37: =+كشف2!#REF! ->  | Y37: =+كشف2!#REF! ->  | Z37: =+كشف2!#REF! ->  | AA37: =+كشف2!#REF! ->  | AB37: =+كشف2!#REF! ->  | AC37: =+كشف2!#REF! ->  | AD37: =+كشف2!#REF! ->  | AE37: =+كشف2!#REF! ->  | AF37: =+كشف2!#REF! ->  | AG37: =+كشف2!#REF! ->  | AH37: =+كشف2!#REF! ->  | AI37: =+كشف2!#REF! ->  | AJ37: =+كشف2!#REF! ->  | AK37: =+كشف2!#REF! ->  | AL37: =+كشف2!#REF! ->  | AM37: =+كشف2!#REF! ->  | AN37: =+كشف2!#REF! ->  | AO37: =+كشف2!#REF! ->  | AP37: =+كشف2!#REF! ->  | AQ37: =+كشف2!#REF! -> 
A38: 37 | C38: =+كشف2!C18 -> 0 | D38: =+كشف2!D18 -> 0 | E38: =+كشف2!E18 -> 0 | F38: =+كشف2!F18 -> 0 | G38: =+كشف2!G18 -> 0 | H38: =+كشف2!H18 -> 0 | I38: =+كشف2!I18 -> 0 | J38: =+كشف2!J18 -> 0 | K38: =+كشف2!K18 -> 0 | L38: =+كشف2!L18 -> 0 | M38: =+كشف2!M18 -> 0 | N38: =+كشف2!N18 -> 0 | O38: =+كشف2!O18 -> 0 | P38: =+كشف2!P18 -> 2164.12 | Q38: =+كشف2!Q18 -> 348.24 | R38: =+كشف2!R18 -> 39.23 | S38: =+كشف2!S18 -> 0 | T38: =+كشف2!#REF! ->  | U38: =+كشف2!#REF! ->  | V38: =+كشف2!#REF! ->  | W38: =+كشف2!V18 -> 2551.59 | X38: =+كشف2!W18 -> 65.05 | Y38: =+كشف2!X18 -> 190.1 | Z38: =+كشف2!Y18 -> 52.05 | AA38: =+كشف2!Z18 -> 6.55 | AB38: =+كشف2!AA18 -> 19.05 | AC38: =+كشف2!AB18 -> 0 | AD38: =+كشف2!AC18 -> 0 | AE38: =+كشف2!AD18 -> 0 | AF38: =+كشف2!AE18 -> 2 | AG38: =+كشف2!AF18 -> 10 | AH38: =+كشف2!AG18 -> 23 | AI38: =+كشف2!AI18 -> 0 | AJ38: =+كشف2!AK18 -> 0 | AK38: =+كشف2!AL18 -> 22 | AL38: =+كشف2!#REF! ->  | AM38: =+كشف2!#REF! ->  | AN38: =+كشف2!AN18 -> 11 | AO38: =+كشف2!AP18 -> 400.8 | AP38: =+كشف2!AQ18 -> 2150.79 | AQ38: =+كشف2!AR17 -> نجوى محمد اسماعيل
A39: 38 | C39: =+كشف2!C19 -> 0 | D39: =+كشف2!D19 -> 0 | E39: =+كشف2!E19 -> 0 | F39: =+كشف2!F19 -> 0 | G39: =+كشف2!G19 -> 0 | H39: =+كشف2!H19 -> 0 | I39: =+كشف2!I19 -> 0 | J39: =+كشف2!J19 -> 0 | K39: =+كشف2!K19 -> 0 | L39: =+كشف2!L19 -> 0 | M39: =+كشف2!M19 -> 0 | N39: =+كشف2!N19 -> 0 | O39: =+كشف2!O19 -> 0 | P39: =+كشف2!P19 -> 0 | Q39: =+كشف2!Q19 -> 0 | R39: =+كشف2!R19 -> 0 | S39: =+كشف2!S19 -> 0 | T39: =+كشف2!#REF! ->  | U39: =+كشف2!#REF! ->  | V39: =+كشف2!#REF! ->  | W39: =+كشف2!V19 -> 0 | X39: =+كشف2!W19 -> 0 | Y39: =+كشف2!X19 -> 0 | Z39: =+كشف2!Y19 -> 0 | AA39: =+كشف2!Z19 -> 0 | AB39: =+كشف2!AA19 -> 0 | AC39: =+كشف2!AB19 -> 0 | AD39: =+كشف2!AC19 -> 0 | AE39: =+كشف2!AD19 -> 0 | AF39: =+كشف2!AE19 -> 0 | AG39: =+كشف2!AF19 -> 0 | AH39: =+كشف2!AG19 -> 0 | AI39: =+كشف2!AI19 -> 0 | AJ39: =+كشف2!AK19 -> 0 | AK39: =+كشف2!AL19 -> 0 | AL39: =+كشف2!#REF! ->  | AM39: =+كشف2!#REF! ->  | AN39: =+كشف2!AN19 -> 0 | AO39: =+كشف2!AP19 -> 0 | AP39: =+كشف2!AQ19 -> 0 | AQ39: =+كشف2!AR18 -> سليمان عبدالله سليمان
A40: 39 | C40: =+كشف3!C26 -> 8861.77 | D40: =+كشف3!D26 -> 32 | E40: =+كشف3!E26 -> 40 | F40: =+كشف3!F26 -> 71 | G40: =+كشف3!G26 -> 80 | H40: =+كشف3!H26 -> 342.19 | I40: =+كشف3!I26 -> 363.18 | J40: =+كشف3!J26 -> 903 | K40: =+كشف3!K26 -> 0 | L40: =+كشف3!L26 -> 1035 | M40: =+كشف3!M26 -> 1816.03 | N40: =+كشف3!N26 -> 5319.61 | O40: =+كشف3!O26 -> 3025 | P40: =+كشف3!P26 -> 13856.81 | Q40: =+كشف3!Q26 -> 2337.27 | R40: =+كشف3!R26 -> 232.66 | S40: =+كشف3!S26 -> 0 | T40: =+كشف3!V26 -> 38315.52 | U40: =+كشف3!W26 -> 1326.85 | V40: =+كشف3!X26 -> 2502.05 | W40: =+كشف3!Y26 -> 1061 | X40: =+كشف3!Z26 -> 132.95 | Y40: =+كشف3!AA26 -> 250.65 | Z40: =+كشف3!AB26 -> 40.5 | AA40: =+كشف3!AC26 -> 18 | AB40: =+كشف3!AD26 -> 670.15 | AC40: =+كشف3!AE26 -> 10 | AD40: =+كشف3!AF26 -> 50 | AE40: =+كشف3!AG26 -> 120.5 | AF40: =+كشف3!AI26 -> 3.13 | AG40: =+كشف3!AK26 -> 0 | AH40: =+كشف3!AL26 -> 428 | AI40: =+كشف3!AN26 -> 0 | AJ40: =+كشف3!AO26 -> 177 | AK40: =+كشف3!AP26 -> 6639.78 | AL40: =+كشف3!AQ26 -> 31675.74 | AM40: =+كشف3!AR26 -> اجمالى كشف 2 | AN40: =+كشف3!#REF! ->  | AO40: =+كشف3!#REF! ->  | AP40: =+كشف3!#REF! ->  | AQ40: =+كشف3!#REF! -> 
A41: 40 | C41: =+كشف2!#REF! ->  | D41: =+كشف2!#REF! ->  | E41: =+كشف2!#REF! ->  | F41: =+كشف2!#REF! ->  | G41: =+كشف2!#REF! ->  | H41: =+كشف2!#REF! ->  | I41: =+كشف2!#REF! ->  | J41: =+كشف2!#REF! ->  | K41: =+كشف2!#REF! ->  | L41: =+كشف2!#REF! ->  | M41: =+كشف2!#REF! ->  | N41: =+كشف2!#REF! ->  | O41: =+كشف2!#REF! ->  | P41: =+كشف2!#REF! ->  | Q41: =+كشف2!#REF! ->  | R41: =+كشف2!#REF! ->  | S41: =+كشف2!#REF! ->  | T41: =+كشف2!#REF! ->  | U41: =+كشف2!#REF! ->  | V41: =+كشف2!#REF! ->  | W41: =+كشف2!#REF! ->  | X41: =+كشف2!#REF! ->  | Y41: =+كشف2!#REF! ->  | Z41: =+كشف2!#REF! ->  | AA41: =+كشف2!#REF! ->  | AB41: =+كشف2!#REF! ->  | AC41: =+كشف2!#REF! ->  | AD41: =+كشف2!#REF! ->  | AE41: =+كشف2!#REF! ->  | AF41: =+كشف2!#REF! ->  | AG41: =+كشف2!#REF! ->  | AH41: =+كشف2!#REF! ->  | AI41: =+كشف2!#REF! ->  | AJ41: =+كشف2!#REF! ->  | AK41: =+كشف2!#REF! ->  | AL41: =+كشف2!#REF! ->  | AM41: =+كشف2!#REF! ->  | AN41: =+كشف2!#REF! ->  | AO41: =+كشف2!#REF! ->  | AP41: =+كشف2!#REF! ->  | AQ41: =+كشف2!#REF! -> 
A42: 41 | C42: =+كشف2!#REF! ->  | D42: =+كشف2!#REF! ->  | E42: =+كشف2!#REF! ->  | F42: =+كشف2!#REF! ->  | G42: =+كشف2!#REF! ->  | H42: =+كشف2!#REF! ->  | I42: =+كشف2!#REF! ->  | J42: =+كشف2!#REF! ->  | K42: =+كشف2!#REF! ->  | L42: =+كشف2!#REF! ->  | M42: =+كشف2!#REF! ->  | N42: =+كشف2!#REF! ->  | O42: =+كشف2!#REF! ->  | P42: =+كشف2!#REF! ->  | Q42: =+كشف2!#REF! ->  | R42: =+كشف2!#REF! ->  | S42: =+كشف2!#REF! ->  | T42: =+كشف2!#REF! ->  | U42: =+كشف2!#REF! ->  | V42: =+كشف2!#REF! ->  | W42: =+كشف2!#REF! ->  | X42: =+كشف2!#REF! ->  | Y42: =+كشف2!#REF! ->  | Z42: =+كشف2!#REF! ->  | AA42: =+كشف2!#REF! ->  | AB42: =+كشف2!#REF! ->  | AC42: =+كشف2!#REF! ->  | AD42: =+كشف2!#REF! ->  | AE42: =+كشف2!#REF! ->  | AF42: =+كشف2!#REF! ->  | AG42: =+كشف2!#REF! ->  | AH42: =+كشف2!#REF! ->  | AI42: =+كشف2!#REF! ->  | AJ42: =+كشف2!#REF! ->  | AK42: =+كشف2!#REF! ->  | AL42: =+كشف2!#REF! ->  | AM42: =+كشف2!#REF! ->  | AN42: =+كشف2!#REF! ->  | AO42: =+كشف2!#REF! ->  | AP42: =+كشف2!#REF! ->  | AQ42: =+كشف2!#REF! -> 
A43: 42 | C43: =+كشف3!C6 -> 1517.68 | D43: =+كشف3!D6 -> 4 | E43: =+كشف3!E6 -> 6 | F43: =+كشف3!F6 -> 12.5 | G43: =+كشف3!G6 -> 10 | H43: =+كشف3!H6 -> 64.92 | I43: =+كشف3!I6 -> 69.06 | J43: =+كشف3!J6 -> 172 | K43: =+كشف3!L6 -> 172 | L43: =+كشف3!#REF! ->  | M43: =+كشف3!M6 -> 345.31 | N43: =+كشف3!N6 -> 1208.58 | O43: =+كشف3!O6 -> 350 | P43: =+كشف3!P6 -> 0 | Q43: =+كشف3!Q6 -> 0 | R43: =+كشف3!R6 -> 0 | S43: =+كشف3!S6 -> 2 | T43: =+كشف3!V6 -> 3934.05 | U43: =+كشف3!W6 -> 151 | V43: =+كشف3!X6 -> 240.65 | W43: =+كشف3!Y6 -> 121.45 | X43: =+كشف3!Z6 -> 15.1 | Y43: =+كشف3!AA6 -> 24.1 | Z43: =+كشف3!AB6 -> 4.5 | AA43: =+كشف3!AC6 -> 2 | AB43: =+كشف3!AD6 -> 106.25 | AC43: =+كشف3!AE6 -> 0 | AD43: =+كشف3!AF6 -> 0 | AE43: =+كشف3!AG6 -> 0 | AF43: =+كشف3!AI6 -> 0 | AG43: =+كشف3!AK6 -> 0 | AH43: =+كشف3!AL6 -> 30 | AI43: =+كشف3!AN6 -> 0 | AJ43: =+كشف3!AO6 -> 17 | AK43: =+كشف3!AP6 -> 713.05 | AL43: =+كشف3!AQ6 -> 3221 | AM43: =+كشف3!AR6 -> عبدالكريم عبدالمنعم عبدالرحمن | AN43: =+كشف3!#REF! ->  | AO43: =+كشف3!#REF! ->  | AP43: =+كشف3!#REF! ->  | AQ43: =+كشف3!#REF! -> 
A44: 43 | C44: =+كشف1!C7 -> 762.32 | D44: =+كشف1!D7 -> 4 | E44: =+كشف1!E7 -> 6 | F44: =+كشف1!F7 -> 4.8 | G44: =+كشف1!G7 -> 10 | H44: =+كشف1!H7 -> 24.12 | I44: =+كشف1!I7 -> 25 | J44: =+كشف1!J7 -> 62 | K44: =+كشف1!L7 -> 187 | L44: =+كشف1!#REF! ->  | M44: =+كشف1!M7 -> 125 | N44: =+كشف1!N7 -> 250 | O44: =+كشف1!O7 -> 400 | P44: =+كشف1!P7 -> 0 | Q44: =+كشف1!#REF! ->  | R44: =+كشف1!#REF! ->  | S44: =+كشف1!#REF! ->  | T44: =+كشف1!#REF! ->  | U44: =+كشف1!S7 -> 0 | V44: =+كشف1!T7 -> 0 | W44: =+كشف1!U7 -> 0 | X44: =+كشف1!V7 -> 1860.24 | Y44: =+كشف1!W7 -> 76.25 | Z44: =+كشف1!X7 -> 108.8 | AA44: =+كشف1!Y7 -> 61 | AB44: =+كشف1!Z7 -> 7.65 | AC44: =+كشف1!AB7 -> 4.5 | AD44: =+كشف1!AC7 -> 2 | AE44: =+كشف1!AD7 -> 53.4 | AF44: =+كشف1!AE7 -> 0 | AG44: =+كشف1!AF7 -> 0 | AH44: =+كشف1!AG7 -> 0 | AI44: =+كشف1!AH7 -> 0 | AJ44: =+كشف1!AI7 -> 40 | AK44: =+كشف1!AJ7 -> 1 | AL44: =+كشف1!AK7 -> 0 | AM44: =+كشف1!AL7 -> 3 | AN44: =+كشف1!AM7 -> 50 | AO44: =+كشف1!AP7 -> 427.5 | AP44: =+كشف1!AQ7 -> 1432.74 | AQ44: =+كشف1!AR7 -> السيد شوقى فخرى
A45: 44 | C45: =+كشف3!C7 -> 0 | D45: =+كشف3!D7 -> 0 | E45: =+كشف3!E7 -> 0 | F45: =+كشف3!F7 -> 0 | G45: =+كشف3!G7 -> 0 | H45: =+كشف3!H7 -> 0 | I45: =+كشف3!I7 -> 0 | J45: =+كشف3!J7 -> 0 | K45: =+كشف3!L7 -> 0 | L45: =+كشف3!#REF! ->  | M45: =+كشف3!M7 -> 0 | N45: =+كشف3!N7 -> 0 | O45: =+كشف3!O7 -> 0 | P45: =+كشف3!P7 -> 2234.84 | Q45: =+كشف3!Q7 -> 365.97 | R45: =+كشف3!R7 -> 45.96 | S45: =+كشف3!S7 -> 0 | T45: =+كشف3!V7 -> 2646.77 | U45: =+كشف3!W7 -> 67.7 | V45: =+كشف3!X7 -> 197 | W45: =+كشف3!Y7 -> 54.2 | X45: =+كشف3!Z7 -> 6.8 | Y45: =+كشف3!AA7 -> 19.7 | Z45: =+كشف3!AB7 -> 0 | AA45: =+كشف3!AC7 -> 0 | AB45: =+كشف3!AD7 -> 0 | AC45: =+كشف3!AE7 -> 0 | AD45: =+كشف3!AF7 -> 0 | AE45: =+كشف3!AG7 -> 0 | AF45: =+كشف3!AI7 -> 0 | AG45: =+كشف3!AK7 -> 0 | AH45: =+كشف3!AL7 -> 25 | AI45: =+كشف3!AN7 -> 0 | AJ45: =+كشف3!AO7 -> 12 | AK45: =+كشف3!AP7 -> 382.4 | AL45: =+كشف3!AQ7 -> 2264.37 | AM45: =+كشف3!AR7 -> مصطفى كامل خليفه | AN45: =+كشف3!#REF! ->  | AO45: =+كشف3!#REF! ->  | AP45: =+كشف3!#REF! ->  | AQ45: =+كشف3!#REF! -> 
A46: 45 | C46: =+كشف3!C8 -> 1197.24 | D46: =+كشف3!D8 -> 4 | E46: =+كشف3!E8 -> 6 | F46: =+كشف3!F8 -> 9.5 | G46: =+كشف3!G8 -> 10 | H46: =+كشف3!H8 -> 48.35 | I46: =+كشف3!I8 -> 51.49 | J46: =+كشف3!J8 -> 128 | K46: =+كشف3!L8 -> 128 | L46: =+كشف3!#REF! ->  | M46: =+كشف3!M8 -> 257.49 | N46: =+كشف3!N8 -> 772.47 | O46: =+كشف3!O8 -> 375 | P46: =+كشف3!P8 -> 0 | Q46: =+كشف3!Q8 -> 0 | R46: =+كشف3!R8 -> 0 | S46: =+كشف3!S8 -> 0 | T46: =+كشف3!V8 -> 2987.54 | U46: =+كشف3!W8 -> 119.75 | V46: =+كشف3!X8 -> 178.05 | W46: =+كشف3!Y8 -> 95.8 | X46: =+كشف3!Z8 -> 12 | Y46: =+كشف3!AA8 -> 17.85 | Z46: =+كشف3!AB8 -> 4.5 | AA46: =+كشف3!AC8 -> 2 | AB46: =+كشف3!AD8 -> 83.85 | AC46: =+كشف3!AE8 -> 0 | AD46: =+كشف3!AF8 -> 0 | AE46: =+كشف3!AG8 -> 0 | AF46: =+كشف3!AI8 -> 0 | AG46: =+كشف3!AK8 -> 0 | AH46: =+كشف3!AL8 -> 15 | AI46: =+كشف3!AN8 -> 0 | AJ46: =+كشف3!AO8 -> 14 | AK46: =+كشف3!AP8 -> 543.8 | AL46: =+كشف3!AQ8 -> 2443.74 | AM46: =+كشف3!AR8 -> عبدالعزيز يوسف سيد | AN46: =+كشف3!#REF! ->  | AO46: =+كشف3!#REF! ->  | AP46: =+كشف3!#REF! ->  | AQ46: =+كشف3!#REF! -> 
A47: 46 | C47: =+كشف1!C6 -> 0 | D47: =+كشف1!D6 -> 0 | E47: =+كشف1!E6 -> 0 | F47: =+كشف1!F6 -> 0 | G47: =+كشف1!G6 -> 0 | H47: =+كشف1!H6 -> 0 | I47: =+كشف1!I6 -> 0 | J47: =+كشف1!J6 -> 0 | K47: =+كشف1!L6 -> 0 | L47: =+كشف1!#REF! ->  | M47: =+كشف1!M6 -> 0 | N47: =+كشف1!N6 -> 0 | O47: =+كشف1!O6 -> 0 | P47: =+كشف1!Q6 -> 432.14 | Q47: =+كشف1!R6 -> 44.75 | R47: =+كشف1!#REF! ->  | S47: =+كشف1!#REF! ->  | T47: =+كشف1!#REF! ->  | U47: =+كشف1!S6 -> 0 | V47: =+كشف1!T6 -> 0 | W47: =+كشف1!U6 -> 0 | X47: =+كشف1!V6 -> 2963.43 | Y47: =+كشف1!W6 -> 81.15 | Z47: =+كشف1!X6 -> 215.2 | AA47: =+كشف1!Y6 -> 64.6 | AB47: =+كشف1!Z6 -> 8.15 | AC47: =+كشف1!AB6 -> 0 | AD47: =+كشف1!AC6 -> 0 | AE47: =+كشف1!AD6 -> 0 | AF47: =+كشف1!AE6 -> 2 | AG47: =+كشف1!AF6 -> 10 | AH47: =+كشف1!AG6 -> 31.3 | AI47: =+كشف1!AH6 -> 0 | AJ47: =+كشف1!AI6 -> 6.38 | AK47: =+كشف1!AJ6 -> 0 | AL47: =+كشف1!#REF! ->  | AM47: =+كشف1!AL6 -> 30 | AN47: =+كشف1!AM6 -> 0 | AO47: =+كشف1!AP6 -> 483.33 | AP47: =+كشف1!AQ6 -> 2480.1 | AQ47: =+كشف1!AR6 -> اكرام خليل امبارك
A48: 47 | C48: =+كشف3!C9 -> 948.34 | D48: =+كشف3!D9 -> 4 | E48: =+كشف3!E9 -> 6 | F48: =+كشف3!F9 -> 7 | G48: =+كشف3!G9 -> 10 | H48: =+كشف3!H9 -> 33.56 | I48: =+كشف3!I9 -> 35.75 | J48: =+كشف3!J9 -> 89 | K48: =+كشف3!L9 -> 178 | L48: =+كشف3!#REF! ->  | M48: =+كشف3!M9 -> 178.78 | N48: =+كشف3!N9 -> 446.95 | O48: =+كشف3!O9 -> 375 | P48: =+كشف3!P9 -> 0 | Q48: =+كشف3!Q9 -> 0 | R48: =+كشف3!R9 -> 0 | S48: =+كشف3!S9 -> 0 | T48: =+كشف3!V9 -> 2312.38 | U48: =+كشف3!W9 -> 94.85 | V48: =+كشف3!X9 -> 135.4 | W48: =+كشف3!Y9 -> 75.9 | X48: =+كشف3!Z9 -> 9.5 | Y48: =+كشف3!AA9 -> 13.55 | Z48: =+كشف3!AB9 -> 4.5 | AA48: =+كشف3!AC9 -> 2 | AB48: =+كشف3!AD9 -> 66.4 | AC48: =+كشف3!AE9 -> 0 | AD48: =+كشف3!AF9 -> 0 | AE48: =+كشف3!AG9 -> 0 | AF48: =+كشف3!AI9 -> 0 | AG48: =+كشف3!AK9 -> 0 | AH48: =+كشف3!AL9 -> 8 | AI48: =+كشف3!AN9 -> 0 | AJ48: =+كشف3!AO9 -> 12 | AK48: =+كشف3!AP9 -> 423.1 | AL48: =+كشف3!AQ9 -> 1889.28 | AM48: =+كشف3!AR9 -> عبده موسى عبدالعظيم | AN48: =+كشف3!#REF! ->  | AO48: =+كشف3!#REF! ->  | AP48: =+كشف3!#REF! ->  | AQ48: =+كشف3!#REF! -> 
A49: 48 | C49: =+كشف3!C11 -> 0 | D49: =+كشف3!D11 -> 0 | E49: =+كشف3!E11 -> 0 | F49: =+كشف3!F11 -> 0 | G49: =+كشف3!G11 -> 0 | H49: =+كشف3!H11 -> 0 | I49: =+كشف3!I11 -> 0 | J49: =+كشف3!J11 -> 0 | K49: =+كشف3!L11 -> 0 | L49: =+كشف3!#REF! ->  | M49: =+كشف3!M11 -> 0 | N49: =+كشف3!N11 -> 0 | O49: =+كشف3!O11 -> 0 | P49: =+كشف3!P11 -> 2635.15 | Q49: =+كشف3!Q11 -> 468.87 | R49: =+كشف3!R11 -> 45.89 | S49: =+كشف3!S11 -> 0 | T49: =+كشف3!V11 -> 3149.91 | U49: =+كشف3!W11 -> 87.6 | V49: =+كشف3!X11 -> 227.4 | W49: =+كشف3!Y11 -> 70.15 | X49: =+كشف3!Z11 -> 8.8 | Y49: =+كشف3!AA11 -> 22.75 | Z49: =+كشف3!AB11 -> 0 | AA49: =+كشف3!AC11 -> 0 | AB49: =+كشف3!AD11 -> 0 | AC49: =+كشف3!AE11 -> 2 | AD49: =+كشف3!AF11 -> 10 | AE49: =+كشف3!AG11 -> 31.05 | AF49: =+كشف3!AI11 -> 0 | AG49: =+كشف3!AK11 -> 0 | AH49: =+كشف3!AL11 -> 33 | AI49: =+كشف3!AN11 -> 0 | AJ49: =+كشف3!AO11 -> 13 | AK49: =+كشف3!AP11 -> 505.75 | AL49: =+كشف3!AQ11 -> 2644.16 | AM49: =+كشف3!AR11 -> محمد عبدالسيد حسن | AN49: =+كشف3!#REF! ->  | AO49: =+كشف3!#REF! ->  | AP49: =+كشف3!#REF! ->  | AQ49: =+كشف3!#REF! -> 
A50: 49 | C50: =+كشف3!C12 -> 1261.15 | D50: =+كشف3!D12 -> 4 | E50: =+كشف3!E12 -> 6 | F50: =+كشف3!F12 -> 9.5 | G50: =+كشف3!G12 -> 10 | H50: =+كشف3!H12 -> 51.92 | I50: =+كشف3!I12 -> 55.25 | J50: =+كشف3!J12 -> 138 | K50: =+كشف3!L12 -> 138 | L50: =+كشف3!#REF! ->  | M50: =+كشف3!M12 -> 276.26 | N50: =+كشف3!N12 -> 828.79 | O50: =+كشف3!O12 -> 375 | P50: =+كشف3!P12 -> 0 | Q50: =+كشف3!Q12 -> 0 | R50: =+كشف3!R12 -> 0 | S50: =+كشف3!S12 -> 0 | T50: =+كشف3!V12 -> 3153.87 | U50: =+كشف3!W12 -> 126.15 | V50: =+كشف3!X12 -> 188.3 | W50: =+كشف3!Y12 -> 100.9 | X50: =+كشف3!Z12 -> 12.65 | Y50: =+كشف3!AA12 -> 18.85 | Z50: =+كشف3!AB12 -> 4.5 | AA50: =+كشف3!AC12 -> 2 | AB50: =+كشف3!AD12 -> 88.3 | AC50: =+كشف3!AE12 -> 0 | AD50: =+كشف3!AF12 -> 0 | AE50: =+كشف3!AG12 -> 0 | AF50: =+كشف3!AI12 -> 0 | AG50: =+كشف3!AK12 -> 0 | AH50: =+كشف3!AL12 -> 20 | AI50: =+كشف3!AN12 -> 0 | AJ50: =+كشف3!AO12 -> 15 | AK50: =+كشف3!AP12 -> 577.65 | AL50: =+كشف3!AQ12 -> 2576.22 | AM50: =+كشف3!AR12 -> مصطفى احمد مهنى | AN50: =+كشف3!#REF! ->  | AO50: =+كشف3!#REF! ->  | AP50: =+كشف3!#REF! ->  | AQ50: =+كشف3!#REF! -> 
A51: 50 | C51: =+كشف3!C14 -> 0 | D51: =+كشف3!D14 -> 0 | E51: =+كشف3!E14 -> 0 | F51: =+كشف3!F14 -> 0 | G51: =+كشف3!G14 -> 0 | H51: =+كشف3!H14 -> 0 | I51: =+كشف3!I14 -> 0 | J51: =+كشف3!J14 -> 0 | K51: =+كشف3!L14 -> 0 | L51: =+كشف3!#REF! ->  | M51: =+كشف3!M14 -> 0 | N51: =+كشف3!N14 -> 0 | O51: =+كشف3!O14 -> 0 | P51: =+كشف3!P14 -> 1171.28 | Q51: =+كشف3!Q14 -> 134.25 | R51: =+كشف3!R14 -> 6 | S51: =+كشف3!S14 -> 0 | T51: =+كشف3!V14 -> 1311.53 | U51: =+كشف3!W14 -> 27.9 | V51: =+كشف3!X14 -> 103.25 | W51: =+كشف3!Y14 -> 22.3 | X51: =+كشف3!Z14 -> 2.8 | Y51: =+كشف3!AA14 -> 10.35 | Z51: =+كشف3!AB14 -> 0 | AA51: =+كشف3!AC14 -> 0 | AB51: =+كشف3!AD14 -> 0 | AC51: =+كشف3!AE14 -> 2 | AD51: =+كشف3!AF14 -> 10 | AE51: =+كشف3!AG14 -> 9.9 | AF51: =+كشف3!AI14 -> 0 | AG51: =+كشف3!AK14 -> 0 | AH51: =+كشف3!AL14 -> 0 | AI51: =+كشف3!AN14 -> 0 | AJ51: =+كشف3!AO14 -> 7 | AK51: =+كشف3!AP14 -> 195.5 | AL51: =+كشف3!AQ14 -> 1116.03 | AM51: =+كشف3!#REF! ->  | AN51: =+كشف3!#REF! ->  | AO51: =+كشف3!#REF! ->  | AP51: =+كشف3!#REF! ->  | AQ51: =+كشف3!#REF! -> 
A52: 51 | C52: =+كشف3!C15 -> 746 | D52: =+كشف3!D15 -> 4 | E52: =+كشف3!E15 -> 2 | F52: =+كشف3!F15 -> 4.8 | G52: =+كشف3!G15 -> 10 | H52: =+كشف3!H15 -> 24.52 | I52: =+كشف3!I15 -> 25 | J52: =+كشف3!J15 -> 63 | K52: =+كشف3!L15 -> 190 | L52: =+كشف3!#REF! ->  | M52: =+كشف3!M15 -> 125 | N52: =+كشف3!N15 -> 250 | O52: =+كشف3!O15 -> 400 | P52: =+كشف3!P15 -> 0 | Q52: =+كشف3!Q15 -> 0 | R52: =+كشف3!R15 -> 0 | S52: =+كشف3!S15 -> 0 | T52: =+كشف3!V15 -> 1844.32 | U52: =+كشف3!W15 -> 74.6 | V52: =+كشف3!X15 -> 108.85 | W52: =+كشف3!Y15 -> 59.7 | X52: =+كشف3!Z15 -> 7.5 | Y52: =+كشف3!AA15 -> 10.9 | Z52: =+كشف3!AB15 -> 4.5 | AA52: =+كشف3!AC15 -> 2 | AB52: =+كشف3!AD15 -> 52.25 | AC52: =+كشف3!AE15 -> 0 | AD52: =+كشف3!AF15 -> 0 | AE52: =+كشف3!AG15 -> 0 | AF52: =+كشف3!AI15 -> 0 | AG52: =+كشف3!AK15 -> 0 | AH52: =+كشف3!AL15 -> 3 | AI52: =+كشف3!AN15 -> 50 | AJ52: =+كشف3!AO15 -> 9 | AK52: =+كشف3!AP15 -> 383.3 | AL52: =+كشف3!AQ15 -> 1461.02 | AM52: =+كشف3!AR15 -> نسرين عبدالرؤف عبدالعاطى | AN52: =+كشف3!#REF! ->  | AO52: =+كشف3!#REF! ->  | AP52: =+كشف3!#REF! ->  | AQ52: =+كشف3!#REF! -> 
A53: 52 | C53: =+كشف3!C17 -> 840.11 | D53: =+كشف3!D17 -> 4 | E53: =+كشف3!E17 -> 2 | F53: =+كشف3!F17 -> 7 | G53: =+كشف3!G17 -> 10 | H53: =+كشف3!H17 -> 25.62 | I53: =+كشف3!I17 -> 26.5 | J53: =+كشف3!J17 -> 66 | K53: =+كشف3!L17 -> 132 | L53: =+كشف3!#REF! ->  | M53: =+كشف3!M17 -> 132.5 | N53: =+كشف3!N17 -> 331.25 | O53: =+كشف3!O17 -> 400 | P53: =+كشف3!P17 -> 0 | Q53: =+كشف3!Q17 -> 0 | R53: =+كشف3!R17 -> 0 | S53: =+كشف3!S17 -> 0 | T53: =+كشف3!V17 -> 1976.98 | U53: =+كشف3!W17 -> 84.05 | V53: =+كشف3!X17 -> 112.7 | W53: =+كشف3!Y17 -> 67.25 | X53: =+كشف3!Z17 -> 8.45 | Y53: =+كشف3!AA17 -> 11.3 | Z53: =+كشف3!AB17 -> 4.5 | AA53: =+كشف3!AC17 -> 2 | AB53: =+كشف3!AD17 -> 58.85 | AC53: =+كشف3!AE17 -> 0 | AD53: =+كشف3!AF17 -> 0 | AE53: =+كشف3!AG17 -> 0 | AF53: =+كشف3!AI17 -> 0 | AG53: =+كشف3!AK17 -> 0 | AH53: =+كشف3!AL17 -> 5 | AI53: =+كشف3!AN17 -> 0 | AJ53: =+كشف3!AO17 -> 11 | AK53: =+كشف3!AP17 -> 366.1 | AL53: =+كشف3!AQ17 -> 1610.88 | AM53: =+كشف3!AR17 -> هبه ربيع احمد | AN53: =+كشف3!#REF! ->  | AO53: =+كشف3!#REF! ->  | AP53: =+كشف3!#REF! ->  | AQ53: =+كشف3!#REF! -> 
A54: 53 | C54: =+كشف3!C16 -> 0 | D54: =+كشف3!D16 -> 0 | E54: =+كشف3!E16 -> 0 | F54: =+كشف3!F16 -> 0 | G54: =+كشف3!G16 -> 0 | H54: =+كشف3!H16 -> 0 | I54: =+كشف3!I16 -> 0 | J54: =+كشف3!J16 -> 0 | K54: =+كشف3!L16 -> 0 | L54: =+كشف3!#REF! ->  | M54: =+كشف3!M16 -> 0 | N54: =+كشف3!N16 -> 0 | O54: =+كشف3!O16 -> 0 | P54: =+كشف3!P16 -> 1171.28 | Q54: =+كشف3!Q16 -> 134.25 | R54: =+كشف3!R16 -> 6 | S54: =+كشف3!S16 -> 0 | T54: =+كشف3!V16 -> 1311.53 | U54: =+كشف3!W16 -> 27.9 | V54: =+كشف3!X16 -> 103.25 | W54: =+كشف3!Y16 -> 22.3 | X54: =+كشف3!Z16 -> 2.8 | Y54: =+كشف3!AA16 -> 10.35 | Z54: =+كشف3!AB16 -> 0 | AA54: =+كشف3!AC16 -> 0 | AB54: =+كشف3!AD16 -> 0 | AC54: =+كشف3!AE16 -> 2 | AD54: =+كشف3!AF16 -> 10 | AE54: =+كشف3!AG16 -> 9.9 | AF54: =+كشف3!AI16 -> 0 | AG54: =+كشف3!AK16 -> 0 | AH54: =+كشف3!AL16 -> 0 | AI54: =+كشف3!AN16 -> 0 | AJ54: =+كشف3!AO16 -> 7 | AK54: =+كشف3!AP16 -> 195.5 | AL54: =+كشف3!AQ16 -> 1116.03 | AM54: =+كشف3!AR16 -> هانى صدقى احمد | AN54: =+كشف3!#REF! ->  | AO54: =+كشف3!#REF! ->  | AP54: =+كشف3!#REF! ->  | AQ54: =+كشف3!#REF! -> 
A55: 54 | C55: =+كشف3!C13 -> 1212.86 | D55: =+كشف3!D13 -> 4 | E55: =+كشف3!E13 -> 6 | F55: =+كشف3!F13 -> 9.5 | G55: =+كشف3!G13 -> 10 | H55: =+كشف3!H13 -> 49.19 | I55: =+كشف3!I13 -> 52.39 | J55: =+كشف3!J13 -> 130 | K55: =+كشف3!L13 -> 130 | L55: =+كشف3!#REF! ->  | M55: =+كشف3!M13 -> 261.95 | N55: =+كشف3!N13 -> 785.85 | O55: =+كشف3!O13 -> 375 | P55: =+كشف3!P13 -> 0 | Q55: =+كشف3!Q13 -> 0 | R55: =+كشف3!R13 -> 0 | S55: =+كشف3!S13 -> 0 | T55: =+كشف3!V13 -> 3026.74 | U55: =+كشف3!W13 -> 121.3 | V55: =+كشف3!X13 -> 180.4 | W55: =+كشف3!Y13 -> 97.05 | X55: =+كشف3!Z13 -> 12.15 | Y55: =+كشف3!AA13 -> 18.05 | Z55: =+كشف3!AB13 -> 4.5 | AA55: =+كشف3!AC13 -> 2 | AB55: =+كشف3!AD13 -> 84.9 | AC55: =+كشف3!AE13 -> 0 | AD55: =+كشف3!AF13 -> 0 | AE55: =+كشف3!AG13 -> 0 | AF55: =+كشف3!AI13 -> 0 | AG55: =+كشف3!AK13 -> 0 | AH55: =+كشف3!AL13 -> 15 | AI55: =+كشف3!AN13 -> 0 | AJ55: =+كشف3!AO13 -> 14 | AK55: =+كشف3!AP13 -> 550.35 | AL55: =+كشف3!AQ13 -> 2476.39 | AM55: =+كشف3!AR13 -> ناصر عبدالجواد عبدالحميد | AN55: =+كشف3!#REF! ->  | AO55: =+كشف3!#REF! ->  | AP55: =+كشف3!#REF! ->  | AQ55: =+كشف3!#REF! -> 
A56: 55 | C56: =+كشف3!C10 -> 0 | D56: =+كشف3!D10 -> 0 | E56: =+كشف3!E10 -> 0 | F56: =+كشف3!F10 -> 0 | G56: =+كشف3!G10 -> 0 | H56: =+كشف3!H10 -> 0 | I56: =+كشف3!I10 -> 0 | J56: =+كشف3!J10 -> 0 | K56: =+كشف3!L10 -> 0 | L56: =+كشف3!#REF! ->  | M56: =+كشف3!M10 -> 0 | N56: =+كشف3!N10 -> 0 | O56: =+كشف3!O10 -> 0 | P56: =+كشف3!P10 -> 2120.57 | Q56: =+كشف3!Q10 -> 336.51 | R56: =+كشف3!R10 -> 45.9 | S56: =+كشف3!S10 -> 0 | T56: =+كشف3!V10 -> 2502.98 | U56: =+كشف3!W10 -> 63.2 | V56: =+كشف3!X10 -> 187.1 | W56: =+كشف3!Y10 -> 50.55 | X56: =+كشف3!Z10 -> 6.35 | Y56: =+كشف3!AA10 -> 18.75 | Z56: =+كشف3!AB10 -> 4.5 | AA56: =+كشف3!AC10 -> 2 | AB56: =+كشف3!AD10 -> 31.3 | AC56: =+كشف3!AE10 -> 0 | AD56: =+كشف3!AF10 -> 0 | AE56: =+كشف3!AG10 -> 0 | AF56: =+كشف3!AI10 -> 0 | AG56: =+كشف3!AK10 -> 4 | AH56: =+كشف3!AL10 -> 22 | AI56: =+كشف3!AN10 -> 0 | AJ56: =+كشف3!AO10 -> 11 | AK56: =+كشف3!AP10 -> 401.75 | AL56: =+كشف3!AQ10 -> 2101.23 | AM56: =+كشف3!AR10 -> عماد القاضى عبدالحميد احمد | AN56: =+كشف3!#REF! ->  | AO56: =+كشف3!#REF! ->  | AP56: =+كشف3!#REF! ->  | AQ56: =+كشف3!#REF! -> 
A57: 56 | C57: =+كشف3!C5 -> 1344.04 | D57: =+كشف3!D5 -> 4 | E57: =+كشف3!E5 -> 6 | F57: =+كشف3!F5 -> 9.5 | G57: =+كشف3!G5 -> 10 | H57: =+كشف3!H5 -> 55.85 | I57: =+كشف3!I5 -> 59.41 | J57: =+كشف3!J5 -> 148 | K57: =+كشف3!L5 -> 148 | L57: =+كشف3!#REF! ->  | M57: =+كشف3!M5 -> 297.09 | N57: =+كشف3!N5 -> 891.27 | O57: =+كشف3!O5 -> 375 | P57: =+كشف3!P5 -> 0 | Q57: =+كشف3!Q5 -> 0 | R57: =+كشف3!R5 -> 0 | S57: =+كشف3!S5 -> 0 | T57: =+كشف3!V5 -> 3348.16 | U57: =+كشف3!W5 -> 134.4 | V57: =+كشف3!X5 -> 199.45 | W57: =+كشف3!Y5 -> 107.55 | X57: =+كشف3!Z5 -> 13.45 | Y57: =+كشف3!AA5 -> 19.95 | Z57: =+كشف3!AB5 -> 0 | AA57: =+كشف3!AC5 -> 0 | AB57: =+كشف3!AD5 -> 0 | AC57: =+كشف3!AE5 -> 0 | AD57: =+كشف3!AF5 -> 0 | AE57: =+كشف3!AG5 -> 0 | AF57: =+كشف3!AI5 -> 0 | AG57: =+كشف3!AK5 -> 0 | AH57: =+كشف3!AL5 -> 20 | AI57: =+كشف3!AN5 -> 0 | AJ57: =+كشف3!AO5 -> 15 | AK57: =+كشف3!AP5 -> 509.8 | AL57: =+كشف3!AQ5 -> 2838.36 | AM57: =+كشف3!AR5 -> عبدالرحمن شوقى محفوظ | AN57: =+كشف3!#REF! ->  | AO57: =+كشف3!#REF! ->  | AP57: =+كشف3!#REF! ->  | AQ57: =+كشف3!#REF! -> 
A58: 57 | C58: =+كشف3!#REF! ->  | D58: =+كشف3!#REF! ->  | E58: =+كشف3!#REF! ->  | F58: =+كشف3!#REF! ->  | G58: =+كشف3!#REF! ->  | H58: =+كشف3!#REF! ->  | I58: =+كشف3!#REF! ->  | J58: =+كشف3!#REF! ->  | K58: =+كشف3!#REF! ->  | L58: =+كشف3!#REF! ->  | M58: =+كشف3!#REF! ->  | N58: =+كشف3!#REF! ->  | O58: =+كشف3!#REF! ->  | P58: =+كشف3!#REF! ->  | Q58: =+كشف3!#REF! ->  | R58: =+كشف3!#REF! ->  | S58: =+كشف3!#REF! ->  | T58: =+كشف3!#REF! ->  | U58: =+كشف3!#REF! ->  | V58: =+كشف3!#REF! ->  | W58: =+كشف3!#REF! ->  | X58: =+كشف3!#REF! ->  | Y58: =+كشف3!#REF! ->  | Z58: =+كشف3!#REF! ->  | AA58: =+كشف3!#REF! ->  | AB58: =+كشف3!#REF! ->  | AC58: =+كشف3!#REF! ->  | AD58: =+كشف3!#REF! ->  | AE58: =+كشف3!#REF! ->  | AF58: =+كشف3!#REF! ->  | AG58: =+كشف3!#REF! ->  | AH58: =+كشف3!#REF! ->  | AI58: =+كشف3!#REF! ->  | AJ58: =+كشف3!#REF! ->  | AK58: =+كشف3!#REF! ->  | AL58: =+كشف3!#REF! ->  | AM58: =+كشف3!#REF! ->  | AN58: =+كشف3!#REF! ->  | AO58: =+كشف3!#REF! ->  | AP58: =+كشف3!#REF! ->  | AQ58: =+كشف3!#REF! -> 
A59: 58 | C59: =+كشف3!C24 -> 0 | D59: =+كشف3!D24 -> 0 | E59: =+كشف3!E24 -> 0 | F59: =+كشف3!F24 -> 0 | G59: =+كشف3!G24 -> 0 | H59: =+كشف3!H24 -> 0 | I59: =+كشف3!I24 -> 0 | J59: =+كشف3!J24 -> 0 | K59: =+كشف3!K24 -> 0 | L59: =+كشف3!L24 -> 0 | M59: =+كشف3!M24 -> 0 | N59: =+كشف3!N24 -> 0 | O59: =+كشف3!O24 -> 0 | P59: =+كشف3!P24 -> 0 | Q59: =+كشف3!Q24 -> 0 | R59: =+كشف3!R24 -> 0 | S59: =+كشف3!S24 -> 0 | T59: =+كشف3!V24 -> 0 | U59: =+كشف3!W24 -> 0 | V59: =+كشف3!X24 -> 0 | W59: =+كشف3!Y24 -> 0 | X59: =+كشف3!Z24 -> 0 | Y59: =+كشف3!AA24 -> 0 | Z59: =+كشف3!AI24 -> 0 | AA59: =+كشف3!AC24 -> 0 | AB59: =+كشف3!AD24 -> 0 | AC59: =+كشف3!AE24 -> 0 | AD59: =+كشف3!AF24 -> 0 | AE59: =+كشف3!AG24 -> 0 | AF59: =+كشف3!#REF! ->  | AG59: =+كشف3!AK24 -> 0 | AH59: =+كشف3!AL24 -> 0 | AI59: =+كشف3!AN24 -> 0 | AJ59: =+كشف3!AO24 -> 0 | AK59: =+كشف3!AP24 -> 0 | AL59: =+كشف3!AQ24 -> 0 | AM59: =+كشف3!AR24 -> 0 | AN59: =+كشف3!#REF! ->  | AO59: =+كشف3!#REF! ->  | AP59: =+كشف3!#REF! ->  | AQ59: =+كشف3!#REF! -> 
A60: 59 | C60: =+كشف3!#REF! ->  | D60: =+كشف3!#REF! ->  | E60: =+كشف3!#REF! ->  | F60: =+كشف3!#REF! ->  | G60: =+كشف3!#REF! ->  | H60: =+كشف3!#REF! ->  | I60: =+كشف3!#REF! ->  | J60: =+كشف3!#REF! ->  | K60: =+كشف3!#REF! ->  | L60: =+كشف3!#REF! ->  | M60: =+كشف3!#REF! ->  | N60: =+كشف3!#REF! ->  | O60: =+كشف3!#REF! ->  | P60: =+كشف3!#REF! ->  | Q60: =+كشف3!#REF! ->  | R60: =+كشف3!#REF! ->  | S60: =+كشف3!#REF! ->  | T60: =+كشف3!#REF! ->  | U60: =+كشف3!#REF! ->  | V60: =+كشف3!#REF! ->  | W60: =+كشف3!#REF! ->  | X60: =+كشف3!#REF! ->  | Y60: =+كشف3!#REF! ->  | Z60: =+كشف3!#REF! ->  | AA60: =+كشف3!#REF! ->  | AB60: =+كشف3!#REF! ->  | AC60: =+كشف3!#REF! ->  | AD60: =+كشف3!#REF! ->  | AE60: =+كشف3!#REF! ->  | AF60: =+كشف3!#REF! ->  | AG60: =+كشف3!#REF! ->  | AH60: =+كشف3!#REF! ->  | AI60: =+كشف3!#REF! ->  | AJ60: =+كشف3!#REF! ->  | AK60: =+كشف3!#REF! ->  | AL60: =+كشف3!#REF! ->  | AM60: =+كشف3!#REF! ->  | AN60: =+كشف3!#REF! ->  | AO60: =+كشف3!#REF! ->  | AP60: =+كشف3!#REF! ->  | AQ60: =+كشف3!#REF! -> 
A61: 60 | C61: =+كشف3!#REF! ->  | D61: =+كشف3!#REF! ->  | E61: =+كشف3!#REF! ->  | F61: =+كشف3!#REF! ->  | G61: =+كشف3!#REF! ->  | H61: =+كشف3!#REF! ->  | I61: =+كشف3!#REF! ->  | J61: =+كشف3!#REF! ->  | K61: =+كشف3!#REF! ->  | L61: =+كشف3!#REF! ->  | M61: =+كشف3!#REF! ->  | N61: =+كشف3!#REF! ->  | O61: =+كشف3!#REF! ->  | P61: =+كشف3!#REF! ->  | Q61: =+كشف3!#REF! ->  | R61: =+كشف3!#REF! ->  | S61: =+كشف3!#REF! ->  | T61: =+كشف3!#REF! ->  | U61: =+كشف3!#REF! ->  | V61: =+كشف3!#REF! ->  | W61: =+كشف3!#REF! ->  | X61: =+كشف3!#REF! ->  | Y61: =+كشف3!#REF! ->  | Z61: =+كشف3!#REF! ->  | AA61: =+كشف3!#REF! ->  | AB61: =+كشف3!#REF! ->  | AC61: =+كشف3!#REF! ->  | AD61: =+كشف3!#REF! ->  | AE61: =+كشف3!#REF! ->  | AF61: =+كشف3!#REF! ->  | AG61: =+كشف3!#REF! ->  | AH61: =+كشف3!#REF! ->  | AI61: =+كشف3!#REF! ->  | AJ61: =+كشف3!#REF! ->  | AK61: =+كشف3!#REF! ->  | AL61: =+كشف3!#REF! ->  | AM61: =+كشف3!#REF! ->  | AN61: =+كشف3!#REF! ->  | AO61: =+كشف3!#REF! ->  | AP61: =+كشف3!#REF! ->  | AQ61: =+كشف3!#REF! -> 
A62: 61 | C62: =+كشف3!C25 -> 12643.36 | D62: =+كشف3!D25 -> 48 | E62: =+كشف3!E25 -> 52 | F62: =+كشف3!F25 -> 97.6 | G62: =+كشف3!G25 -> 120 | H62: =+كشف3!H25 -> 475.42 | I62: =+كشف3!I25 -> 501.65 | J62: =+كشف3!J25 -> 1249 | K62: =+كشف3!K25 -> 0 | L62: =+كشف3!L25 -> 1785 | M62: =+كشف3!M25 -> 2508.4 | N62: =+كشف3!N25 -> 7164.22 | O62: =+كشف3!O25 -> 4600 | P62: =+كشف3!P25 -> 10504.4 | Q62: =+كشف3!Q25 -> 1574.1 | R62: =+كشف3!R25 -> 155.75 | S62: =+كشف3!S25 -> 2 | T62: =+كشف3!V25 -> 43480.9 | U62: =+كشف3!W25 -> 1565.95 | V62: =+كشف3!X25 -> 2769.75 | W62: =+كشف3!Y25 -> 1253.55 | X62: =+كشف3!Z25 -> 157 | Y62: =+كشف3!AA25 -> 277.35 | Z62: =+كشف3!AB25 -> 54 | AA62: =+كشف3!AC25 -> 24 | AB62: =+كشف3!AD25 -> 822.5 | AC62: =+كشف3!AE25 -> 8 | AD62: =+كشف3!AF25 -> 40 | AE62: =+كشف3!AG25 -> 60.75 | AF62: =+كشف3!AI25 -> 0 | AG62: =+كشف3!AK25 -> 4 | AH62: =+كشف3!AL25 -> 224 | AI62: =+كشف3!AN25 -> 100 | AJ62: =+كشف3!AO25 -> 208 | AK62: =+كشف3!AP25 -> 7784.85 | AL62: =+كشف3!AQ25 -> 35696.05 | AM62: =+كشف3!AR25 -> اجمالى كشف 3 | AN62: =+كشف3!#REF! ->  | AO62: =+كشف3!#REF! ->  | AP62: =+كشف3!#REF! ->  | AQ62: =+كشف3!#REF! -> 
A63: 62 | C63: =+كشف1!C5 -> 1181.79 | D63: =+كشف1!D5 -> 4 | E63: =+كشف1!E5 -> 2 | F63: =+كشف1!F5 -> 9.5 | G63: =+كشف1!G5 -> 10 | H63: =+كشف1!H5 -> 47.77 | I63: =+كشف1!I5 -> 50.79 | J63: =+كشف1!J5 -> 126 | K63: =+كشف1!L5 -> 126 | L63: =+كشف1!#REF! ->  | M63: =+كشف1!M5 -> 253.97 | N63: =+كشف1!N5 -> 761.31 | O63: =+كشف1!O5 -> 350 | P63: =+كشف1!P5 -> 0 | Q63: =+كشف1!Q5 -> 0 | R63: =+كشف1!R5 -> 0 | S63: =+كشف1!#REF! ->  | T63: =+كشف1!#REF! ->  | U63: =+كشف1!S5 -> 0 | V63: =+كشف1!T5 -> 0 | W63: =+كشف1!U5 -> 0 | X63: =+كشف1!V5 -> 2923.13 | Y63: =+كشف1!W5 -> 118.2 | Z63: =+كشف1!X5 -> 173.2 | AA63: =+كشف1!Y5 -> 94.55 | AB63: =+كشف1!Z5 -> 11.85 | AC63: =+كشف1!AB5 -> 4.5 | AD63: =+كشف1!AC5 -> 2 | AE63: =+كشف1!AD5 -> 82.75 | AF63: =+كشف1!AE5 -> 0 | AG63: =+كشف1!AF5 -> 0 | AH63: =+كشف1!AG5 -> 0 | AI63: =+كشف1!AH5 -> 0 | AJ63: =+كشف1!AI5 -> 0 | AK63: =+كشف1!AJ5 -> 1 | AL63: =+كشف1!AK5 -> 0 | AM63: =+كشف1!AL5 -> 15 | AN63: =+كشف1!AM5 -> 0 | AO63: =+كشف1!AP5 -> 534.4 | AP63: =+كشف1!AQ5 -> 2388.73 | AQ63: =+كشف1!AR5 -> احلام احمد عبدالباقى
A64: 63 | C64: =+كشف3!C27 -> 13231.76 | D64: =+كشف3!D27 -> 56 | E64: =+كشف3!E27 -> 60 | F64: =+كشف3!F27 -> 99.5 | G64: =+كشف3!G27 -> 140 | H64: =+كشف3!H27 -> 476.3 | I64: =+كشف3!I27 -> 500.15 | J64: =+كشف3!J27 -> 1242 | K64: =+كشف3!K27 -> 80 | L64: =+كشف3!L27 -> 2129 | M64: =+كشف3!M27 -> 2498.36 | N64: =+كشف3!N27 -> 6609.48 | O64: =+كشف3!O27 -> 5500 | P64: =+كشف3!P27 -> 7642.22 | Q64: =+كشف3!Q27 -> 1329.36 | R64: =+كشف3!R27 -> 132.84 | S64: =+كشف3!S27 -> 0 | T64: =+كشف3!#REF! ->  | U64: =+كشف3!W27 -> 1572.2 | V64: =+كشف3!V27 -> 41726.97 | W64: =+كشف3!Y27 -> 1257.65 | X64: =+كشف3!Z27 -> 157.65 | Y64: =+كشف3!AA27 -> 258.8 | Z64: =+كشف3!AB27 -> 67.5 | AA64: =+كشف3!AC27 -> 30 | AB64: =+كشف3!AD27 -> 966.35 | AC64: =+كشف3!AE27 -> 4 | AD64: =+كشف3!AF27 -> 20 | AE64: =+كشف3!AG27 -> 62.35 | AF64: =+كشف3!AI27 -> 46.38 | AG64: =+كشف3!AK27 -> 0 | AH64: =+كشف3!AL27 -> 826 | AI64: =+كشف3!AN27 -> 200 | AJ64: =+كشف3!AO27 -> 198 | AK64: =+كشف3!AP27 -> 7656.88 | AL64: =+كشف3!AQ27 -> 34070.09 | AM64: =+كشف3!AR27 -> اجمالى كشف 1 | AN64: =+كشف3!#REF! ->  | AO64: =+كشف3!#REF! ->  | AP64: =+كشف3!#REF! ->  | AQ64: =+كشف3!#REF! -> 

Sheet كشف1
C1: إدارة ملوي التعليمية | J1: مرتبات شهر سبتمبر2018م | X1: إدارة ملوي التعليمية | AF1: مرتبات العاملين عن شهر سبتمبر2018م
C2: مدرسة وحدة دروة | I2: صفحة 1/1 | X2: مدرسة وحدة دروة | AB2: صفحة 2/1
C3: المبـــــــــــــــــــــــــــــــــــــــــــــــــــــــــــــــــــــــــــــــــــــــــــــــالغ المستحقـــــــــــــــــــــــــــــــــــــــــــــــــــــــــــــــــــــــــــــــــــــــة | W3: المبــــــــــــــــــــــــــــــــــــــــــــــــــــــــــــــــــالغ المستقطعـــــــــــــــــــــــــــــة
A4: م | B4: الاسم | C4: المرتب | D4: اضافية | E4: اجتماعية | F4: اغتراب | G4: منحة | H4: 0.1 | I4: 0.1 | J4: حافز 25% | K4: حافز تطوير | L4: حافز أداء | M4: بدل معلم | N4: بدل اعتماد | O4: أعباء وظيفية | P4: اجر وظيفى | Q4: مكمل | R4: ح تعويضى | S4: بدل نظارة | V4: جملة المستحق | W4: 0.1 | X4: 0.1 | Y4: 0.08 | Z4: 0.01 | AA4: 0.01 | AB4: نقابة معلمين | AC4: نادي | AD4: 0.07 | AE4: نقابة عاملين | AF4: زمالة | AG4: 5% زمالة | AH4: معاش | AI4: اعتبارية | AJ4: فرعيه | AK4: م تطبيقية | AL4: كسب عمل | AM4: ايرادات | AN4: دمغه | AP4: جملة المستقطع | AQ4: صـافي المبـلغ | AR4: اســــــــــم الموظف | AS4: التوقيع بالاستلام
A5: 1 | B5: احلام احمد عبدالباقى | C5: 1181.79 | D5: 4 | E5: 2 | F5: 9.5 | G5: 10 | H5: 47.77 | I5: 50.79 | J5: 126 | L5: 126 | M5: 253.97 | N5: 761.31 | O5: 350 | V5: =SUM(C5:R5) -> 2923.13 | W5: 118.2 | X5: 173.2 | Y5: 94.55 | Z5: 11.85 | AA5: 17.35 | AB5: 4.5 | AC5: 2 | AD5: 82.75 | AJ5: 1 | AL5: 15 | AN5: 14 | AP5: =SUM(W5:AN5) -> 534.4 | AQ5: =V5-AP5 -> 2388.73 | AR5: احلام احمد عبدالباقى
A6: 2 | B6: اكرام خليل امبارك | P6: 2486.54 | Q6: 432.14 | R6: 44.75 | V6: 2963.43 | W6: 81.15 | X6: 215.2 | Y6: 64.6 | Z6: 8.15 | AA6: 21.55 | AE6: 2 | AF6: 10 | AG6: 31.3 | AI6: 6.38 | AL6: 30 | AN6: 13 | AP6: 483.33 | AQ6: 2480.1 | AR6: اكرام خليل امبارك
A7: 3 | B7: السيد شوقى فخرى | C7: 762.32 | D7: 4 | E7: 6 | F7: 4.8 | G7: 10 | H7: 24.12 | I7: 25 | J7: 62 | L7: 187 | M7: 125 | N7: 250 | O7: 400 | V7: 1860.24 | W7: 76.25 | X7: 108.8 | Y7: 61 | Z7: 7.65 | AA7: 10.9 | AB7: 4.5 | AC7: 2 | AD7: 53.4 | AI7: 40 | AJ7: 1 | AL7: 3 | AM7: 50 | AN7: 9 | AP7: 427.5 | AQ7: 1432.74 | AR7: السيد شوقى فخرى
A8: 4 | B8: امانى محمد محسن احمد | C8: 736 | D8: 4 | E8: 2 | F8: 4.8 | G8: 10 | H8: 24.12 | I8: 24.6 | J8: 61 | K8: 40 | L8: 184 | M8: 123 | N8: 246 | O8: 425 | V8: 1884.52 | W8: 73.6 | X8: 113.85 | Y8: 58.9 | Z8: 7.4 | AA8: 11.4 | AB8: 4.5 | AC8: 2 | AD8: 51.55 | AJ8: 1 | AL8: 3 | AN8: 9 | AP8: 336.2 | AQ8: 1548.32 | AR8: امانى محمد محسن احمد
A9: 5 | B9: امل زغلول ياسين | C9: 840.8 | D9: 4 | E9: 2 | F9: 7 | G9: 10 | H9: 26.52 | I9: 27.4 | J9: 68 | L9: 137 | M9: 137 | N9: 342.5 | O9: 400 | V9: 2002.22 | W9: 84.1 | X9: 115.15 | Y9: 67.3 | Z9: 8.45 | AA9: 11.55 | AB9: 4.5 | AC9: 2 | AD9: 58.9 | AJ9: 1 | AL9: 5 | AN9: 11 | AP9: 368.95 | AQ9: 1633.27 | AR9: امل زغلول ياسين
A10: 6 | B10: ايناس صدقى عزمى | C10: 762.32 | D10: 4 | E10: 2 | F10: 4.8 | G10: 10 | H10: 24.12 | I10: 25 | J10: 62 | L10: 187 | M10: 125 | N10: 250 | O10: 400 | V10: 1856.24 | W10: 76.25 | X10: 108.4 | Y10: 61 | Z10: 7.65 | AA10: 10.85 | AB10: 4.5 | AC10: 2 | AD10: 53.4 | AJ10: 1 | AL10: 3 | AM10: 50 | AN10: 9 | AP10: 387.05 | AQ10: 1469.19 | AR10: ايناس صدقى عزمى
A11: 7 | B11: جبر حسن عبدالمنطلب | C11: 1216.92 | D11: 4 | E11: 6 | F11: 9.5 | G11: 10 | H11: 49.05 | I11: 52.74 | J11: 130 | K11: 40 | L11: 130 | M11: 261.23 | N11: 783.69 | O11: 375 | V11: 3068.13 | W11: 121.7 | X11: 184.15 | Y11: 97.35 | Z11: 12.2 | AA11: 18.45 | AB11: 4.5 | AC11: 2 | AD11: 85.2 | AJ11: 1 | AL11: 15 | AN11: 14 | AP11: 555.55 | AQ11: 2512.58 | AR11: جبر حسن عبدالمنطلب
A12: 8 | B12: حمدى درويش فهمى | C12: 1380.22 | D12: 4 | E12: 6 | F12: 9.5 | G12: 10 | H12: 57.73 | I12: 61.41 | J12: 153 | L12: 153 | M12: 307.05 | N12: 921.15 | O12: 375 | V12: 3438.06 | W12: 138.05 | X12: 204.8 | Y12: 110.45 | Z12: 13.85 | AA12: 20.5 | AB12: 4.5 | AC12: 2 | AD12: 96.65 | AJ12: 1 | AL12: 25 | AN12: 16 | AP12: 632.8 | AQ12: 2805.26 | AR12: حمدى درويش فهمى
A13: 9 | B13: رضا محمد مرسي | C13: 736 | D13: 4 | E13: 6 | F13: 4.8 | G13: 10 | H13: 24.12 | I13: 24.6 | J13: 61 | L13: 184 | M13: 123 | N13: 246 | O13: 400 | V13: 1823.52 | W13: 73.6 | X13: 107.75 | Y13: 58.9 | Z13: 7.4 | AA13: 10.8 | AB13: 4.5 | AC13: 2 | AD13: 51.55 | AJ13: 1 | AL13: 3 | AM13: 50 | AN13: 9 | AP13: 379.5 | AQ13: 1444.02 | AR13: رضا محمد مرسي
A14: 10 | B14: صباح عبدالصبور محمد | C14: 1172.88 | D14: 4 | E14: 2 | F14: 9.5 | G14: 10 | H14: 47.01 | I14: 50.04 | J14: 125 | L14: 125 | M14: 250.23 | N14: 750.68 | O14: 375 | V14: 2921.34 | W14: 117.3 | X14: 173.85 | Y14: 93.85 | Z14: 11.75 | AA14: 17.4 | AB14: 4.5 | AC14: 2 | AD14: 82.1 | AJ14: 1 | AL14: 15 | AN14: 14 | AP14: 532.75 | AQ14: 2388.59 | AR14: صباح عبدالصبور محمد
A15: 11 | B15: صلاح عمر موسي | C15: 824.8 | D15: 4 | E15: 6 | F15: 7 | G15: 10 | H15: 24.92 | I15: 25.8 | J15: 64 | L15: 129 | M15: 129 | N15: 322.5 | O15: 400 | V15: 1947.02 | W15: 82.5 | X15: 111.25 | Y15: 66 | Z15: 8.25 | AA15: 11.15 | AB15: 4.5 | AC15: 2 | AD15: 57.75 | AJ15: 1 | AL15: 5 | AN15: 10 | AP15: 359.4 | AQ15: 1587.62 | AR15: صلاح عمر موسي
A16: 12 | B16: عبدالاول عمر موسي | C16: 736 | D16: 4 | E16: 2 | F16: 4.8 | G16: 10 | H16: 24.12 | I16: 24.6 | J16: 61 | L16: 184 | M16: 123 | N16: 246 | O16: 400 | V16: 1819.52 | W16: 73.6 | X16: 107.35 | Y16: 58.9 | Z16: 7.4 | AA16: 10.75 | AB16: 4.5 | AC16: 2 | AD16: 51.55 | AJ16: 1 | AL16: 3 | AM16: 50 | AN16: 9 | AP16: 379.05 | AQ16: 1440.47 | AR16: عبدالاول عمر موسي
A17: 13 | B17: عبدالعال جالى محمد | P17: 2520.53 | Q17: 428.35 | R17: 42.2 | V17: 2991.08 | W17: 80.1 | X17: 219.05 | Y17: 64.1 | Z17: 8 | AA17: 21.95 | AB17: 4.5 | AC17: 2 | AD17: 39.7 | AH17: 1.5 | AJ17: 1 | AL17: 30 | AN17: 13 | AP17: 484.9 | AQ17: 2506.18 | AR17: عبدالعال جالى محمد
A18: 14 | B18: ربيع رمضان ابراهيم | C18: 819.8 | D18: 4 | E18: 6 | F18: 7 | G18: 10 | H18: 26.12 | I18: 27 | J18: 67 | L18: 135 | M18: 135 | N18: 337.5 | O18: 400 | V18: 1974.42 | W18: 82 | X18: 114.5 | Y18: 65.6 | Z18: 8.2 | AA18: 11.45 | AB18: 4.5 | AC18: 2 | AD18: 57.4 | AJ18: 1 | AL18: 5 | AN18: 10 | AP18: 361.65 | AQ18: 1612.77 | AR18: ربيع رمضان ابراهيم
A19: 15 | B19: حسين جبر على | P19: 2635.15 | Q19: 468.87 | R19: 45.89 | V19: 3149.91 | W19: 87.6 | X19: 227.4 | Y19: 70.15 | Z19: 8.8 | AA19: 22.75 | AE19: 2 | AF19: 10 | AG19: 31.05 | AL19: 30 | AN19: 13 | AP19: 502.75 | AQ19: 2647.16 | AR19: حسين جبر على
A20: 16 | B20: وليد محمد سيد | C20: 804.46 | D20: 4 | E20: 6 | F20: 7 | G20: 10 | H20: 24.92 | I20: 26.2 | J20: 65 | L20: 131 | M20: 131 | N20: 327.5 | O20: 400 | V20: 1937.08 | W20: 80.45 | X20: 112.3 | Y20: 64.4 | Z20: 8.05 | AA20: 11.25 | AB20: 4.5 | AC20: 2 | AD20: 56.4 | AJ20: 1 | AL20: 5 | AN20: 10 | AP20: 355.35 | AQ20: 1581.73 | AR20: وليد محمد سيد
A21: 17 | B21: محمد عبدالمنعم عبدالعال | C21: 1257.45 | D21: 4 | E21: 6 | F21: 9.5 | G21: 10 | H21: 51.66 | I21: 54.97 | J21: 137 | L21: 137 | M21: 274.88 | N21: 824.65 | O21: 400 | V21: 3167.11 | W21: 125.75 | X21: 187.5 | Y21: 100.6 | Z21: 12.6 | AA21: 18.75 | AB21: 4.5 | AC21: 2 | AD21: 88.05 | AJ21: 1 | AL21: 20 | AN21: 15 | AP21: 575.75 | AQ21: 2591.36 | AR21: محمد عبدالمنعم عبدالعال
B22: الاجمــــــــــالي | C22: =SUM(C5:C21) -> 13231.76 | D22: =SUM(D5:D21) -> 56 | E22: 60 | F22: 99.5 | G22: 140 | H22: 476.3 | I22: 500.15 | J22: 1242 | K22: 80 | L22: =SUM(L5:L21) -> 2129 | M22: 2498.36 | N22: 6609.48 | O22: 5500 | P22: 7642.22 | Q22: 1329.36 | R22: 132.84 | S22: 0 | T22: 0 | U22: 0 | V22: =SUM(V5:V21) -> 41726.97 | W22: =SUM(W5:W21) -> 1572.2 | X22: =SUM(X5:X21) -> 2584.5 | Y22: 1257.65 | Z22: 157.65 | AA22: 258.8 | AB22: 67.5 | AC22: 30 | AD22: 966.35 | AE22: 4 | AF22: 20 | AG22: 62.35 | AH22: 1.5 | AI22: 46.38 | AJ22: 15 | AK22: 0 | AL22: 215 | AM22: 200 | AN22: 198 | AP22: 7656.88 | AQ22: 34070.09 | AR22: اجمالى

Sheet كشف2
B1: إدارة ملوي التعليمية | C1: إدارة ملوي التعليمية | I1: مرتبات العاملين عن شهرسبتمبر 2018م | X1: إدارة ملوي التعليمية | AF1: مرتبات العاملين عن شهر سبتمبر2018م
B2: مدرسة وحدة دروة | C2: مدرسة وحدة دروة | I2: صفحة 1/1 | X2: مدرسة وحدة دروة | AB2: صفحة 2/1
C3: المبـــــــــــــــــــــــــــــــــــــــــــــــــــــــــــــــــــــــــــــــــــــــــــــــالغ المستحقـــــــــــــــــــــــــــــــــــــــــــــــــــــــــــــــــــــــــــــــــــــــة | W3: المبــــــــــــــــــــــــــــــــــــــــــــــــــــــــــــــــــالغ المستقطعـــــــــــــــــــــــــــــة
A4: م | B4: الاسم | C4: =كشف1!C4 -> المرتب | D4: =كشف1!D4 -> اضافية | E4: =كشف1!E4 -> اجتماعية | F4: =كشف1!F4 -> اغتراب | G4: =كشف1!G4 -> منحة | H4: =كشف1!H4 -> 0.1 | I4: =كشف1!I4 -> 0.1 | J4: =كشف1!J4 -> حافز 25% | K4: حافز تطوير | L4: حافز أداء | M4: بدل معلم | N4: بدل اعتماد | O4: أعباء وظيفية | P4: اجر وظيفى | Q4: مكمل | R4: ح تعويضى | S4: بدل نظارة | V4: جملة المستحق | W4: =كشف1!W4 -> 0.1 | X4: =كشف1!X4 -> 0.1 | Y4: =كشف1!Y4 -> 0.08 | Z4: =كشف1!Z4 -> 0.01 | AA4: =كشف1!AA4 -> 0.01 | AB4: =كشف1!AB4 -> نقابة معلمين | AC4: =كشف1!AC4 -> نادي | AD4: =كشف1!AD4 -> 0.07 | AE4: =كشف1!AE4 -> نقابة عاملين | AF4: =كشف1!AF4 -> زمالة | AG4: =كشف1!AG4 -> 5% زمالة | AH4: =كشف1!AH4 -> معاش | AI4: =كشف1!AI4 -> اعتبارية | AJ4: =كشف1!AJ4 -> فرعيه | AK4: =كشف1!AK4 -> م تطبيقية | AL4: =كشف1!AL4 -> كسب عمل | AM4: =كشف1!AM4 -> ايرادات | AN4: =كشف1!AN4 -> دمغه | AP4: جملة المستقطع | AQ4: صـافي المبـلغ | AR4: اســــــــــم الموظف | AS4: التوقيع بالاستلام
A5: 1 | B5: ابتسام حسن محمد | C5: 828.3 | D5: 4 | E5: 2 | F5: 7 | G5: 10 | H5: 25.52 | I5: 26.8 | J5: 67 | L5: 134 | M5: 134 | N5: 335 | O5: 400 | V5: =SUM(C5:S5) -> 1973.62 | W5: 82.85 | X5: 113.55 | Y5: 66.3 | Z5: 8.3 | AA5: 11.4 | AB5: 4.5 | AC5: 2 | AD5: 58 | AJ5: 1 | AL5: 5 | AN5: 10 | AP5: =SUM(W5:AN5) -> 362.9 | AQ5: =V5-AP5 -> 1610.72 | AR5: ابتسام حسن محمد
A6: 2 | B6: امال ناجى عبدالمجيد | P6: 2537.75 | Q6: 445.39 | R6: 46.52 | V6: =SUM(C6:S6) -> 3029.66 | W6: 83.35 | X6: 219.65 | Y6: 66.65 | Z6: 8.35 | AA6: 22 | AE6: 2 | AF6: 10 | AG6: 29.55 | AI6: 3.13 | AL6: 30 | AN6: 13 | AP6: =SUM(W6:AN6) -> 487.68 | AQ6: 2541.98 | AR6: امال ناجى عبدالمجيد
A7: 3 | B7: وداد عبدالرشيد عبدالحفيظ | P7: 1171.28 | Q7: 134.25 | R7: 6 | V7: 1311.53 | W7: 27.9 | X7: 103.25 | Y7: 22.3 | Z7: 2.8 | AA7: 10.35 | AE7: 2 | AF7: 10 | AG7: 9.9 | AN7: 7 | AP7: 195.5 | AQ7: 1116.03 | AR7: وداد عبدالرشيد عبدالحفيظ
A8: 4 | B8: يحى محمد احمد | P8: 2641.69 | Q8: 468.95 | R8: 46.24 | V8: 3156.88 | W8: 88 | X8: 227.7 | Y8: 69.85 | Z8: 8.8 | AA8: 22.8 | AE8: 2 | AF8: 10 | AG8: 31.15 | AL8: 33 | AN8: 13 | AP8: 506.3 | AQ8: 2650.58 | AR8: يحى محمد احمد
A9: 5 | B9: امال عيسى سلامه | P9: 2913.82 | Q9: 533.6 | R9: 49.24 | V9: 3496.66 | W9: 100.2 | X9: 254.75 | Y9: 80.2 | Z9: 10.05 | AA9: 25.5 | AB9: 4.5 | AC9: 2 | AD9: 49.65 | AJ9: 1 | AL9: 50 | AN9: 16 | AP9: 593.85 | AQ9: 2902.81 | AR9: امال عيسى سلامه
A10: 6 | B10: جمال عبدالله تونى | C10: 1273.53 | D10: 4 | E10: 6 | F10: 9.5 | G10: 10 | H10: 52.98 | I10: 56.32 | J10: 140 | L10: 140 | M10: 281.64 | N10: 844.93 | O10: 350 | V10: 3168.9 | W10: 127.35 | X10: 188.55 | Y10: 101.9 | Z10: 12.75 | AA10: 18.9 | AB10: 4.5 | AC10: 2 | AD10: 89.15 | AJ10: 1 | AL10: 20 | AN10: 15 | AP10: 581.1 | AQ10: 2587.8 | AR10: جمال عبدالله تونى
A11: 7 | B11: عبدالحميد ناجى فهمى | C11: 1197.24 | D11: 4 | E11: 6 | F11: 9.5 | G11: 10 | H11: 48.35 | I11: 51.49 | J11: 128 | L11: 128 | M11: 257.49 | N11: 775.47 | O11: 375 | V11: 2990.54 | W11: 119.75 | X11: 178.05 | Y11: 95.8 | Z11: 12 | AA11: 17.85 | AB11: 4.5 | AC11: 2 | AD11: 83.85 | AJ11: 1 | AL11: 15 | AN11: 14 | AP11: 543.8 | AQ11: 2446.74 | AR11: عبدالحميد ناجى فهمى
A12: 8 | B12: علاء يونس عبدالمجيد | C12: 1191.63 | D12: 4 | E12: 6 | F12: 9.5 | G12: 10 | H12: 47.7 | I12: 50.79 | J12: 126 | L12: 126 | M12: 253.98 | N12: 761.95 | O12: 375 | V12: 2962.55 | W12: 119.2 | X12: 176.1 | Y12: 95.35 | Z12: 11.95 | AA12: 17.65 | AB12: 4.5 | AC12: 2 | AD12: 83.45 | AJ12: 1 | AL12: 15 | AN12: 14 | AP12: 540.2 | AQ12: 2422.35 | AR12: علاء يونس عبدالمجيد
A13: 9 | B13: محمد على حسين | C13: 1212.86 | D13: 4 | E13: 6 | F13: 9.5 | G13: 10 | H13: 49.19 | I13: 52.39 | J13: 130 | L13: 130 | M13: 261.95 | N13: 785.85 | O13: 375 | V13: 3026.74 | W13: 121.3 | X13: 180.4 | Y13: 97.05 | Z13: 12.15 | AA13: 18.05 | AB13: 4.5 | AC13: 2 | AD13: 84.9 | AJ13: 1 | AL13: 15 | AN13: 14 | AP13: 550.35 | AQ13: 2476.39 | AR13: محمد على حسين
A14: 10 | B14: محمد ناجى محمد | C14: 1154.1 | D14: 4 | E14: 6 | F14: 9.5 | G14: 10 | H14: 45.93 | I14: 48.89 | J14: 122 | L14: 122 | M14: 244.45 | N14: 733.35 | O14: 375 | V14: 2875.22 | W14: 115.45 | X14: 171.15 | Y14: 92.35 | Z14: 11.55 | AA14: 17.15 | AB14: 4.5 | AC14: 2 | AD14: 80.8 | AJ14: 1 | AL14: 15 | AN14: 14 | AP14: 524.95 | AQ14: 2350.27 | AR14: محمد ناجى محمد
A15: 11 | B15: محمود محمد ابراهيم | P15: 2428.15 | Q15: 406.84 | R15: 45.43 | V15: 2880.42 | W15: 76 | X15: 212.05 | Y15: 60.8 | Z15: 7.6 | AA15: 21.25 | AE15: 2 | AF15: 10 | AG15: 26.9 | AL15: 28 | AN15: 12 | AP15: 456.6 | AQ15: 2423.82 | AR15: محمود محمد ابراهيم
A16: 12 | B16: مصطفى محمد عبدالحليم | C16: 1183.31 | D16: 4 | E16: 6 | F16: 9.5 | G16: 10 | H16: 47.6 | I16: 50.7 | J16: 126 | L16: 126 | M16: 253.52 | N16: 760.56 | O16: 375 | V16: 2952.19 | W16: 118.35 | X16: 175.9 | Y16: 94.7 | Z16: 11.85 | AA16: 17.6 | AB16: 4.5 | AC16: 2 | AD16: 82.85 | AJ16: 1 | AL16: 15 | AN16: 14 | AP16: 537.75 | AQ16: 2414.44 | AR16: مصطفى محمد عبدالحليم
A17: 13 | B17: نجوى محمد اسماعيل | C17: 820.8 | D17: 4 | E17: 2 | F17: 7 | G17: 10 | H17: 24.92 | I17: 25.8 | J17: 64 | L17: 129 | M17: 129 | N17: 322.5 | O17: 400 | V17: 1939.02 | W17: 82.1 | X17: 110.85 | Y17: 65.7 | Z17: 8.25 | AA17: 11.1 | AB17: 4.5 | AC17: 2 | AD17: 57.5 | AJ17: 1 | AL17: 5 | AN17: 10 | AP17: 358 | AQ17: 1581.02 | AR17: نجوى محمد اسماعيل
A18: 14 | B18: سليمان عبدالله سليمان | P18: 2164.12 | Q18: 348.24 | R18: 39.23 | V18: 2551.59 | W18: 65.05 | X18: 190.1 | Y18: 52.05 | Z18: 6.55 | AA18: 19.05 | AE18: 2 | AF18: 10 | AG18: 23 | AL18: 22 | AN18: 11 | AP18: 400.8 | AQ18: 2150.79 | AR18: سليمان عبدالله سليمان
A19: 15 | V19: 0 | AP19: 0 | AQ19: 0
V20: 0
B21: اجمالى كشف2 | C21: =SUM(C5:C19) -> 8861.77 | D21: =SUM(D5:D19) -> 32 | E21: 40 | F21: 71 | G21: 80 | H21: 342.19 | I21: 363.18 | J21: 903 | K21: 0 | L21: =SUM(L5:L19) -> 1035 | M21: 1816.03 | N21: 5319.61 | O21: 3025 | P21: 13856.81 | Q21: 2337.27 | R21: 232.66 | S21: 0 | V21: 38315.52 | W21: =SUM(W5:W20) -> 1326.85 | X21: =SUM(X5:X20) -> 2502.05 | Y21: 1061 | Z21: 132.95 | AA21: 250.65 | AB21: 40.5 | AC21: 18 | AD21: 670.15 | AE21: 10 | AF21: 50 | AG21: 120.5 | AH21: 0 | AI21: 3.13 | AJ21: 9 | AK21: 0 | AL21: 268 | AM21: 0 | AN21: 177 | AP21: =SUM(AP5:AP20) -> 6639.78 | AQ21: =SUM(AQ5:AQ20) -> 31675.74 | AR21: اجمالى كشف2
AR22: اجمالى كشف 3
AR23: اجمالى كشف 1
AR24: الاجمالى
AR25: بنوك
AR26: الصافى المقتضى صرفه

Sheet كشف3
B1: إدارة ملوي التعليمية | C1: إدارة ملوي التعليمية | I1: مرتبات العاملين عن شهر سبتمبر2018م | AB1: إدارة ملوي التعليمية | AK1: مرتبات العاملين عن شهر سبتمبر2018م
B2: مدرسة وحدة دروة | C2: مدرسة وحدة دروة | I2: صفحة 1 | AB2: مدرسة وحدة دروة
C3: المبـــــــــــــــــــــــــــــــــــــــــــــــــــــــــــــــــــــــــــــــــــــــــــــــالغ المستحقـــــــــــــــــــــــــــــــــــــــــــــــــــــــــــــــــــــــــــــــــــــــة | W3: المبــــــــــــــــــــــــــــــــــــــــــــــــــــــــــــــــــالغ المستقطعـــــــــــــــــــــــــــــة
A4: م | B4: الاسم | C4: المرتب | D4: اضافية | E4: اجتماعية | F4: اغتراب | G4: منحة | H4: 0.1 | I4: 0.1 | J4: حافز 25% | K4: حافز تطوير | L4: حافز أداء | M4: بدل معلم | N4: بدل اعتماد | O4: أعباء وظيفية | P4: اجر وظيفى | Q4: مكمل | R4: ح تعويضى | S4: بدل نظارة | V4: جملة المستحق | W4: 0.1 | X4: 0.1 | Y4: 0.08 | Z4: 0.01 | AA4: 0.01 | AB4: نقابة معلمين | AC4: نادي | AD4: 0.07 | AE4: نقابة عاملين | AF4: زمالة | AG4: 5% زمالة | AH4: معاش | AI4: اعتبارية | AJ4: فرعيه | AK4: م تطبيقية | AL4: كسب عمل | AM4: قسط نقابة | AN4: ايرادات | AO4: دمغه | AP4: جملة المستقطع | AQ4: صـافي المبـلغ | AR4: اســــــــــم الموظف
A5: 1 | B5: عبدالرحمن شوقى محفوظ | C5: 1344.04 | D5: 4 | E5: 6 | F5: 9.5 | G5: 10 | H5: 55.85 | I5: 59.41 | J5: 148 | L5: 148 | M5: 297.09 | N5: 891.27 | O5: 375 | V5: =SUM(C5:S5) -> 3348.16 | W5: 134.4 | X5: 199.45 | Y5: 107.55 | Z5: 13.45 | AA5: 19.95 | AL5: 20 | AO5: 15 | AP5: =SUM(W5:AO5) -> 509.8 | AQ5: =V5-AP5 -> 2838.36 | AR5: عبدالرحمن شوقى محفوظ
A6: 2 | B6: عبدالكريم عبدالمنعم عبدالرحمن | C6: 1517.68 | D6: 4 | E6: 6 | F6: 12.5 | G6: 10 | H6: 64.92 | I6: 69.06 | J6: 172 | L6: 172 | M6: 345.31 | N6: 1208.58 | O6: 350 | S6: 2 | V6: 3934.05 | W6: 151 | X6: 240.65 | Y6: 121.45 | Z6: 15.1 | AA6: 24.1 | AB6: 4.5 | AC6: 2 | AD6: 106.25 | AJ6: 1 | AL6: 30 | AO6: 17 | AP6: =SUM(W6:AO6) -> 713.05 | AQ6: 3221 | AR6: عبدالكريم عبدالمنعم عبدالرحمن
A7: 3 | B7: مصطفى كامل خليفه | P7: 2234.84 | Q7: 365.97 | R7: 45.96 | V7: 2646.77 | W7: 67.7 | X7: 197 | Y7: 54.2 | Z7: 6.8 | AA7: 19.7 | AL7: 25 | AO7: 12 | AP7: 382.4 | AQ7: 2264.37 | AR7: مصطفى كامل خليفه
A8: 4 | B8: عبدالعزيز يوسف سيد | C8: 1197.24 | D8: 4 | E8: 6 | F8: 9.5 | G8: 10 | H8: 48.35 | I8: 51.49 | J8: 128 | L8: 128 | M8: 257.49 | N8: 772.47 | O8: 375 | V8: 2987.54 | W8: 119.75 | X8: 178.05 | Y8: 95.8 | Z8: 12 | AA8: 17.85 | AB8: 4.5 | AC8: 2 | AD8: 83.85 | AJ8: 1 | AL8: 15 | AO8: 14 | AP8: 543.8 | AQ8: 2443.74 | AR8: عبدالعزيز يوسف سيد
A9: 5 | B9: عبده موسى عبدالعظيم | C9: 948.34 | D9: 4 | E9: 6 | F9: 7 | G9: 10 | H9: 33.56 | I9: 35.75 | J9: 89 | L9: 178 | M9: 178.78 | N9: 446.95 | O9: 375 | V9: 2312.38 | W9: 94.85 | X9: 135.4 | Y9: 75.9 | Z9: 9.5 | AA9: 13.55 | AB9: 4.5 | AC9: 2 | AD9: 66.4 | AJ9: 1 | AL9: 8 | AO9: 12 | AP9: 423.1 | AQ9: 1889.28 | AR9: عبده موسى عبدالعظيم
A10: 6 | B10: عماد القاضى عبدالحميد احمد | P10: 2120.57 | Q10: 336.51 | R10: 45.9 | V10: 2502.98 | W10: 63.2 | X10: 187.1 | Y10: 50.55 | Z10: 6.35 | AA10: 18.75 | AB10: 4.5 | AC10: 2 | AD10: 31.3 | AJ10: 1 | AK10: 4 | AL10: 22 | AO10: 11 | AP10: 401.75 | AQ10: 2101.23 | AR10: عماد القاضى عبدالحميد احمد
A11: 7 | B11: محمد عبدالسيد حسن | P11: 2635.15 | Q11: 468.87 | R11: 45.89 | V11: 3149.91 | W11: 87.6 | X11: 227.4 | Y11: 70.15 | Z11: 8.8 | AA11: 22.75 | AE11: 2 | AF11: 10 | AG11: 31.05 | AL11: 33 | AO11: 13 | AP11: 505.75 | AQ11: 2644.16 | AR11: محمد عبدالسيد حسن
A12: 8 | B12: مصطفى احمد مهنى | C12: 1261.15 | D12: 4 | E12: 6 | F12: 9.5 | G12: 10 | H12: 51.92 | I12: 55.25 | J12: 138 | L12: 138 | M12: 276.26 | N12: 828.79 | O12: 375 | V12: 3153.87 | W12: 126.15 | X12: 188.3 | Y12: 100.9 | Z12: 12.65 | AA12: 18.85 | AB12: 4.5 | AC12: 2 | AD12: 88.3 | AJ12: 1 | AL12: 20 | AO12: 15 | AP12: 577.65 | AQ12: 2576.22 | AR12: مصطفى احمد مهنى
A13: 9 | B13: ناصر عبدالجواد عبدالحميد | C13: 1212.86 | D13: 4 | E13: 6 | F13: 9.5 | G13: 10 | H13: 49.19 | I13: 52.39 | J13: 130 | L13: 130 | M13: 261.95 | N13: 785.85 | O13: 375 | V13: 3026.74 | W13: 121.3 | X13: 180.4 | Y13: 97.05 | Z13: 12.15 | AA13: 18.05 | AB13: 4.5 | AC13: 2 | AD13: 84.9 | AJ13: 1 | AL13: 15 | AO13: 14 | AP13: 550.35 | AQ13: 2476.39 | AR13: ناصر عبدالجواد عبدالحميد
A14: 10 | B14: عطا خيرى شافعى | P14: 1171.28 | Q14: 134.25 | R14: 6 | V14: 1311.53 | W14: 27.9 | X14: 103.25 | Y14: 22.3 | Z14: 2.8 | AA14: 10.35 | AE14: 2 | AF14: 10 | AG14: 9.9 | AO14: 7 | AP14: 195.5 | AQ14: 1116.03 | AR14: عطا خيرى شافعى
A15: 11 | B15: نسرين عبدالرؤف عبدالعاطى | C15: 746 | D15: 4 | E15: 2 | F15: 4.8 | G15: 10 | H15: 24.52 | I15: 25 | J15: 63 | L15: 190 | M15: 125 | N15: 250 | O15: 400 | V15: 1844.32 | W15: 74.6 | X15: 108.85 | Y15: 59.7 | Z15: 7.5 | AA15: 10.9 | AB15: 4.5 | AC15: 2 | AD15: 52.25 | AJ15: 1 | AL15: 3 | AN15: 50 | AO15: 9 | AP15: 383.3 | AQ15: 1461.02 | AR15: نسرين عبدالرؤف عبدالعاطى
A16: 12 | B16: هانى صدقى احمد | P16: 1171.28 | Q16: 134.25 | R16: 6 | V16: 1311.53 | W16: 27.9 | X16: 103.25 | Y16: 22.3 | Z16: 2.8 | AA16: 10.35 | AE16: 2 | AF16: 10 | AG16: 9.9 | AO16: 7 | AP16: 195.5 | AQ16: 1116.03 | AR16: هانى صدقى احمد
A17: 13 | B17: هبه ربيع احمد | C17: 840.11 | D17: 4 | E17: 2 | F17: 7 | G17: 10 | H17: 25.62 | I17: 26.5 | J17: 66 | L17: 132 | M17: 132.5 | N17: 331.25 | O17: 400 | V17: 1976.98 | W17: 84.05 | X17: 112.7 | Y17: 67.25 | Z17: 8.45 | AA17: 11.3 | AB17: 4.5 | AC17: 2 | AD17: 58.85 | AJ17: 1 | AL17: 5 | AO17: 11 | AP17: 366.1 | AQ17: 1610.88 | AR17: هبه ربيع احمد
A18: 14 | B18: هبه محمد حسن | C18: 820.8 | D18: 4 | E18: 2 | F18: 7 | G18: 10 | H18: 24.92 | I18: 25.8 | J18: 64 | L18: 129 | M18: 129 | N18: 322.5 | O18: 400 | V18: 1939.02 | W18: 82.1 | X18: 110.85 | Y18: 65.7 | Z18: 8.25 | AA18: 11.1 | AB18: 4.5 | AC18: 2 | AD18: 57.5 | AJ18: 1 | AL18: 5 | AO18: 10 | AP18: 358 | AQ18: 1581.02 | AR18: هبه محمد حسن
A19: 15 | B19: يسرى عزت عبدالحميد | C19: 1174.78 | D19: 4 | E19: 6 | F19: 9.5 | G19: 10 | H19: 47.13 | I19: 50.2 | J19: 125 | L19: 125 | M19: 251.02 | N19: 753.06 | O19: 375 | V19: 2930.69 | W19: 117.5 | X19: 174.6 | Y19: 94 | Z19: 11.75 | AA19: 17.5 | AB19: 4.5 | AC19: 2 | AD19: 82.25 | AJ19: 1 | AL19: 15 | AM19: 204 | AO19: 14 | AP19: 738.1 | AQ19: 2192.59 | AR19: يسرى عزت عبدالحميد
A20: 16 | B20: فاتن عمر موسى | C20: 740 | D20: 4 | E20: 2 | F20: 4.8 | G20: 10 | H20: 24.12 | I20: 24.6 | J20: 61 | L20: 184 | M20: 123 | N20: 246 | O20: 400 | V20: 1823.52 | W20: 74 | X20: 107.35 | Y20: 59.2 | Z20: 7.4 | AA20: 10.75 | AB20: 4.5 | AC20: 2 | AD20: 51.8 | AJ20: 1 | AL20: 3 | AN20: 50 | AO20: 9 | AP20: 380 | AQ20: 1443.52 | AR20: فاتن عمر موسى
A21: 17 | B21: مرفت فرج يوسف | C21: 840.36 | D21: 4 | E21: 2 | F21: 7 | G21: 10 | H21: 25.32 | I21: 26.2 | J21: 65 | L21: 131 | M21: 131 | N21: 327.5 | O21: 400 | V21: 1969.38 | W21: 84.05 | X21: 111.9 | Y21: 67.25 | Z21: 8.45 | AA21: 11.2 | AB21: 4.5 | AC21: 2 | AD21: 58.85 | AJ21: 1 | AL21: 5 | AO21: 11 | AP21: 365.2 | AQ21: 1604.18 | AR21: مرفت فرج يوسف
A22: 18 | B22: منال عبدالتواب عبدالستار | P22: 1171.28 | Q22: 134.25 | R22: 6 | V22: 1311.53 | W22: 27.9 | X22: 103.25 | Y22: 22.3 | Z22: 2.8 | AA22: 10.35 | AE22: 2 | AF22: 10 | AG22: 9.9 | AO22: 7 | AP22: 195.5 | AQ22: 1116.03 | AR22: منال عبدالتواب عبدالستار
A23: 19 | V23: 0 | AP23: 0 | AQ23: 0
A24: 20 | V24: 0 | AP24: 0 | AQ24: 0
B25: اجمالى كشف 3 | C25: =SUM(C5:C24) -> 12643.36 | D25: =SUM(D5:D24) -> 48 | E25: =SUM(E5:E24) -> 52 | F25: =SUM(F5:F24) -> 97.6 | G25: 120 | H25: =SUM(H5:H24) -> 475.42 | I25: 501.65 | J25: 1249 | K25: 0 | L25: =SUM(L5:L24) -> 1785 | M25: 2508.4 | N25: 7164.22 | O25: 4600 | P25: 10504.4 | Q25: 1574.1 | R25: 155.75 | S25: =SUM(S5:S24) -> 2 | V25: 43480.9 | W25: =SUM(W5:W24) -> 1565.95 | X25: =SUM(X5:X24) -> 2769.75 | Y25: 1253.55 | Z25: 157 | AA25: 277.35 | AB25: 54 | AC25: 24 | AD25: 822.5 | AE25: 8 | AF25: 40 | AG25: 60.75 | AH25: 0 | AI25: 0 | AJ25: 12 | AK25: 4 | AL25: 224 | AM25: 204 | AN25: 100 | AO25: 208 | AP25: 7784.85 | AQ25: 35696.05 | AR25: اجمالى كشف 3
B26: اجمالى كشف 2 | C26: 8861.77 | D26: 32 | E26: 40 | F26: 71 | G26: 80 | H26: 342.19 | I26: 363.18 | J26: 903 | K26: =SUM(K10:K24) -> 0 | L26: 1035 | M26: 1816.03 | N26: 5319.61 | O26: 3025 | P26: 13856.81 | Q26: 2337.27 | R26: 232.66 | S26: 0 | V26: 38315.52 | W26: 1326.85 | X26: 2502.05 | Y26: 1061 | Z26: 132.95 | AA26: 250.65 | AB26: 40.5 | AC26: 18 | AD26: 670.15 | AE26: 10 | AF26: 50 | AG26: 120.5 | AH26: 0 | AI26: 3.13 | AJ26: 9 | AK26: 0 | AL26: =SUM(AL6:AL25) -> 428 | AM26: 0 | AN26: 0 | AO26: 177 | AP26: 6639.78 | AQ26: 31675.74 | AR26: اجمالى كشف 2
B27: اجمالى كشف 1 | C27: 13231.76 | D27: 56 | E27: 60 | F27: 99.5 | G27: 140 | H27: 476.3 | I27: 500.15 | J27: 1242 | K27: 80 | L27: 2129 | M27: 2498.36 | N27: 6609.48 | O27: 5500 | P27: 7642.22 | Q27: 1329.36 | R27: 132.84 | S27: 0 | V27: 41726.97 | W27: 1572.2 | X27: 2584.5 | Y27: 1257.65 | Z27: 157.65 | AA27: 258.8 | AB27: 67.5 | AC27: 30 | AD27: 966.35 | AE27: 4 | AF27: 20 | AG27: 62.35 | AH27: 1.5 | AI27: 46.38 | AJ27: 15 | AK27: 0 | AL27: =SUM(AL7:AL26) -> 826 | AM27: 0 | AN27: 200 | AO27: 198 | AP27: 7656.88 | AQ27: 34070.09 | AR27: اجمالى كشف 1
B28: الاجمالى | C28: =SUM(C25:C27) -> 34736.89 | D28: =SUM(D25:D27) -> 136 | E28: 152 | F28: 268.1 | G28: 340 | H28: 1293.91 | I28: 1364.98 | J28: 3394 | K28: 80 | L28: 4949 | M28: 6822.79 | N28: 19093.31 | O28: 13125 | P28: 32003.43 | Q28: 5240.73 | R28: 521.25 | S28: 2 | V28: =SUM(V25:V27) -> 123523.39 | W28: =SUM(W25:W27) -> 4465 | X28: =SUM(X25:X27) -> 7856.3 | Y28: 3572.2 | Z28: 447.6 | AA28: 786.8 | AB28: 162 | AC28: 72 | AD28: 2459 | AE28: 22 | AF28: 110 | AG28: 243.6 | AH28: 1.5 | AI28: 49.51 | AJ28: 36 | AK28: 4 | AL28: =SUM(AL8:AL27) -> 1627 | AM28: 204 | AN28: 300 | AO28: 583 | AP28: 22081.51 | AQ28: 101441.88 | AR28: الاجمالى
AQ29: 31675.74 | AR29: البنوك
AQ30: =SUM(AQ28-AQ29) -> 69766.14 | AR30: الصافى المقتضى صرفه
AL34: اقرار
AB35: أقر أنا / عبدالكريم عبدالمنعم عبدالرحمن مدير المدرسة بأن السادة الموضح أسماءهم بالكشوف من العاملين الخاضعين للقانون 155 لسنة 2011 وقائمين على رأس العمل
AB36: وبذلوا جهداً مميزاً لرفع مستوى الأداء وحصلوا على تقرير كفء للعامين السابقين ولا يوجد بينهم من هو محال للمحكمة التأديبية أو الجنائية ولم يوقع عليهم جزاءات تأديبية
AQ37: مدير المدرسة

Sheet اجمالي
B5: =كشف1!C5:C5 -> 1181.79 | C5: المرتب | E5: =كشف3!AA28:AA28 -> 786.8 | F5: 0.1
B6: =كشف3!D32:D32 -> 0 | C6: اضافية | E6: =كشف3!AB28:AB28 -> 162 | F6: 0.1
B7: =كشف3!E32:E32 -> 0 | C7: اجتماعية | E7: =كشف3!AC28:AC28 -> 72 | F7: 0.08
B8: =كشف3!F32:F32 -> 0 | C8: بدل اغتراب | E8: =كشف3!AD28:AD28 -> 2459 | F8: 0.01
B9: =كشف3!G32:G32 -> 0 | C9: المنحة | E9: =كشف3!AE28:AE28 -> 22 | F9: 0.01
B10: =كشف3!H32:H32 -> 0 | C10: 0.1 | E10: =كشف3!AF28:AF28 -> 110 | F10: نقابة معلمين
B11: =كشف3!I32:I32 -> 0 | C11: 0.1 | E11: =كشف3!AG28:AG28 -> 243.6 | F11: نادي
B12: =كشف3!J32:J32 -> 0 | C12: حافز 25% | E12: =كشف3!AI28:AI28 -> 49.51 | F12: 0.07
B13: =كشف3!K32:K32 -> 0 | C13: حافز أداء | E13: =كشف3!AK28:AK28 -> 4 | F13: نقابة عاملين
B14: =كشف3!L32:L32 -> 0 | C14: حافز تطوير | E14: =كشف3!AL28:AL28 -> 1627 | F14: زمالة
B15: =كشف3!M32:M32 -> 0 | C15: بدل معلم | E15: =كشف3!AN28:AN28 -> 300 | F15: 5% زمالة
B16: =كشف3!N32:N32 -> 0 | C16: بدل اعتماد | E16: =كشف3!AO28:AO28 -> 583 | F16: معاش
B17: =كشف3!O32:O32 -> 0 | C17: أعباء وظيفية | E17: =كشف3!AP28:AP28 -> 22081.51 | F17: اعتبارية
B18: =كشف3!P32:P32 -> 0 | C18: الاجر الوظيفى | E18: =كشف3!AQ28:AQ28 -> 101441.88 | F18: فرعيه
B19: =كشف3!Q32:Q32 -> 0 | C19: الاجر المكمل | E19: =كشف3!AK28 -> 4 | F19: م تطبيقية
B20: =كشف3!R32:R32 -> 0 | C20: حافز تعويضى | E20: =كشف3!AL28 -> 1627 | F20: كسب عمل
B21: =كشف3!S32:S32 -> 0 | C21: بدل نظارة | E21: =كشف3!AM28 -> 204 | F21: قسط نقابة
B22: =كشف3!V32:V32 -> 0 | E22: =كشف3!AN28 -> 300 | F22: ايرادات
B23: =كشف3!W32:W32 -> 0 | E23: =كشف3!AO28 -> 583 | F23: دمغه
B24: =كشف3!X32:X32 -> 0
B25: =كشف3!Y32:Y32 -> 0 | E25: =كشف3!AP28 -> 22081.51 | F25: جملة المستقطع
B27: =كشف3!Z32:Z32 -> 0 | C27: جملة المستحق | E27: =كشف3!AQ28 -> 101441.88 | F27: صافي المبلغ

Sheet مفردات مرتب1
B2: إدارة ملوي التعليمية | F2: بسم الله الرحمن الرحيم
B3: مدرسة وحدة دروة | I3: احلام احمد عبدالباقى
B4: السيد/ | F4: بعد التحية
C5: بيان بمفردات مرتب السيد / | D5: =VLOOKUP($I$3,كشف1,1,FALSE) -> احلام احمد عبدالباقى
B7: =VLOOKUP($I$3,كشف1,2,FALSE) -> 1181.79 | C7: المرتب | E7: =VLOOKUP($I$3,كشف1,22,FALSE) -> 118.2 | F7: 0.1
B8: =VLOOKUP($I$3,كشف1,3,FALSE) -> 4 | C8: اضافية | E8: =VLOOKUP($I$3,كشف1,23,FALSE) -> 173.2 | F8: 0.1
B9: =VLOOKUP($I$3,كشف1,4,FALSE) -> 2 | C9: اجتماعية | E9: =VLOOKUP($I$3,كشف1,24,FALSE) -> 94.55 | F9: 0.08
B10: =VLOOKUP($I$3,كشف1,5,FALSE) -> 9.5 | C10: اغتراب | E10: =VLOOKUP($I$3,كشف1,25,FALSE) -> 11.85 | F10: 0.01
B11: =VLOOKUP($I$3,كشف1,6,FALSE) -> 10 | C11: منحة | E11: =VLOOKUP($I$3,كشف1,26,FALSE) -> 17.35 | F11: 0.01
B12: =VLOOKUP($I$3,كشف1,7,FALSE) -> 47.77 | C12: 0.1 | E12: =VLOOKUP($I$3,كشف1,27,FALSE) -> 4.5 | F12: نقابة معلمين
B13: =VLOOKUP($I$3,كشف1,8,FALSE) -> 50.79 | C13: 0.1 | E13: =VLOOKUP($I$3,كشف1,28,FALSE) -> 2 | F13: نادي
B14: =VLOOKUP($I$3,كشف1,9,FALSE) -> 126 | C14: حافز 25% | E14: =VLOOKUP($I$3,كشف1,29,FALSE) -> 82.75 | F14: 0.07
B15: =VLOOKUP($I$3,كشف1,10,FALSE) -> 0 | C15: حافز تطوير | E15: =VLOOKUP($I$3,كشف1,30,FALSE) -> 0 | F15: نقابة عاملين
B16: =VLOOKUP($I$3,كشف1,11,FALSE) -> 126 | C16: حافز أداء | E16: =VLOOKUP($I$3,كشف1,31,FALSE) -> 0 | F16: زمالة
B17: =VLOOKUP($I$3,كشف1,12,FALSE) -> 253.97 | C17: بدل معلم | E17: =VLOOKUP($I$3,كشف1,32,FALSE) -> 0 | F17: 5% زمالة
B18: =VLOOKUP($I$3,كشف1,13,FALSE) -> 761.31 | C18: بدل اعتماد | E18: =VLOOKUP($I$3,كشف1,33,FALSE) -> 0 | F18: معاش
B19: =VLOOKUP($I$3,كشف1,14,FALSE) -> 350 | C19: أعباء وظيفية | E19: =VLOOKUP($I$3,كشف1,34,FALSE) -> 0 | F19: اعتبارية
B20: =VLOOKUP($I$3,كشف1,15,FALSE) -> 0 | C20: اجر وظيفى | E20: =VLOOKUP($I$3,كشف1,35,FALSE) -> 1 | F20: فرعيه
B21: =VLOOKUP($I$3,كشف1,16,FALSE) -> 0 | C21: مكمل | E21: =VLOOKUP($I$3,كشف1,36,FALSE) -> 0 | F21: م تطبيقية
B22: =VLOOKUP($I$3,كشف1,17,FALSE) -> 0 | C22: ح تعويضى | E22: =VLOOKUP($I$3,كشف1,37,FALSE) -> 15 | F22: كسب عمل
E23: =VLOOKUP($I$3,كشف1,38,FALSE) -> 0 | F23: ايرادات
B24: =VLOOKUP($I$3,كشف1,21,FALSE) -> 2923.13 | C24: جملة المستحق | E24: =VLOOKUP($I$3,كشف1,39,FALSE) -> 14 | F24: دمغه
B25: =VLOOKUP($I$3,كشف1,41,FALSE) -> 534.4 | C25: جملة المستقطع | E25: =VLOOKUP($I$3,كشف1,40,FALSE) -> 0
B26: =VLOOKUP($I$3,كشف1,42,FALSE) -> 2388.73 | C26: الصافي فقط وقدره
B36: مسئول الماهيات | D36: مدير المدرسة | F36: يعتمد &

Sheet مفرادات راتب 2
B2: إدارة ملوي التعليمية | F2: بسم الله الرحمن الرحيم
B3: مدرسة وحدة دروة | I3: ابتسام حسن محمد
B4: السيد/ | F4: بعد التحية
C5: بيان بمفردات مرتب السيد / | D5: =VLOOKUP($I$3,كشف2,1,FALSE) -> ابتسام حسن محمد
B7: =VLOOKUP($I$3,كشف2,2,FALSE) -> 828.3 | C7: المرتب | E7: =VLOOKUP($I$3,كشف2,22,FALSE) -> 82.85 | F7: 0.1
B8: =VLOOKUP($I$3,كشف2,3,FALSE) -> 4 | C8: اضافية | E8: =VLOOKUP($I$3,كشف2,23,FALSE) -> 113.55 | F8: 0.1
B9: =VLOOKUP($I$3,كشف2,4,FALSE) -> 2 | C9: اجتماعية | E9: =VLOOKUP($I$3,كشف2,24,FALSE) -> 66.3 | F9: 0.08
B10: =VLOOKUP($I$3,كشف2,5,FALSE) -> 7 | C10: اغتراب | E10: =VLOOKUP($I$3,كشف2,25,FALSE) -> 8.3 | F10: 0.01
B11: =VLOOKUP($I$3,كشف2,6,FALSE) -> 10 | C11: منحة | E11: =VLOOKUP($I$3,كشف2,26,FALSE) -> 11.4 | F11: 0.01
B12: =VLOOKUP($I$3,كشف2,7,FALSE) -> 25.52 | C12: 0.1 | E12: =VLOOKUP($I$3,كشف2,27,FALSE) -> 4.5 | F12: نقابة معلمين
B13: =VLOOKUP($I$3,كشف2,8,FALSE) -> 26.8 | C13: 0.1 | E13: =VLOOKUP($I$3,كشف2,28,FALSE) -> 2 | F13: نادي
B14: =VLOOKUP($I$3,كشف2,9,FALSE) -> 67 | C14: حافز 25% | E14: =VLOOKUP($I$3,كشف2,29,FALSE) -> 58 | F14: 0.07
B15: =VLOOKUP($I$3,كشف2,10,FALSE) -> 0 | C15: حافز تطوير | E15: =VLOOKUP($I$3,كشف2,30,FALSE) -> 0 | F15: نقابة عاملين
B16: =VLOOKUP($I$3,كشف2,11,FALSE) -> 134 | C16: حافز أداء | E16: =VLOOKUP($I$3,كشف2,31,FALSE) -> 0 | F16: زمالة
B17: =VLOOKUP($I$3,كشف2,12,FALSE) -> 134 | C17: بدل معلم | E17: =VLOOKUP($I$3,كشف2,32,FALSE) -> 0 | F17: 5% زمالة
B18: =VLOOKUP($I$3,كشف2,13,FALSE) -> 335 | C18: بدل اعتماد | E18: =VLOOKUP($I$3,كشف2,33,FALSE) -> 0 | F18: معاش
B19: =VLOOKUP($I$3,كشف2,14,FALSE) -> 400 | C19: أعباء وظيفية | E19: =VLOOKUP($I$3,كشف2,34,FALSE) -> 0 | F19: اعتبارية
B20: =VLOOKUP($I$3,كشف2,15,FALSE) -> 0 | C20: اجر وظيفى | E20: =VLOOKUP($I$3,كشف2,35,FALSE) -> 1 | F20: فرعيه
B21: =VLOOKUP($I$3,كشف2,16,FALSE) -> 0 | C21: مكمل | E21: =VLOOKUP($I$3,كشف2,36,FALSE) -> 0 | F21: م تطبيقية
B22: =VLOOKUP($I$3,كشف2,17,FALSE) -> 0 | C22: ح تعويضى | E22: =VLOOKUP($I$3,كشف2,37,FALSE) -> 5 | F22: كسب عمل
E23: =VLOOKUP($I$3,كشف2,38,FALSE) -> 0 | F23: ايرادات
B24: =VLOOKUP($I$3,كشف2,21,FALSE) -> 1973.62 | C24: جملة المستحق | E24: =VLOOKUP($I$3,كشف2,39,FALSE) -> 10 | F24: دمغه
B25: =VLOOKUP($I$3,كشف2,41,FALSE) -> 362.9 | C25: جملة المستقطع | E25: =VLOOKUP($I$3,كشف2,40,FALSE) -> 0
B26: =VLOOKUP($I$3,كشف2,42,FALSE) -> 1610.72 | C26: الصافي فقط وقدره
B36: مسئول الماهيات | D36: مدير المدرسة | F36: يعتمد &

Sheet مفردات راتب 3
B2: إدارة ملوي التعليمية | F2: بسم الله الرحمن الرحيم
B3: مدرسة وحدة دروة | I3: عبدالرحمن شوقى محفوظ
B4: السيد/ | F4: بعد التحية
C5: بيان بمفردات مرتب السيد / | D5: =VLOOKUP($I$3,كشف3,1,FALSE) -> عبدالرحمن شوقى محفوظ
B7: =VLOOKUP($I$3,كشف3,2,FALSE) -> 1344.04 | C7: المرتب | E7: =VLOOKUP($I$3,كشف3,22,FALSE) -> 134.4 | F7: 0.1
B8: =VLOOKUP($I$3,كشف3,3,FALSE) -> 4 | C8: اضافية | E8: =VLOOKUP($I$3,كشف3,23,FALSE) -> 199.45 | F8: 0.1
B9: =VLOOKUP($I$3,كشف3,4,FALSE) -> 6 | C9: اجتماعية | E9: =VLOOKUP($I$3,كشف3,24,FALSE) -> 107.55 | F9: 0.08
B10: =VLOOKUP($I$3,كشف3,5,FALSE) -> 9.5 | C10: اغتراب | E10: =VLOOKUP($I$3,كشف3,25,FALSE) -> 13.45 | F10: 0.01
B11: =VLOOKUP($I$3,كشف3,6,FALSE) -> 10 | C11: منحة | E11: =VLOOKUP($I$3,كشف3,26,FALSE) -> 19.95 | F11: 0.01
B12: =VLOOKUP($I$3,كشف3,7,FALSE) -> 55.85 | C12: 0.1 | E12: =VLOOKUP($I$3,كشف3,27,FALSE) -> 0 | F12: نقابة معلمين
B13: =VLOOKUP($I$3,كشف3,8,FALSE) -> 59.41 | C13: 0.1 | E13: =VLOOKUP($I$3,كشف3,28,FALSE) -> 0 | F13: نادي
B14: =VLOOKUP($I$3,كشف3,9,FALSE) -> 148 | C14: حافز 25% | E14: =VLOOKUP($I$3,كشف3,29,FALSE) -> 0 | F14: 0.07
B15: =VLOOKUP($I$3,كشف3,10,FALSE) -> 0 | C15: حافز تطوير | E15: =VLOOKUP($I$3,كشف3,30,FALSE) -> 0 | F15: نقابة عاملين
B16: =VLOOKUP($I$3,كشف3,11,FALSE) -> 148 | C16: حافز أداء | E16: =VLOOKUP($I$3,كشف3,31,FALSE) -> 0 | F16: زمالة
B17: =VLOOKUP($I$3,كشف3,12,FALSE) -> 297.09 | C17: بدل معلم | E17: =VLOOKUP($I$3,كشف3,32,FALSE) -> 0 | F17: 5% زمالة
B18: =VLOOKUP($I$3,كشف3,13,FALSE) -> 891.27 | C18: بدل اعتماد | E18: =VLOOKUP($I$3,كشف3,33,FALSE) -> 0 | F18: معاش
B19: =VLOOKUP($I$3,كشف3,14,FALSE) -> 375 | C19: أعباء وظيفية | E19: =VLOOKUP($I$3,كشف3,34,FALSE) -> 0 | F19: اعتبارية
B20: =VLOOKUP($I$3,كشف3,15,FALSE) -> 0 | C20: اجر وظيفى | E20: =VLOOKUP($I$3,كشف3,35,FALSE) -> 0 | F20: فرعيه
B21: =VLOOKUP($I$3,كشف3,16,FALSE) -> 0 | C21: مكمل | E21: =VLOOKUP($I$3,كشف3,36,FALSE) -> 0 | F21: م تطبيقية
B22: =VLOOKUP($I$3,كشف3,17,FALSE) -> 0 | C22: ح تعويضى | E22: =VLOOKUP($I$3,كشف3,37,FALSE) -> 20 | F22: كسب عمل
E23: =VLOOKUP($I$3,كشف3,38,FALSE) -> 0 | F23: ايرادات
B24: =VLOOKUP($I$3,كشف3,21,FALSE) -> 3348.16 | C24: جملة المستحق | E24: =VLOOKUP($I$3,كشف3,39,FALSE) -> 0 | F24: دمغه
B25: =VLOOKUP($I$3,كشف3,41,FALSE) -> 509.8 | C25: جملة المستقطع | E25: =VLOOKUP($I$3,كشف3,40,FALSE) -> 15
B26: =VLOOKUP($I$3,كشف3,42,FALSE) -> 2838.36 | C26: الصافي فقط وقدره
B36: مسئول الماهيات | D36: مدير المدرسة | F36: يعتمد &

Sheet نقابة
A1: إدارة ملوي التعليمية | E1: بسم الله الرحمن الرحيم
A2: مدرسة وحدة دروة
C3: بيان المستقطع لحساب نقابة العاملين والنادي عن شهر سبتمبر2018م
A5: م | B5: الاسم | C5: نقابة العاملين | D5: الزمالة
A6: 1 | B6: =كشف1!B5:B5 -> احلام احمد عبدالباقى | C6: =كشف1!AB5:AB5 -> 4.5 | D6: =كشف1!AC5:AC5 -> 2
A7: 2 | B7: =كشف1!B7:B7 -> السيد شوقى فخرى | C7: =كشف1!AB7:AB7 -> 4.5 | D7: =كشف1!AC7:AC7 -> 2
A8: 3 | B8: =كشف1!B8:B8 -> امانى محمد محسن احمد | C8: =كشف1!AB8:AB8 -> 4.5 | D8: =كشف1!AC8:AC8 -> 2
A9: 4 | B9: =كشف1!B9:B9 -> امل زغلول ياسين | C9: =كشف1!AB9:AB9 -> 4.5 | D9: =كشف1!AC9:AC9 -> 2
A10: 5 | B10: =كشف1!B10:B10 -> ايناس صدقى عزمى | C10: =كشف1!AB10:AB10 -> 4.5 | D10: =كشف1!AC10:AC10 -> 2
A11: 6 | B11: =كشف1!B11:B11 -> جبر حسن عبدالمنطلب | C11: =كشف1!AB11:AB11 -> 4.5 | D11: =كشف1!AC11:AC11 -> 2
A12: 7 | B12: =كشف1!B12:B12 -> حمدى درويش فهمى | C12: =كشف1!AB12:AB12 -> 4.5 | D12: =كشف1!AC12:AC12 -> 2
A13: 8 | B13: =كشف1!B13:B13 -> رضا محمد مرسي | C13: =كشف1!AB13:AB13 -> 4.5 | D13: =كشف1!AC13:AC13 -> 2
A14: 9 | B14: =كشف1!B14:B14 -> صباح عبدالصبور محمد | C14: =كشف1!AB14:AB14 -> 4.5 | D14: =كشف1!AC14:AC14 -> 2
A15: 10 | B15: =كشف1!B15:B15 -> صلاح عمر موسي | C15: =كشف1!AB15:AB15 -> 4.5 | D15: =كشف1!AC15:AC15 -> 2
A16: 11 | B16: =كشف1!B16:B16 -> عبدالاول عمر موسي | C16: =كشف1!AB16:AB16 -> 4.5 | D16: =كشف1!AC16:AC16 -> 2
A17: 12 | B17: =كشف1!B17:B17 -> عبدالعال جالى محمد | C17: =كشف1!AB17:AB17 -> 4.5 | D17: =كشف1!AC17:AC17 -> 2
A18: 13 | B18: =كشف1!B18:B18 -> ربيع رمضان ابراهيم | C18: =كشف1!AB18:AB18 -> 4.5 | D18: =كشف1!AC18:AC18 -> 2
A19: 14 | B19: =كشف1!B20:B20 -> وليد محمد سيد | C19: =كشف1!AB20:AB20 -> 4.5 | D19: =كشف1!AC20:AC20 -> 2
A20: 15 | B20: =كشف1!B21:B21 -> محمد عبدالمنعم عبدالعال | C20: =كشف1!AB21:AB21 -> 4.5 | D20: =كشف1!AC21:AC21 -> 2
A21: 16 | B21: =كشف2!B5:B5 -> ابتسام حسن محمد | C21: =كشف2!AB5:AB5 -> 4.5 | D21: =كشف2!AC5:AC5 -> 2
A22: 17 | B22: =كشف2!B9:B9 -> امال عيسى سلامه | C22: =كشف2!AB9:AB9 -> 4.5 | D22: =كشف2!AC9:AC9 -> 2
A23: 18 | B23: =كشف2!B10:B10 -> جمال عبدالله تونى | C23: =كشف2!AB10:AB10 -> 4.5 | D23: =كشف2!AC10:AC10 -> 2
A24: 19 | B24: =كشف2!B11:B11 -> عبدالحميد ناجى فهمى | C24: =كشف2!AB11:AB11 -> 4.5 | D24: =كشف2!AC11:AC11 -> 2
A25: 20 | B25: =كشف2!B12:B12 -> علاء يونس عبدالمجيد | C25: =كشف2!AB12:AB12 -> 4.5 | D25: =كشف2!AC12:AC12 -> 2
A26: 21 | B26: =كشف2!B13:B13 -> محمد على حسين | C26: =كشف2!AB13:AB13 -> 4.5 | D26: =كشف2!AC13:AC13 -> 2
A27: 22 | B27: =كشف2!B14:B14 -> محمد ناجى محمد | C27: =كشف2!AB14:AB14 -> 4.5 | D27: =كشف2!AC14:AC14 -> 2
A28: 23 | B28: =كشف2!B16:B16 -> مصطفى محمد عبدالحليم | C28: =كشف2!AB16:AB16 -> 4.5 | D28: =كشف2!AC16:AC16 -> 2
A29: 24 | B29: =كشف2!B17:B17 -> نجوى محمد اسماعيل | C29: =كشف2!AB17:AB17 -> 4.5 | D29: =كشف2!AC17:AC17 -> 2
A30: 25 | B30: =كشف3!B6:B6 -> عبدالكريم عبدالمنعم عبدالرحمن | C30: =كشف3!AB6:AB6 -> 4.5 | D30: =كشف3!AC6:AC6 -> 2
A31: 26 | B31: =كشف3!B8:B8 -> عبدالعزيز يوسف سيد | C31: =كشف3!AB8:AB8 -> 4.5 | D31: =كشف3!AC8:AC8 -> 2
A32: 27 | B32: =كشف3!B9:B9 -> عبده موسى عبدالعظيم | C32: =كشف3!AB9:AB9 -> 4.5 | D32: =كشف3!AC9:AC9 -> 2
A33: 28 | B33: =كشف3!B10:B10 -> عماد القاضى عبدالحميد احمد | C33: =كشف3!AB10:AB10 -> 4.5 | D33: =كشف3!AC10:AC10 -> 2
A34: 29 | B34: =كشف3!B12:B12 -> مصطفى احمد مهنى | C34: =كشف3!AB12:AB12 -> 4.5 | D34: =كشف3!AC12:AC12 -> 2
A35: 30 | B35: =كشف3!B13:B13 -> ناصر عبدالجواد عبدالحميد | C35: =كشف3!AB13:AB13 -> 4.5 | D35: =كشف3!AC13:AC13 -> 2
A36: 31 | B36: =كشف3!B15:B15 -> نسرين عبدالرؤف عبدالعاطى | C36: =كشف3!AB15:AB15 -> 4.5 | D36: =كشف3!AC15:AC15 -> 2
A37: 32 | B37: =كشف3!B17:B17 -> هبه ربيع احمد | C37: =كشف3!AB17:AB17 -> 4.5 | D37: =كشف3!AC17:AC17 -> 2
A38: 33 | B38: =كشف3!B18:B18 -> هبه محمد حسن | C38: =كشف3!AB18:AB18 -> 4.5 | D38: =كشف3!AC18:AC18 -> 2
A39: 34 | B39: =كشف3!B19:B19 -> يسرى عزت عبدالحميد | C39: =كشف3!AB19:AB19 -> 4.5 | D39: =كشف3!AC19:AC19 -> 2
A40: 35 | B40: =كشف3!B20:B20 -> فاتن عمر موسى | C40: =كشف3!AB20:AB20 -> 4.5 | D40: =كشف3!AC20:AC20 -> 2
A41: 36 | B41: =كشف3!B21:B21 -> مرفت فرج يوسف | C41: =كشف3!AB21:AB21 -> 4.5 | D41: =كشف3!AC21:AC21 -> 2
B42: الاجمـــــــــالي | C42: =SUM(C6:C41) -> 162 | D42: =SUM(D6:D41) -> 72
B43: مــاهيـــــــــات | C43: مدير المدرسة

Sheet 7%
A1: إدارة ملوي التعليمية | D1: بسم الله الرحمن الرحيم
A2: مدرسة وحدة دروة
A3: بيان المستقطع لحساب 7% صندوق نقابة عن شهر سبتمبر 2018
A4: م | B4: الاسم | C4: نقابة العاملين
A5: 1 | B5: =كشف1!B5:B5 -> احلام احمد عبدالباقى | C5: =كشف1!AD5:AD5 -> 82.75
A6: 2 | B6: =كشف1!B7:B7 -> السيد شوقى فخرى | C6: =كشف1!AD7:AD7 -> 53.4
A7: 3 | B7: =كشف1!B8:B8 -> امانى محمد محسن احمد | C7: =كشف1!AD8:AD8 -> 51.55
A8: 4 | B8: =كشف1!B9:B9 -> امل زغلول ياسين | C8: =كشف1!AD9:AD9 -> 58.9
A9: 5 | B9: =كشف1!B10:B10 -> ايناس صدقى عزمى | C9: =كشف1!AD10:AD10 -> 53.4
A10: 6 | B10: =كشف1!B11:B11 -> جبر حسن عبدالمنطلب | C10: =كشف1!AD11:AD11 -> 85.2
A11: 7 | B11: =كشف1!B12:B12 -> حمدى درويش فهمى | C11: =كشف1!AD12:AD12 -> 96.65
A12: 8 | B12: =كشف1!B13:B13 -> رضا محمد مرسي | C12: =كشف1!AD13:AD13 -> 51.55
A13: 9 | B13: =كشف1!B14:B14 -> صباح عبدالصبور محمد | C13: =كشف1!AD14:AD14 -> 82.1
A14: 10 | B14: =كشف1!B15:B15 -> صلاح عمر موسي | C14: =كشف1!AD15:AD15 -> 57.75
A15: 11 | B15: =كشف1!B16:B16 -> عبدالاول عمر موسي | C15: =كشف1!AD16:AD16 -> 51.55
A16: 12 | B16: =كشف1!B17:B17 -> عبدالعال جالى محمد | C16: =كشف1!AD17:AD17 -> 39.7
A17: 13 | B17: =كشف1!B18:B18 -> ربيع رمضان ابراهيم | C17: =كشف1!AD18:AD18 -> 57.4
A18: 14 | B18: =كشف1!B20:B20 -> وليد محمد سيد | C18: =كشف1!AD20:AD20 -> 56.4
A19: 15 | B19: =كشف1!B21:B21 -> محمد عبدالمنعم عبدالعال | C19: =كشف1!AD21:AD21 -> 88.05
A20: 16 | B20: =كشف2!B5:B5 -> ابتسام حسن محمد | C20: =كشف2!AD5:AD5 -> 58
A21: 17 | B21: =كشف2!B9:B9 -> امال عيسى سلامه | C21: =كشف2!AD9:AD9 -> 49.65
A22: 18 | B22: =كشف2!B10:B10 -> جمال عبدالله تونى | C22: =كشف2!AD10:AD10 -> 89.15
A23: 19 | B23: =كشف2!B11:B11 -> عبدالحميد ناجى فهمى | C23: =كشف2!AD11:AD11 -> 83.85
A24: 20 | B24: =كشف2!B12:B12 -> علاء يونس عبدالمجيد | C24: =كشف2!AD12:AD12 -> 83.45
A25: 21 | B25: =كشف2!B13:B13 -> محمد على حسين | C25: =كشف2!AD13:AD13 -> 84.9
A26: 22 | B26: =كشف2!B14:B14 -> محمد ناجى محمد | C26: =كشف2!AD14:AD14 -> 80.8
A27: 23 | B27: =كشف2!B16:B16 -> مصطفى محمد عبدالحليم | C27: =كشف2!AD16:AD16 -> 82.85
A28: 24 | B28: =كشف2!B17:B17 -> نجوى محمد اسماعيل | C28: =كشف2!AD17:AD17 -> 57.5
A29: 25 | B29: =كشف3!B6:B6 -> عبدالكريم عبدالمنعم عبدالرحمن | C29: =كشف3!AD6:AD6 -> 106.25
A30: 26 | B30: =كشف3!B8:B8 -> عبدالعزيز يوسف سيد | C30: =كشف3!AD8:AD8 -> 83.85
A31: 27 | B31: =كشف3!B9:B9 -> عبده موسى عبدالعظيم | C31: =كشف3!AD9:AD9 -> 66.4
A32: 28 | B32: =كشف3!B10:B10 -> عماد القاضى عبدالحميد احمد | C32: =كشف3!AD10:AD10 -> 31.3
A33: 29 | B33: =كشف3!B12:B12 -> مصطفى احمد مهنى | C33: =كشف3!AD12:AD12 -> 88.3
A34: 30 | B34: =كشف3!B13:B13 -> ناصر عبدالجواد عبدالحميد | C34: =كشف3!AD13:AD13 -> 84.9
A35: 31 | B35: =كشف3!B15:B15 -> نسرين عبدالرؤف عبدالعاطى | C35: =كشف3!AD15:AD15 -> 52.25
A36: 32 | B36: =كشف3!B17:B17 -> هبه ربيع احمد | C36: =كشف3!AD17:AD17 -> 58.85
A37: 33 | B37: =كشف3!B18:B18 -> هبه محمد حسن | C37: =كشف3!AD18:AD18 -> 57.5
A38: 34 | B38: =كشف3!B19:B19 -> يسرى عزت عبدالحميد | C38: =كشف3!AD19:AD19 -> 82.25
A39: 35 | B39: =كشف3!B20:B20 -> فاتن عمر موسى | C39: =كشف3!AD20:AD20 -> 51.8
A40: 36 | B40: =كشف3!B21:B21 -> مرفت فرج يوسف | C40: =كشف3!AD21:AD21 -> 58.85
B41: الاجمـــــــــالي | C41: =SUM(C5:C40) -> 2459
B43: مــاهيـــــــــات | C43: مدير المدرسة

Sheet كسب عمل
A1: إدارة ملوي التعليمية | E1: بسم الله الرحمن الرحيم
A2: مدرسة وحدة دروة
B3: بيان المستقطع لحساب كسب العمل عن شهرسبتمبر2018م
A4: م | B4: الاسم | C4: كسب العمل | D4: م | E4: الاسم | F4: كسب العمل
A5: 1 | B5: =كشف1!B5:B5 -> احلام احمد عبدالباقى | C5: =كشف1!AL5:AL5 -> 15 | D5: 31 | E5: =كشف3!B6:B6 -> عبدالكريم عبدالمنعم عبدالرحمن | F5: =كشف3!AL6:AL6 -> 30
A6: 2 | B6: =كشف1!B6:B6 -> اكرام خليل امبارك | C6: =كشف1!AL6:AL6 -> 30 | D6: 32 | E6: =كشف3!B7:B7 -> مصطفى كامل خليفه | F6: =كشف3!AL7:AL7 -> 25
A7: 3 | B7: =كشف1!B7:B7 -> السيد شوقى فخرى | C7: =كشف1!AL7:AL7 -> 3 | D7: 33 | E7: =كشف3!B8:B8 -> عبدالعزيز يوسف سيد | F7: =كشف3!AL8:AL8 -> 15
A8: 4 | B8: =كشف1!B8:B8 -> امانى محمد محسن احمد | C8: =كشف1!AL8:AL8 -> 3 | D8: 34 | E8: =كشف3!B9:B9 -> عبده موسى عبدالعظيم | F8: =كشف3!AL9:AL9 -> 8
A9: 5 | B9: =كشف1!B9:B9 -> امل زغلول ياسين | C9: =كشف1!AL9:AL9 -> 5 | D9: 35 | E9: =كشف3!B10:B10 -> عماد القاضى عبدالحميد احمد | F9: =كشف3!AL10:AL10 -> 22
A10: 6 | B10: =كشف1!B10:B10 -> ايناس صدقى عزمى | C10: =كشف1!AL10:AL10 -> 3 | D10: 36 | E10: =كشف3!B11:B11 -> محمد عبدالسيد حسن | F10: =كشف3!AL11:AL11 -> 33
A11: 7 | B11: =كشف1!B11:B11 -> جبر حسن عبدالمنطلب | C11: =كشف1!AL11:AL11 -> 15 | D11: 37 | E11: =كشف3!B12:B12 -> مصطفى احمد مهنى | F11: =كشف3!AL12:AL12 -> 20
A12: 8 | B12: =كشف1!B12:B12 -> حمدى درويش فهمى | C12: =كشف1!AL12:AL12 -> 25 | D12: 38 | E12: =كشف3!B13:B13 -> ناصر عبدالجواد عبدالحميد | F12: =كشف3!AL13:AL13 -> 15
A13: 9 | B13: =كشف1!B13:B13 -> رضا محمد مرسي | C13: =كشف1!AL13:AL13 -> 3 | D13: 39 | E13: =كشف3!B15:B15 -> نسرين عبدالرؤف عبدالعاطى | F13: =كشف3!AL15:AL15 -> 3
A14: 10 | B14: =كشف1!B14:B14 -> صباح عبدالصبور محمد | C14: =كشف1!AL14:AL14 -> 15 | D14: 40 | E14: =كشف3!B17:B17 -> هبه ربيع احمد | F14: =كشف3!AL17:AL17 -> 5
A15: 11 | B15: =كشف1!B15:B15 -> صلاح عمر موسي | C15: =كشف1!AL15:AL15 -> 5 | D15: 41 | E15: =كشف3!B18:B18 -> هبه محمد حسن | F15: =كشف3!AL18:AL18 -> 5
A16: 12 | B16: =كشف1!B16:B16 -> عبدالاول عمر موسي | C16: =كشف1!AL16:AL16 -> 3 | D16: 42 | E16: =كشف3!B19:B19 -> يسرى عزت عبدالحميد | F16: =كشف3!AL19:AL19 -> 15
A17: 13 | B17: =كشف1!B17:B17 -> عبدالعال جالى محمد | C17: =كشف1!AL17:AL17 -> 30 | D17: 43 | E17: =كشف3!B20:B20 -> فاتن عمر موسى | F17: =كشف3!AL20:AL20 -> 3
A18: 14 | B18: =كشف1!B18:B18 -> ربيع رمضان ابراهيم | C18: =كشف1!AL18:AL18 -> 5 | D18: 44 | E18: =كشف3!B21:B21 -> مرفت فرج يوسف | F18: =كشف3!AL21:AL21 -> 5
A19: 15 | B19: =كشف1!B19:B19 -> حسين جبر على | C19: =كشف1!AL19:AL19 -> 30
A20: 16 | B20: =كشف1!B20:B20 -> وليد محمد سيد | C20: =كشف1!AL20:AL20 -> 5
A21: 17 | B21: =كشف1!B21:B21 -> محمد عبدالمنعم عبدالعال | C21: =كشف1!AL21:AL21 -> 20
A22: 18 | B22: =كشف2!B5:B5 -> ابتسام حسن محمد | C22: =كشف2!AL5:AL5 -> 5
A23: 19 | B23: =كشف2!B6:B6 -> امال ناجى عبدالمجيد | C23: =كشف2!AL6:AL6 -> 30
A24: 20 | B24: =كشف2!B8:B8 -> يحى محمد احمد | C24: =كشف2!AL8:AL8 -> 33
A25: 21 | B25: =كشف2!B9:B9 -> امال عيسى سلامه | C25: =كشف2!AL9:AL9 -> 50
A26: 22 | B26: =كشف2!B10:B10 -> جمال عبدالله تونى | C26: =كشف2!AL10:AL10 -> 20
A27: 23 | B27: =كشف2!B11:B11 -> عبدالحميد ناجى فهمى | C27: =كشف2!AL11:AL11 -> 15 | H27: =SUM(F30+F31) -> 687
A28: 24 | B28: =كشف2!B12:B12 -> علاء يونس عبدالمجيد | C28: =كشف2!AL12:AL12 -> 15
A29: 25 | B29: =كشف2!B13:B13 -> محمد على حسين | C29: =كشف2!AL13:AL13 -> 15
A30: 26 | B30: =كشف2!B14:B14 -> محمد ناجى محمد | C30: =كشف2!AL14:AL14 -> 15 | E30: اجمالي | F30: =SUM(F5:F29) -> 204
A31: 27 | B31: =كشف2!B15:B15 -> محمود محمد ابراهيم | C31: =كشف2!AL15:AL15 -> 28 | E31: ماقبله | F31: =SUM(C5:C34) -> 483
A32: 28 | B32: =كشف2!B16:B16 -> مصطفى محمد عبدالحليم | C32: =كشف2!AL16:AL16 -> 15 | E32: الاجمـــــــــــــــــــــالي | F32: =SUM(F5:F31) -> 891
A33: 29 | B33: =كشف2!B17:B17 -> نجوى محمد اسماعيل | C33: =كشف2!AL17:AL17 -> 5
A34: 30 | B34: =كشف2!B18:B18 -> سليمان عبدالله سليمان | C34: =كشف2!AL18:AL18 -> 22
E36: الاجمالي العام | F36: =SUM(F30:F31) -> 687
B38: مــاهيـــــــــات | C38: مدير المدرسة

Sheet عاملين وزمالة
A1: إدارة ملوي التعليمية | C1: بسم الله الرحمن الرحيم
A2: مدرسة وحدة دروة
A3: بيان المستقطع لحساب خدمة العاملين والزمالةعن شهرسبتمبر2018م
A5: م | B5: الاسم | C5: خدمة عاملين | D5: زمالة
A6: 1 | B6: =كشف1!B6:B6 -> اكرام خليل امبارك | C6: =كشف1!AE6:AE6 -> 2 | D6: =كشف1!AF6:AF6 -> 10
A7: 2 | B7: =كشف1!B19:B19 -> حسين جبر على | C7: =كشف1!AE19:AE19 -> 2 | D7: =كشف1!AF19:AF19 -> 10
A8: 3 | B8: =كشف2!B6:B6 -> امال ناجى عبدالمجيد | C8: =كشف2!AE6:AE6 -> 2 | D8: =كشف2!AF8:AF8 -> 10
A9: 4 | B9: =كشف2!B7:B7 -> وداد عبدالرشيد عبدالحفيظ | C9: =كشف2!AE7:AE7 -> 2 | D9: =كشف2!AF7:AF7 -> 10
A10: 5 | B10: =كشف2!B8:B8 -> يحى محمد احمد | C10: =كشف2!AE8:AE8 -> 2 | D10: =كشف2!AF8:AF8 -> 10
A11: 6 | B11: =كشف2!B15:B15 -> محمود محمد ابراهيم | C11: =كشف2!AE15:AE15 -> 2 | D11: =كشف2!AF15:AF15 -> 10
A12: 7 | B12: =كشف2!B18:B18 -> سليمان عبدالله سليمان | C12: =كشف2!AE18:AE18 -> 2 | D12: =كشف2!AF18:AF18 -> 10
A13: 8 | B13: =كشف3!B11:B11 -> محمد عبدالسيد حسن | C13: =كشف3!AE11:AE11 -> 2 | D13: =كشف3!AF11:AF11 -> 10
A14: 9 | B14: =كشف3!B14:B14 -> عطا خيرى شافعى | C14: =كشف3!AE14:AE14 -> 2 | D14: =كشف3!AF14:AF14 -> 10
A15: 10 | B15: =كشف3!B16:B16 -> هانى صدقى احمد | C15: =كشف3!AE16:AE16 -> 2 | D15: =كشف3!AF16:AF16 -> 10
A16: 11 | B16: =كشف3!B22:B22 -> منال عبدالتواب عبدالستار | C16: =كشف3!AE22:AE22 -> 2 | D16: =كشف3!AF22:AF22 -> 10
A25: الاجمــــــــــــــــــــــالي | C25: =SUM(C6:C24) -> 22 | D25: =SUM(D6:D24) -> 110
B27: مــاهيـــــــــات | C27: مدير المدرسة

Sheet بنوك
A7: إدارة ملوي التعليمية | C7: بسم الله الرحمن الرحيم
A8: مدرسة وحدة دروة
A9: بيان المستقطع لحساب بنك ناصر ملوي عن سبتمبر 2018
A11: م | B11: الاسم | C11: المبلغ
A12: 1 | B12: =كشف2!B18:B18 -> سليمان عبدالله سليمان | C12: =كشف2!AQ18:AQ18 -> 2150.79
A30: الاجمــــــــــــــــــــــالي | C30: =SUM(C12:C29) -> 2150.79
B32: مــاهيـــــــــات | C32: مدير المدرسة

Sheet فرعية
A1: إدارة ملوي التعليمية | D1: بسم الله الرحمن الرحيم
A2: مدرسة وحدة دروة
C3: بيان المستقطع لحساب اللجنة الفرعية عن شهر سبتمبر 2018
A5: م | B5: الاسم | C5: لجنة فرعية
A6: 1 | B6: =كشف1!B5:B5 -> احلام احمد عبدالباقى | C6: =كشف1!AJ5:AJ5 -> 1
A7: 2 | B7: =كشف1!B7:B7 -> السيد شوقى فخرى | C7: =كشف1!AJ7:AJ7 -> 1
A8: 3 | B8: =كشف1!B8:B8 -> امانى محمد محسن احمد | C8: =كشف1!AJ8:AJ8 -> 1
A9: 4 | B9: =كشف1!B9:B9 -> امل زغلول ياسين | C9: =كشف1!AJ9:AJ9 -> 1
A10: 5 | B10: =كشف1!B10:B10 -> ايناس صدقى عزمى | C10: =كشف1!AJ10:AJ10 -> 1
A11: 6 | B11: =كشف1!B11:B11 -> جبر حسن عبدالمنطلب | C11: =كشف1!AJ11:AJ11 -> 1
A12: 7 | B12: =كشف1!B12:B12 -> حمدى درويش فهمى | C12: =كشف1!AJ12:AJ12 -> 1
A13: 8 | B13: =كشف1!B13:B13 -> رضا محمد مرسي | C13: =كشف1!AJ13:AJ13 -> 1
A14: 9 | B14: =كشف1!B14:B14 -> صباح عبدالصبور محمد | C14: =كشف1!AJ14:AJ14 -> 1
A15: 10 | B15: =كشف1!B15:B15 -> صلاح عمر موسي | C15: =كشف1!AJ15:AJ15 -> 1
A16: 11 | B16: =كشف1!B16:B16 -> عبدالاول عمر موسي | C16: =كشف1!AJ16:AJ16 -> 1
A17: 12 | B17: =كشف1!B17:B17 -> عبدالعال جالى محمد | C17: =كشف1!AJ17:AJ17 -> 1
A18: 13 | B18: =كشف1!B18:B18 -> ربيع رمضان ابراهيم | C18: =كشف1!AJ18:AJ18 -> 1
A19: 14 | B19: =كشف1!B20:B20 -> وليد محمد سيد | C19: =كشف1!AJ20:AJ20 -> 1
A20: 15 | B20: =كشف1!B21:B21 -> محمد عبدالمنعم عبدالعال | C20: =كشف1!AJ21:AJ21 -> 1
A21: 16 | B21: =كشف2!B5:B5 -> ابتسام حسن محمد | C21: =كشف2!AJ5:AJ5 -> 1
A22: 17 | B22: =كشف2!B9:B9 -> امال عيسى سلامه | C22: =كشف2!AJ9:AJ9 -> 1
A23: 18 | B23: =كشف2!B10:B10 -> جمال عبدالله تونى | C23: =كشف2!AJ10:AJ10 -> 1
A24: 19 | B24: =كشف2!B11:B11 -> عبدالحميد ناجى فهمى | C24: =كشف2!AJ11:AJ11 -> 1
A25: 20 | B25: =كشف2!B12:B12 -> علاء يونس عبدالمجيد | C25: =كشف2!AJ12:AJ12 -> 1
A26: 21 | B26: =كشف2!B13:B13 -> محمد على حسين | C26: =كشف2!AJ13:AJ13 -> 1
A27: 22 | B27: =كشف2!B14:B14 -> محمد ناجى محمد | C27: =كشف2!AJ14:AJ14 -> 1
A28: 23 | B28: =كشف2!B16:B16 -> مصطفى محمد عبدالحليم | C28: =كشف2!AJ16:AJ16 -> 1
A29: 24 | B29: =كشف2!B17:B17 -> نجوى محمد اسماعيل | C29: =كشف2!AJ17:AJ17 -> 1
A30: 25 | B30: =كشف3!B6:B6 -> عبدالكريم عبدالمنعم عبدالرحمن | C30: =كشف3!AJ6:AJ6 -> 1
A31: 26 | B31: =كشف3!B8:B8 -> عبدالعزيز يوسف سيد | C31: =كشف3!AJ8:AJ8 -> 1
A32: 27 | B32: =كشف3!B9:B9 -> عبده موسى عبدالعظيم | C32: =كشف3!AJ9:AJ9 -> 1
A33: 28 | B33: =كشف3!B10:B10 -> عماد القاضى عبدالحميد احمد | C33: =كشف3!AJ10:AJ10 -> 1
A34: 29 | B34: =كشف3!B12:B12 -> مصطفى احمد مهنى | C34: =كشف3!AJ12:AJ12 -> 1
A35: 30 | B35: =كشف3!B13:B13 -> ناصر عبدالجواد عبدالحميد | C35: =كشف3!AJ13:AJ13 -> 1
A36: 31 | B36: =كشف3!B15:B15 -> نسرين عبدالرؤف عبدالعاطى | C36: =كشف3!AJ15:AJ15 -> 1
A37: 32 | B37: =كشف3!B17:B17 -> هبه ربيع احمد | C37: =كشف3!AJ17:AJ17 -> 1
A38: 33 | B38: =كشف3!B18:B18 -> هبه محمد حسن | C38: =كشف3!AJ18:AJ18 -> 1
A39: 34 | B39: =كشف3!B19:B19 -> يسرى عزت عبدالحميد | C39: =كشف3!AJ19:AJ19 -> 1
A40: 35 | B40: =كشف3!B20:B20 -> فاتن عمر موسى | C40: =كشف3!AJ20:AJ20 -> 1
A41: 36 | B41: =كشف3!B21:B21 -> مرفت فرج يوسف | C41: =كشف3!AJ21:AJ21 -> 1
B42: الاجمـــــــــالي | C42: =SUM(C6:C41) -> 36
B44: مــاهيـــــــــات | C44: مدير المدرسة

Sheet قسط نقابة
A5: إدارة ملوي التعليمية | C5: بسم الله الرحمن الرحيم
A6: مدرسة وحدة دروة
A7: بيان المستقطع لحساب قسط نقابة تعليمية عن سبتمبر 2018
A9: م | B9: الاسم | C9: المبلغ
A10: 1 | B10: =كشف3!B19:B19 -> يسرى عزت عبدالحميد | C10: =كشف3!AM19:AM19 -> 204
B19: الاجمالى | C19: 204
B20: مــاهيـــــــــات | C20: مدير المدرسة

Sheet 5%زمالة
A1: إدارة ملوي التعليمية | C1: بسم الله الرحمن الرحيم
A2: مدرسة وحدة دروة
A3: بيان المستقطع لحساب 5% زمالةعن شهرسبتمبر2018م
A5: م | B5: الاسم | C5: 5%زمالة
A6: 1 | B6: =كشف1!B6:B6 -> اكرام خليل امبارك | C6: =كشف1!AG6:AG6 -> 31.3
A7: 2 | B7: =كشف1!B19:B19 -> حسين جبر على | C7: =كشف1!AG19:AG19 -> 31.05
A8: 3 | B8: =كشف2!B6:B6 -> امال ناجى عبدالمجيد | C8: =كشف2!AG6:AG6 -> 29.55
A9: 4 | B9: =كشف2!B7:B7 -> وداد عبدالرشيد عبدالحفيظ | C9: =كشف2!AG7:AG7 -> 9.9
A10: 5 | B10: =كشف2!B8:B8 -> يحى محمد احمد | C10: =كشف2!AG8:AG8 -> 31.15
A11: 6 | B11: =كشف2!B15:B15 -> محمود محمد ابراهيم | C11: =كشف2!AG15:AG15 -> 26.9
A12: 7 | B12: =كشف2!B18:B18 -> سليمان عبدالله سليمان | C12: =كشف2!AG18:AG18 -> 23
A13: 8 | B13: =كشف3!B11:B11 -> محمد عبدالسيد حسن | C13: =كشف3!AG11:AG11 -> 31.05
A14: 9 | B14: =كشف3!B14:B14 -> عطا خيرى شافعى | C14: =كشف3!AG14:AG14 -> 9.9
A15: 10 | B15: =كشف3!B16:B16 -> هانى صدقى احمد | C15: =كشف3!AG16:AG16 -> 9.9
A16: 11 | B16: =كشف3!B22:B22 -> منال عبدالتواب عبدالستار | C16: =كشف3!AG22:AG22 -> 9.9
A25: الاجمــــــــــــــــــــــالي | C25: =SUM(C6:C24) -> 243.6
B27: مــاهيـــــــــات | C27: مدير المدرسة

Sheet اعتبارية
A2: إدارة ملوي التعليمية | C2: بسم الله الرحمن الرحيم
A3: مدرسة وحدة دروة
A4: بيان المستقطع لحساب مدة اعتبارية عن سبتمبر 2018
A6: م | B6: الاسم | C6: المبلغ
A7: 1 | B7: =كشف1!B6:B6 -> اكرام خليل امبارك | C7: =كشف1!AI6:AI6 -> 6.38
A8: 2 | B8: =كشف1!B7:B7 -> السيد شوقى فخرى | C8: =كشف1!AI7:AI7 -> 40
A9: 3 | B9: =كشف2!B6:B6 -> امال ناجى عبدالمجيد | C9: =كشف2!AI6:AI6 -> 3.13
B15: اجمالى | C15: =SUM(C7:C14) -> 49.51
B17: مــاهيـــــــــات | C17: مدير المدرسة

Sheet معاش اعارة
A1: إدارة ملوي التعليمية | C1: بسم الله الرحمن الرحيم
A2: مدرسة وحدة دروة
A3: بيان المستقطع لحساب معاش اعارة عن سبتمبر 2018
A5: م | B5: الاسم | C5: المبلغ
A6: 1 | B6: =كشف1!B17:B17 -> عبدالعال جالى محمد | C6: =كشف1!AH17:AH17 -> 1.5
B15: الاجمالى | C15: 1.5
B16: مــاهيـــــــــات | C16: مدير المدرسة

Sheet مهن تطبيقية
A2: إدارة ملوي التعليمية | C2: بسم الله الرحمن الرحيم
A3: مدرسة وحدة دروة
A4: بيان المستقطع لحساب مهن تطبيقية عن سبتمبر 2018
A6: م | B6: الاسم | C6: المبلغ
A7: 1 | B7: =كشف3!B10:B10 -> عماد القاضى عبدالحميد احمد | C7: =كشف3!AK10:AK10 -> 4
B15: اجمالى | C15: 4
B17: مــاهيـــــــــات | C17: مدير المدرسة

Sheet ايرادات
A3: إدارة ملوي التعليمية | C3: بسم الله الرحمن الرحيم
A4: مدرسة وحدة دروة
A5: بيان المستقطع لحساب ايرادات بدل اعتماد عن شهرسبتمبر 2018
A7: م | B7: الاسم | C7: المبلغ
A8: 1 | B8: =كشف1!B7:B7 -> السيد شوقى فخرى | C8: =كشف1!AM7:AM7 -> 50
A9: 2 | B9: =كشف1!B10:B10 -> ايناس صدقى عزمى | C9: =كشف1!AM10:AM10 -> 50
A10: 3 | B10: =كشف1!B13:B13 -> رضا محمد مرسي | C10: =كشف1!AM13:AM13 -> 50
A11: 4 | B11: =كشف1!B16:B16 -> عبدالاول عمر موسي | C11: =كشف1!AM16:AM16 -> 50
A12: 5 | B12: =كشف3!B15:B15 -> نسرين عبدالرؤف عبدالعاطى | C12: =كشف3!AN15:AN15 -> 50
A13: 6 | B13: =كشف3!B20:B20 -> فاتن عمر موسى | C13: =كشف3!AN20:AN20 -> 50
A14: 7
A15: 8 | C15: =كشف1!AM14:AM14 -> 0
A16: 9 | C16: =كشف1!AM15:AM15 -> 0
A17: 10 | B17: =كشف1!B22:B22 -> الاجمــــــــــالي | C17: =SUM(C8:C16) -> 300
B18: مــاهيـــــــــات | C18: مدير المدرسة
